Workbook

Sheet Main
B10: 2024-05-06
B12: Sheet No. | C12: Template Name | D12: Summary
B13: 1 | C13: Future Intra | D13: For Intraday trading in F&O segment
B14: 2 | C14: Cash Intra | D14: For Intraday trading in cash market segment
B15: 3 | C15: Mid-cap Intra | D15: For Intraday trading in Mid-cap stocks
B16: 4 | C16: Bulk Deals | D16: Reveals Bulk Deals carried on NSE & BSE
B17: 5 | C17: Call Tracker
K27: `

Sheet Future Intra
M5: Back to Main Page
A6: FOR INTRA DAY TRADING | L6: =Main!B10 -> 2024-05-06
A9: Sr.no | B9: Sector | C9: Scrip | D9: Expiry Date | E9: CLOSE RATE | F9: Pivot Point | G9: Supports | J9: Resistances
E10: Point | F10: Point | G10: S1 | H10: S2 | I10: S3 | J10: R1 | K10: R2 | L10: R3 | M10: HIGH | N10: LOW | O10: OI | P10: % Change in OI
A11: 1 | B11: Index | C11: NIFTY | D11: 2024-05-30 | E11: 22575.20 | F11: 22644.52 | G11: 22400.68 | H11: 22226.17 | I11: 21982.33 | J11: 22819.03 | K11: 23062.87 | L11: 23237.38 | M11: 22888.35 | N11: 22470 | O11: 11720500 | P11: -4.17%
A12: 2 | B12: Index | C12: BANKNIFTY | D12: 2024-05-29 | E12: 49094.75 | F12: 49204.92 | G12: 48759.83 | H12: 48424.92 | I12: 47979.83 | J12: 49539.83 | K12: 49984.92 | L12: 50319.83 | M12: 49650 | N12: 48870 | O12: 2322675 | P12: -8.06%
A13: 3 | B13: Index | C13: FINNIFTY | D13: 2024-05-28 | E13: 21892.75 | F13: 21949.33 | G13: 21731.97 | H13: 21571.18 | I13: 21353.82 | J13: 22110.12 | K13: 22327.48 | L13: 22488.27 | M13: 22166.7 | N13: 21788.55 | O13: 57280 | P13: 1.49%
A14: 4 | B14: Index | C14: MIDCPNIFTY | D14: 2024-05-27 | E14: 11111.80 | F14: 11129.05 | G14: 11038.75 | H14: 10965.70 | I14: 10875.40 | J14: 11202.10 | K14: 11292.40 | L14: 11365.45 | M14: 11219.35 | N14: 11056 | O14: 1918500 | P14: -0.89%
A15: 5 | B15: Chemicals | C15: AARTIIND | D15: 2024-05-30 | E15: 746.55 | F15: 748.47 | G15: 735.98 | H15: 725.42 | I15: 712.93 | J15: 759.03 | K15: 771.52 | L15: 782.08 | M15: 760.95 | N15: 737.9 | O15: 13949000 | P15: 0.88%
A16: 6 | B16: Capital_Goods | C16: ABB | D16: 2024-05-30 | E16: 6758.50 | F16: 6765.15 | G16: 6683.35 | H16: 6608.20 | I16: 6526.40 | J16: 6840.30 | K16: 6922.10 | L16: 6997.25 | M16: 6846.95 | N16: 6690 | O16: 1121750 | P16: -0.81%
A17: 7 | B17: Pharma | C17: ABBOTINDIA | D17: 2024-05-30 | E17: 26298.85 | F17: 26524.87 | G17: 26007.08 | H17: 25715.32 | I17: 25197.53 | J17: 26816.63 | K17: 27334.42 | L17: 27626.18 | M17: 27042.65 | N17: 26233.1 | O17: 177860 | P17: -10.30%
A18: 8 | B18: Finance | C18: ABCAPITAL | D18: 2024-05-30 | E18: 233.25 | F18: 233.10 | G18: 229.90 | H18: 226.55 | I18: 223.35 | J18: 236.45 | K18: 239.65 | L18: 243.00 | M18: 236.3 | N18: 229.75 | O18: 69535800 | P18: -0.38%
A19: 9 | B19: Textile | C19: ABFRL | D19: 2024-05-30 | E19: 256.20 | F19: 257.90 | G19: 249.80 | H19: 243.40 | I19: 235.30 | J19: 264.30 | K19: 272.40 | L19: 278.80 | M19: 266 | N19: 251.5 | O19: 43464200 | P19: -6.11%
A20: 10 | B20: Cement | C20: ACC | D20: 2024-05-30 | E20: 2547.80 | F20: 2552.25 | G20: 2518.25 | H20: 2488.70 | I20: 2454.70 | J20: 2581.80 | K20: 2615.80 | L20: 2645.35 | M20: 2586.25 | N20: 2522.7 | O20: 5499900 | P20: -1.57%
A21: 11 | B21: Infrastructure | C21: ADANIENT | D21: 2024-05-30 | E21: 3011.00 | F21: 3023.03 | G21: 2977.97 | H21: 2944.93 | I21: 2899.87 | J21: 3056.07 | K21: 3101.13 | L21: 3134.17 | M21: 3068.1 | N21: 2990 | O21: 14258400 | P21: -0.63%
A22: 12 | B22: Infrastructure | C22: ADANIPORTS | D22: 2024-05-30 | E22: 1329.60 | F22: 1337.05 | G22: 1308.55 | H22: 1287.50 | I22: 1259.00 | J22: 1358.10 | K22: 1386.60 | L22: 1407.65 | M22: 1365.55 | N22: 1316 | O22: 38394800 | P22: -2.50%
A23: 13 | B23: Pharma | C23: ALKEM | D23: 2024-05-30 | E23: 4935.65 | F23: 4900.13 | G23: 4837.32 | H23: 4738.98 | I23: 4676.17 | J23: 4998.47 | K23: 5061.28 | L23: 5159.62 | M23: 4962.95 | N23: 4801.8 | O23: 990500 | P23: -2.62%
A24: 14 | B24: Cement | C24: AMBUJACEM | D24: 2024-05-30 | E24: 627.85 | F24: 628.73 | G24: 618.67 | H24: 609.48 | I24: 599.42 | J24: 637.92 | K24: 647.98 | L24: 657.17 | M24: 638.8 | N24: 619.55 | O24: 45258300 | P24: -0.71%
A25: 15 | B25: Pharma | C25: APOLLOHOSP | D25: 2024-05-30 | E25: 6043.15 | F25: 6038.30 | G25: 6013.60 | H25: 5984.05 | I25: 5959.35 | J25: 6067.85 | K25: 6092.55 | L25: 6122.10 | M25: 6063 | N25: 6008.75 | O25: 2158250 | P25: -3.33%
A26: 16 | B26: Automobile | C26: APOLLOTYRE | D26: 2024-05-30 | E26: 501.45 | F26: 500.52 | G26: 492.03 | H26: 482.62 | I26: 474.13 | J26: 509.93 | K26: 518.42 | L26: 527.83 | M26: 509 | N26: 491.1 | O26: 11973100 | P26: -1.94%
A27: 17 | B27: Automobile | C27: ASHOKLEY | D27: 2024-05-30 | E27: 204.05 | F27: 204.10 | G27: 201.95 | H27: 199.85 | I27: 197.70 | J27: 206.20 | K27: 208.35 | L27: 210.45 | M27: 206.25 | N27: 202 | O27: 111950000 | P27: -1.16%
A28: 18 | B28: FMCG | C28: ASIANPAINT | D28: 2024-05-30 | E28: 2943.35 | F28: 2964.63 | G28: 2907.97 | H28: 2872.58 | I28: 2815.92 | J28: 3000.02 | K28: 3056.68 | L28: 3092.07 | M28: 3021.3 | N28: 2929.25 | O28: 10424200 | P28: -3.73%
A29: 19 | B29: Capital_Goods | C29: ASTRAL | D29: 2024-05-30 | E29: 2083.95 | F29: 2079.67 | G29: 2060.43 | H29: 2036.92 | I29: 2017.68 | J29: 2103.18 | K29: 2122.42 | L29: 2145.93 | M29: 2098.9 | N29: 2056.15 | O29: 2618545 | P29: -3.23%
A30: 20 | B30: Chemicals | C30: ATUL | D30: 2024-05-30 | E30: 6198.80 | F30: 6229.05 | G30: 6090.15 | H30: 5981.50 | I30: 5842.60 | J30: 6337.70 | K30: 6476.60 | L30: 6585.25 | M30: 6367.95 | N30: 6120.4 | O30: 587925 | P30: 0.01%
A31: 21 | B31: Banking | C31: AUBANK | D31: 2024-05-30 | E31: 645.75 | F31: 648.78 | G31: 637.57 | H31: 629.38 | I31: 618.17 | J31: 656.97 | K31: 668.18 | L31: 676.37 | M31: 660 | N31: 640.6 | O31: 17722000 | P31: 3.09%
A32: 22 | B32: Pharma | C32: AUROPHARMA | D32: 2024-05-30 | E32: 1159.30 | F32: 1163.92 | G32: 1150.73 | H32: 1142.17 | I32: 1128.98 | J32: 1172.48 | K32: 1185.67 | L32: 1194.23 | M32: 1177.1 | N32: 1155.35 | O32: 13914450 | P32: -1.33%
A33: 23 | B33: Banking | C33: AXISBANK | D33: 2024-05-30 | E33: 1150.00 | F33: 1154.55 | G33: 1139.30 | H33: 1128.60 | I33: 1113.35 | J33: 1165.25 | K33: 1180.50 | L33: 1191.20 | M33: 1169.8 | N33: 1143.85 | O33: 54876875 | P33: -1.30%
A34: 24 | B34: Automobile | C34: BAJAJ-AUTO | D34: 2024-05-30 | E34: 9155.90 | F34: 9198.30 | G34: 9095.60 | H34: 9035.30 | I34: 8932.60 | J34: 9258.60 | K34: 9361.30 | L34: 9421.60 | M34: 9301 | N34: 9138 | O34: 2459525 | P34: 1.77%
A35: 25 | B35: Finance | C35: BAJAJFINSV | D35: 2024-05-30 | E35: 1640.25 | F35: 1670.57 | G35: 1601.18 | H35: 1562.12 | I35: 1492.73 | J35: 1709.63 | K35: 1779.02 | L35: 1818.08 | M35: 1739.95 | N35: 1631.5 | O35: 9914000 | P35: 1.62%
A36: 26 | B36: Finance | C36: BAJFINANCE | D36: 2024-05-30 | E36: 6984.80 | F36: 7136.50 | G36: 6806.10 | H36: 6627.40 | I36: 6297.00 | J36: 7315.20 | K36: 7645.60 | L36: 7824.30 | M36: 7466.9 | N36: 6957.8 | O36: 9000125 | P36: 11.59%
A37: 27 | B37: Automobile | C37: BALKRISIND | D37: 2024-05-30 | E37: 2457.30 | F37: 2461.65 | G37: 2432.65 | H37: 2408.00 | I37: 2379.00 | J37: 2486.30 | K37: 2515.30 | L37: 2539.95 | M37: 2490.65 | N37: 2437 | O37: 1731600 | P37: -1.18%
A38: 28 | B38: FMCG | C38: BALRAMCHIN | D38: 2024-05-30 | E38: 394.15 | F38: 396.18 | G38: 387.32 | H38: 380.48 | I38: 371.62 | J38: 403.02 | K38: 411.88 | L38: 418.72 | M38: 405.05 | N38: 389.35 | O38: 14892800 | P38: 17.21%
A39: 29 | B39: Banking | C39: BANDHANBNK | D39: 2024-05-30 | E39: 189.25 | F39: 190.43 | G39: 186.72 | H39: 184.18 | I39: 180.47 | J39: 192.97 | K39: 196.68 | L39: 199.22 | M39: 194.15 | N39: 187.9 | O39: 107288400 | P39: 0.45%
A40: 30 | B40: Banking | C40: BANKBARODA | D40: 2024-05-30 | E40: 278.45 | F40: 280.00 | G40: 275.10 | H40: 271.75 | I40: 266.85 | J40: 283.35 | K40: 288.25 | L40: 291.60 | M40: 284.9 | N40: 276.65 | O40: 174727800 | P40: 3.27%
A41: 31 | B41: FMCG | C41: BATAINDIA | D41: 2024-05-30 | E41: 1335.60 | F41: 1343.35 | G41: 1317.85 | H41: 1300.10 | I41: 1274.60 | J41: 1361.10 | K41: 1386.60 | L41: 1404.35 | M41: 1368.85 | N41: 1325.6 | O41: 4285125 | P41: 6.34%
A42: 32 | B42: Capital_Goods | C42: BEL | D42: 2024-05-30 | E42: 235.80 | F42: 236.02 | G42: 232.23 | H42: 228.67 | I42: 224.88 | J42: 239.58 | K42: 243.37 | L42: 246.93 | M42: 239.8 | N42: 232.45 | O42: 148140150 | P42: 0.57%
A43: 33 | B43: FMCG | C43: BERGEPAINT | D43: 2024-05-30 | E43: 515.40 | F43: 517.13 | G43: 506.67 | H43: 497.93 | I43: 487.47 | J43: 525.87 | K43: 536.33 | L43: 545.07 | M43: 527.6 | N43: 508.4 | O43: 16030080 | P43: 6.16%
A44: 34 | B44: Automobile | C44: BHARATFORG | D44: 2024-05-30 | E44: 1262.40 | F44: 1269.00 | G44: 1246.75 | H44: 1231.10 | I44: 1208.85 | J44: 1284.65 | K44: 1306.90 | L44: 1322.55 | M44: 1291.25 | N44: 1253.35 | O44: 6764500 | P44: 0.56%
A45: 35 | B45: Telecom | C45: BHARTIARTL | D45: 2024-05-30 | E45: 1286.75 | F45: 1291.68 | G45: 1263.92 | H45: 1241.08 | I45: 1213.32 | J45: 1314.52 | K45: 1342.28 | L45: 1365.12 | M45: 1319.45 | N45: 1268.85 | O45: 34348200 | P45: 4.90%
A46: 36 | B46: Capital_Goods | C46: BHEL | D46: 2024-05-30 | E46: 307.65 | F46: 307.83 | G46: 295.32 | H46: 282.98 | I46: 270.47 | J46: 320.17 | K46: 332.68 | L46: 345.02 | M46: 320.35 | N46: 295.5 | O46: 74560500 | P46: -3.55%
A47: 37 | B47: Pharma | C47: BIOCON | D47: 2024-05-30 | E47: 307.30 | F47: 308.13 | G47: 300.47 | H47: 293.63 | I47: 285.97 | J47: 314.97 | K47: 322.63 | L47: 329.47 | M47: 315.8 | N47: 301.3 | O47: 57660000 | P47: -3.32%
A48: 38 | B48: Automobile | C48: BOSCHLTD | D48: 2024-05-30 | E48: 30342.30 | F48: 30465.58 | G48: 30016.72 | H48: 29691.13 | I48: 29242.27 | J48: 30791.17 | K48: 31240.03 | L48: 31565.62 | M48: 30914.45 | N48: 30140 | O48: 403100 | P48: 4.29%
A49: 39 | B49: Oil_Gas | C49: BPCL | D49: 2024-05-30 | E49: 635.35 | F49: 636.68 | G49: 627.47 | H49: 619.58 | I49: 610.37 | J49: 644.57 | K49: 653.78 | L49: 661.67 | M49: 645.9 | N49: 628.8 | O49: 27331200 | P49: -0.89%
A50: 40 | B50: FMCG | C50: BRITANNIA | D50: 2024-05-30 | E50: 4767.60 | F50: 4774.77 | G50: 4729.98 | H50: 4692.37 | I50: 4647.58 | J50: 4812.38 | K50: 4857.17 | L50: 4894.78 | M50: 4819.55 | N50: 4737.15 | O50: 2039400 | P50: 5.90%
A51: 41 | B51: Technology | C51: BSOFT | D51: 2024-05-30 | E51: 640.35 | F51: 642.58 | G51: 630.32 | H51: 620.28 | I51: 608.02 | J51: 652.62 | K51: 664.88 | L51: 674.92 | M51: 654.85 | N51: 632.55 | O51: 13150000 | P51: 4.82%
A52: 42 | B52: Banking | C52: CANBK | D52: 2024-05-30 | E52: 629.70 | F52: 629.72 | G52: 622.48 | H52: 615.27 | I52: 608.03 | J52: 636.93 | K52: 644.17 | L52: 651.38 | M52: 636.95 | N52: 622.5 | O52: 67170600 | P52: 0.09%
A53: 43 | B53: Finance | C53: CANFINHOME | D53: 2024-05-30 | E53: 773.10 | F53: 776.63 | G53: 761.52 | H53: 749.93 | I53: 734.82 | J53: 788.22 | K53: 803.33 | L53: 814.92 | M53: 791.75 | N53: 765.05 | O53: 4805775 | P53: -3.20%
A54: 44 | B54: Chemicals | C54: CHAMBLFERT | D54: 2024-05-30 | E54: 408.50 | F54: 410.70 | G54: 400.25 | H54: 392.00 | I54: 381.55 | J54: 418.95 | K54: 429.40 | L54: 437.65 | M54: 421.15 | N54: 402.45 | O54: 12148600 | P54: -0.93%
A55: 45 | B55: Finance | C55: CHOLAFIN | D55: 2024-05-30 | E55: 1318.20 | F55: 1329.53 | G55: 1299.27 | H55: 1280.33 | I55: 1250.07 | J55: 1348.47 | K55: 1378.73 | L55: 1397.67 | M55: 1359.8 | N55: 1310.6 | O55: 9813750 | P55: 1.28%
A56: 46 | B56: Pharma | C56: CIPLA | D56: 2024-05-30 | E56: 1436.25 | F56: 1436.62 | G56: 1426.83 | H56: 1417.42 | I56: 1407.63 | J56: 1446.03 | K56: 1455.82 | L56: 1465.23 | M56: 1446.4 | N56: 1427.2 | O56: 8671000 | P56: -0.15%
A57: 47 | B57: Metals | C57: COALINDIA | D57: 2024-05-30 | E57: 478.70 | F57: 470.12 | G57: 460.48 | H57: 442.27 | I57: 432.63 | J57: 488.33 | K57: 497.97 | L57: 516.18 | M57: 479.75 | N57: 451.9 | O57: 61437600 | P57: 4.04%
A58: 48 | B58: Technology | C58: COFORGE | D58: 2024-05-30 | E58: 4503.95 | F58: 4577.48 | G58: 4408.32 | H58: 4312.68 | I58: 4143.52 | J58: 4673.12 | K58: 4842.28 | L58: 4937.92 | M58: 4746.65 | N58: 4481.85 | O58: 3563250 | P58: 51.12%
A59: 49 | B59: FMCG | C59: COLPAL | D59: 2024-05-30 | E59: 2796.40 | F59: 2804.90 | G59: 2769.50 | H59: 2742.60 | I59: 2707.20 | J59: 2831.80 | K59: 2867.20 | L59: 2894.10 | M59: 2840.3 | N59: 2778 | O59: 3027850 | P59: 0.19%
A60: 50 | B60: Infrastructure | C60: CONCOR | D60: 2024-05-30 | E60: 1068.35 | F60: 1068.28 | G60: 1057.07 | H60: 1045.78 | I60: 1034.57 | J60: 1079.57 | K60: 1090.78 | L60: 1102.07 | M60: 1079.5 | N60: 1057 | O60: 12802000 | P60: -5.44%
A61: 51 | B61: Chemicals | C61: COROMANDEL | D61: 2024-05-30 | E61: 1211.65 | F61: 1212.38 | G61: 1201.37 | H61: 1191.08 | I61: 1180.07 | J61: 1222.67 | K61: 1233.68 | L61: 1243.97 | M61: 1223.4 | N61: 1202.1 | O61: 1846600 | P61: -2.40%
A62: 52 | B62: Capital_Goods | C62: CROMPTON | D62: 2024-05-30 | E62: 328.00 | F62: 327.83 | G62: 323.97 | H62: 319.93 | I62: 316.07 | J62: 331.87 | K62: 335.73 | L62: 339.77 | M62: 331.7 | N62: 323.8 | O62: 16788600 | P62: -5.21%
A63: 53 | B63: Banking | C63: CUB | D63: 2024-05-30 | E63: 162.00 | F63: 162.37 | G63: 160.28 | H63: 158.57 | I63: 156.48 | J63: 164.08 | K63: 166.17 | L63: 167.88 | M63: 164.45 | N63: 160.65 | O63: 32205000 | P63: -3.82%
A64: 54 | B64: Capital_Goods | C64: CUMMINSIND | D64: 2024-05-30 | E64: 3413.50 | F64: 3374.18 | G64: 3259.42 | H64: 3105.33 | I64: 2990.57 | J64: 3528.27 | K64: 3643.03 | L64: 3797.12 | M64: 3488.95 | N64: 3220.1 | O64: 3576300 | P64: 8.93%
A65: 55 | B65: FMCG | C65: DABUR | D65: 2024-05-30 | E65: 534.70 | F65: 534.30 | G65: 527.60 | H65: 520.50 | I65: 513.80 | J65: 541.40 | K65: 548.10 | L65: 555.20 | M65: 541 | N65: 527.2 | O65: 21152500 | P65: -8.72%
A66: 56 | B66: Cement | C66: DALBHARAT | D66: 2024-05-30 | E66: 1806.15 | F66: 1808.52 | G66: 1789.18 | H66: 1772.22 | I66: 1752.88 | J66: 1825.48 | K66: 1844.82 | L66: 1861.78 | M66: 1827.85 | N66: 1791.55 | O66: 3336350 | P66: 0.51%
A67: 57 | B67: Chemicals | C67: DEEPAKNTR | D67: 2024-05-30 | E67: 2466.15 | F67: 2470.72 | G67: 2426.43 | H67: 2386.72 | I67: 2342.43 | J67: 2510.43 | K67: 2554.72 | L67: 2594.43 | M67: 2515 | N67: 2431 | O67: 1983600 | P67: -4.41%
A68: 58 | B68: Pharma | C68: DIVISLAB | D68: 2024-05-30 | E68: 3979.75 | F68: 3977.88 | G68: 3937.37 | H68: 3894.98 | I68: 3854.47 | J68: 4020.27 | K68: 4060.78 | L68: 4103.17 | M68: 4018.4 | N68: 3935.5 | O68: 2649200 | P68: 0.14%
A69: 59 | B69: Capital_Goods | C69: DIXON | D69: 2024-05-30 | E69: 8498.75 | F69: 8477.37 | G69: 8394.23 | H69: 8289.72 | I69: 8206.58 | J69: 8581.88 | K69: 8665.02 | L69: 8769.53 | M69: 8560.5 | N69: 8372.85 | O69: 1014100 | P69: -3.16%
A70: 60 | B70: Realty | C70: DLF | D70: 2024-05-30 | E70: 885.45 | F70: 888.28 | G70: 866.57 | H70: 847.68 | I70: 825.97 | J70: 907.17 | K70: 928.88 | L70: 947.77 | M70: 910 | N70: 869.4 | O70: 41299500 | P70: 2.03%
A71: 61 | B71: Pharma | C71: DRREDDY | D71: 2024-05-30 | E71: 6353.20 | F71: 6349.23 | G71: 6268.97 | H71: 6184.73 | I71: 6104.47 | J71: 6433.47 | K71: 6513.73 | L71: 6597.97 | M71: 6429.5 | N71: 6265 | O71: 2505750 | P71: 7.01%
A72: 62 | B72: Automobile | C72: EICHERMOT | D72: 2024-05-30 | E72: 4619.90 | F72: 4629.75 | G72: 4586.55 | H72: 4553.20 | I72: 4510.00 | J72: 4663.10 | K72: 4706.30 | L72: 4739.65 | M72: 4672.95 | N72: 4596.4 | O72: 2936500 | P72: 1.76%
A73: 63 | B73: Automobile | C73: ESCORTS | D73: 2024-05-30 | E73: 3504.60 | F73: 3481.90 | G73: 3442.25 | H73: 3379.90 | I73: 3340.25 | J73: 3544.25 | K73: 3583.90 | L73: 3646.25 | M73: 3521.55 | N73: 3419.55 | O73: 1239975 | P73: -6.26%
A74: 64 | B74: Automobile | C74: EXIDEIND | D74: 2024-05-30 | E74: 472.80 | F74: 469.13 | G74: 464.37 | H74: 455.93 | I74: 451.17 | J74: 477.57 | K74: 482.33 | L74: 490.77 | M74: 473.9 | N74: 460.7 | O74: 14353200 | P74: -3.82%
A75: 65 | B75: Banking | C75: FEDERALBNK | D75: 2024-05-30 | E75: 167.10 | F75: 167.70 | G75: 164.55 | H75: 162.00 | I75: 158.85 | J75: 170.25 | K75: 173.40 | L75: 175.95 | M75: 170.85 | N75: 165.15 | O75: 109530000 | P75: -2.02%
A76: 66 | B76: Oil_Gas | C76: GAIL | D76: 2024-05-30 | E76: 205.10 | F76: 205.52 | G76: 201.43 | H76: 197.77 | I76: 193.68 | J76: 209.18 | K76: 213.27 | L76: 216.93 | M76: 209.6 | N76: 201.85 | O76: 136142850 | P76: -3.34%
A77: 67 | B77: Pharma | C77: GLENMARK | D77: 2024-05-30 | E77: 1059.50 | F77: 1063.48 | G77: 1047.97 | H77: 1036.43 | I77: 1020.92 | J77: 1075.02 | K77: 1090.53 | L77: 1102.07 | M77: 1079 | N77: 1051.95 | O77: 11895800 | P77: -0.91%
A78: 68 | B78: Infrastructure | C78: GMRINFRA | D78: 2024-05-30 | E78: 86.15 | F78: 87.23 | G78: 83.97 | H78: 81.78 | I78: 78.52 | J78: 89.42 | K78: 92.68 | L78: 94.87 | M78: 90.5 | N78: 85.05 | O78: 279416250 | P78: 10.08%
A79: 69 | B79: Chemicals | C79: GNFC | D79: 2024-05-30 | E79: 691.00 | F79: 695.62 | G79: 680.83 | H79: 670.67 | I79: 655.88 | J79: 705.78 | K79: 720.57 | L79: 730.73 | M79: 710.4 | N79: 685.45 | O79: 6763900 | P79: 4.27%
A80: 70 | B80: FMCG | C80: GODREJCP | D80: 2024-05-30 | E80: 1252.95 | F80: 1249.42 | G80: 1239.83 | H80: 1226.72 | I80: 1217.13 | J80: 1262.53 | K80: 1272.12 | L80: 1285.23 | M80: 1259 | N80: 1236.3 | O80: 6508000 | P80: 0.21%
A81: 71 | B81: Realty | C81: GODREJPROP | D81: 2024-05-30 | E81: 2585.50 | F81: 2562.48 | G81: 2524.02 | H81: 2462.53 | I81: 2424.07 | J81: 2623.97 | K81: 2662.43 | L81: 2723.92 | M81: 2600.95 | N81: 2501 | O81: 4973275 | P81: 5.08%
A82: 72 | B82: Pharma | C82: GRANULES | D82: 2024-05-30 | E82: 426.85 | F82: 426.98 | G82: 423.77 | H82: 420.68 | I82: 417.47 | J82: 430.07 | K82: 433.28 | L82: 436.37 | M82: 430.2 | N82: 423.9 | O82: 10828000 | P82: -0.39%
A83: 73 | B83: Cement | C83: GRASIM | D83: 2024-05-30 | E83: 2484.45 | F83: 2473.88 | G83: 2457.87 | H83: 2431.28 | I83: 2415.27 | J83: 2500.47 | K83: 2516.48 | L83: 2543.07 | M83: 2489.9 | N83: 2447.3 | O83: 7098714 | P83: 8.08%
A84: 74 | B84: Oil_Gas | C84: GUJGASLTD | D84: 2024-05-30 | E84: 539.00 | F84: 539.50 | G84: 533.20 | H84: 527.40 | I84: 521.10 | J84: 545.30 | K84: 551.60 | L84: 557.40 | M84: 545.8 | N84: 533.7 | O84: 6021250 | P84: -4.04%
A85: 75 | B85: Capital_Goods | C85: HAL | D85: 2024-05-30 | E85: 3951.75 | F85: 3952.58 | G85: 3906.17 | H85: 3860.58 | I85: 3814.17 | J85: 3998.17 | K85: 4044.58 | L85: 4090.17 | M85: 3999 | N85: 3907 | O85: 8194800 | P85: 1.30%
A86: 76 | B86: Capital_Goods | C86: HAVELLS | D86: 2024-05-30 | E86: 1678.20 | F86: 1685.00 | G86: 1656.35 | H86: 1634.50 | I86: 1605.85 | J86: 1706.85 | K86: 1735.50 | L86: 1757.35 | M86: 1713.65 | N86: 1663.15 | O86: 6357000 | P86: -9.63%
A87: 77 | B87: Technology | C87: HCLTECH | D87: 2024-05-30 | E87: 1341.95 | F87: 1344.02 | G87: 1325.93 | H87: 1309.92 | I87: 1291.83 | J87: 1360.03 | K87: 1378.12 | L87: 1394.13 | M87: 1362.1 | N87: 1328 | O87: 21441350 | P87: 0.62%
A88: 78 | B88: Finance | C88: HDFCAMC | D88: 2024-05-30 | E88: 3948.95 | F88: 3960.60 | G88: 3909.20 | H88: 3869.45 | I88: 3818.05 | J88: 4000.35 | K88: 4051.75 | L88: 4091.50 | M88: 4012 | N88: 3920.85 | O88: 2899050 | P88: -1.17%
A89: 79 | B89: Banking | C89: HDFCBANK | D89: 2024-05-30 | E89: 1512.50 | F89: 1514.55 | G89: 1499.25 | H89: 1486.00 | I89: 1470.70 | J89: 1527.80 | K89: 1543.10 | L89: 1556.35 | M89: 1529.85 | N89: 1501.3 | O89: 182234800 | P89: -1.52%
A90: 80 | B90: Finance | C90: HDFCLIFE | D90: 2024-05-30 | E90: 570.70 | F90: 574.82 | G90: 565.98 | H90: 561.27 | I90: 552.43 | J90: 579.53 | K90: 588.37 | L90: 593.08 | M90: 583.65 | N90: 570.1 | O90: 37264700 | P90: 9.99%
A91: 81 | B91: Automobile | C91: HEROMOTOCO | D91: 2024-05-30 | E91: 4580.50 | F91: 4580.02 | G91: 4545.73 | H91: 4510.97 | I91: 4476.68 | J91: 4614.78 | K91: 4649.07 | L91: 4683.83 | M91: 4614.3 | N91: 4545.25 | O91: 4466100 | P91: -1.37%
A92: 82 | B92: Metals | C92: HINDALCO | D92: 2024-05-30 | E92: 651.70 | F92: 650.58 | G92: 643.32 | H92: 634.93 | I92: 627.67 | J92: 658.97 | K92: 666.23 | L92: 674.62 | M92: 657.85 | N92: 642.2 | O92: 50558200 | P92: 3.90%
A93: 83 | B93: Metals | C93: HINDCOPPER | D93: 2024-05-30 | E93: 391.65 | F93: 388.38 | G93: 380.27 | H93: 368.88 | I93: 360.77 | J93: 399.77 | K93: 407.88 | L93: 419.27 | M93: 396.5 | N93: 377 | O93: 34897850 | P93: 4.40%
A94: 84 | B94: Oil_Gas | C94: HINDPETRO | D94: 2024-05-30 | E94: 537.90 | F94: 538.20 | G94: 532.00 | H94: 526.10 | I94: 519.90 | J94: 544.10 | K94: 550.30 | L94: 556.20 | M94: 544.4 | N94: 532.3 | O94: 30994650 | P94: -2.16%
A95: 85 | B95: FMCG | C95: HINDUNILVR | D95: 2024-05-30 | E95: 2230.35 | F95: 2233.75 | G95: 2217.75 | H95: 2205.15 | I95: 2189.15 | J95: 2246.35 | K95: 2262.35 | L95: 2274.95 | M95: 2249.75 | N95: 2221.15 | O95: 21603600 | P95: -1.73%
A96: 86 | B96: Banking | C96: ICICIBANK | D96: 2024-05-30 | E96: 1150.80 | F96: 1153.42 | G96: 1142.93 | H96: 1135.07 | I96: 1124.58 | J96: 1161.28 | K96: 1171.77 | L96: 1179.63 | M96: 1163.9 | N96: 1145.55 | O96: 79310700 | P96: -2.46%
A97: 87 | B97: Finance | C97: ICICIGI | D97: 2024-05-30 | E97: 1683.70 | F97: 1684.38 | G97: 1650.47 | H97: 1617.23 | I97: 1583.32 | J97: 1717.62 | K97: 1751.53 | L97: 1784.77 | M97: 1718.3 | N97: 1651.15 | O97: 3722000 | P97: -1.60%
A98: 88 | B98: Finance | C98: ICICIPRULI | D98: 2024-05-30 | E98: 578.15 | F98: 579.08 | G98: 572.77 | H98: 567.38 | I98: 561.07 | J98: 584.47 | K98: 590.78 | L98: 596.17 | M98: 585.4 | N98: 573.7 | O98: 15247500 | P98: -0.62%
A99: 89 | B99: Telecom | C99: IDEA | D99: 2024-05-30 | E99: 13.25 | F99: 13.30 | G99: 13.00 | H99: 12.75 | I99: 12.45 | J99: 13.55 | K99: 13.85 | L99: 14.10 | M99: 13.6 | N99: 13.05 | O99: 3700680000 | P99: -1.39%
A100: 90 | B100: Finance | C100: IDFC | D100: 2024-05-30 | E100: 120.35 | F100: 120.88 | G100: 119.12 | H100: 117.88 | I100: 116.12 | J100: 122.12 | K100: 123.88 | L100: 125.12 | M100: 122.65 | N100: 119.65 | O100: 79660000 | P100: 1.52%
A101: 91 | B101: Banking | C101: IDFCFIRSTB | D101: 2024-05-30 | E101: 81.55 | F101: 81.77 | G101: 80.78 | H101: 80.02 | I101: 79.03 | J101: 82.53 | K101: 83.52 | L101: 84.28 | M101: 82.75 | N101: 81 | O101: 392212500 | P101: 3.15%
A102: 92 | B102: Power | C102: IEX | D102: 2024-05-30 | E102: 159.00 | F102: 158.77 | G102: 155.88 | H102: 152.77 | I102: 149.88 | J102: 161.88 | K102: 164.77 | L102: 167.88 | M102: 161.65 | N102: 155.65 | O102: 67162500 | P102: -0.74%
A103: 93 | B103: Oil_Gas | C103: IGL | D103: 2024-05-30 | E103: 448.90 | F103: 450.80 | G103: 443.60 | H103: 438.30 | I103: 431.10 | J103: 456.10 | K103: 463.30 | L103: 468.60 | M103: 458 | N103: 445.5 | O103: 20340375 | P103: 6.42%
A104: 94 | B104: Infrastructure | C104: INDHOTEL | D104: 2024-05-30 | E104: 575.10 | F104: 576.85 | G104: 568.30 | H104: 561.50 | I104: 552.95 | J104: 583.65 | K104: 592.20 | L104: 599.00 | M104: 585.4 | N104: 570.05 | O104: 21743000 | P104: 0.17%
A105: 95 | B105: Cement | C105: INDIACEM | D105: 2024-05-30 | E105: 224.00 | F105: 225.58 | G105: 219.62 | H105: 215.23 | I105: 209.27 | J105: 229.97 | K105: 235.93 | L105: 240.32 | M105: 231.55 | N105: 221.2 | O105: 24165700 | P105: -2.11%
A106: 96 | B106: FMCG | C106: INDIAMART | D106: 2024-05-30 | E106: 2776.15 | F106: 2816.77 | G106: 2723.98 | H106: 2671.82 | I106: 2579.03 | J106: 2868.93 | K106: 2961.72 | L106: 3013.88 | M106: 2909.55 | N106: 2764.6 | O106: 1413600 | P106: 1.66%
A107: 97 | B107: Infrastructure | C107: INDIGO | D107: 2024-05-30 | E107: 4054.80 | F107: 4092.47 | G107: 3990.98 | H107: 3927.17 | I107: 3825.68 | J107: 4156.28 | K107: 4257.77 | L107: 4321.58 | M107: 4193.95 | N107: 4028.65 | O107: 4461900 | P107: -2.74%
A108: 98 | B108: Banking | C108: INDUSINDBK | D108: 2024-05-30 | E108: 1495.30 | F108: 1502.48 | G108: 1476.97 | H108: 1458.63 | I108: 1433.12 | J108: 1520.82 | K108: 1546.33 | L108: 1564.67 | M108: 1528 | N108: 1484.15 | O108: 24017500 | P108: -0.39%
A109: 99 | B109: Telecom | C109: INDUSTOWER | D109: 2024-05-30 | E109: 353.90 | F109: 355.07 | G109: 349.13 | H109: 344.37 | I109: 338.43 | J109: 359.83 | K109: 365.77 | L109: 370.53 | M109: 361 | N109: 350.3 | O109: 69570800 | P109: -2.42%
A110: 100 | B110: Technology | C110: INFY | D110: 2024-05-30 | E110: 1424.50 | F110: 1424.20 | G110: 1413.65 | H110: 1402.80 | I110: 1392.25 | J110: 1435.05 | K110: 1445.60 | L110: 1456.45 | M110: 1434.75 | N110: 1413.35 | O110: 50825600 | P110: 0.13%
A111: 101 | B111: Oil_Gas | C111: IOC | D111: 2024-05-30 | E111: 172.20 | F111: 172.95 | G111: 169.55 | H111: 166.90 | I111: 163.50 | J111: 175.60 | K111: 179.00 | L111: 181.65 | M111: 176.35 | N111: 170.3 | O111: 179950875 | P111: 1.15%
A112: 102 | B112: Pharma | C112: IPCALAB | D112: 2024-05-30 | E112: 1344.50 | F112: 1347.90 | G112: 1328.10 | H112: 1311.70 | I112: 1291.90 | J112: 1364.30 | K112: 1384.10 | L112: 1400.50 | M112: 1367.7 | N112: 1331.5 | O112: 1726400 | P112: -6.87%
A113: 103 | B113: Infrastructure | C113: IRCTC | D113: 2024-05-30 | E113: 1059.80 | F113: 1063.92 | G113: 1043.28 | H113: 1026.77 | I113: 1006.13 | J113: 1080.43 | K113: 1101.07 | L113: 1117.58 | M113: 1084.55 | N113: 1047.4 | O113: 16930375 | P113: 3.13%
A114: 104 | B114: FMCG | C114: ITC | D114: 2024-05-30 | E114: 437.10 | F114: 437.38 | G114: 433.32 | H114: 429.53 | I114: 425.47 | J114: 441.17 | K114: 445.23 | L114: 449.02 | M114: 441.45 | N114: 433.6 | O114: 117126400 | P114: -0.84%
A115: 105 | B115: Metals | C115: JINDALSTEL | D115: 2024-05-30 | E115: 939.10 | F115: 943.87 | G115: 922.23 | H115: 905.37 | I115: 883.73 | J115: 960.73 | K115: 982.37 | L115: 999.23 | M115: 965.5 | N115: 927 | O115: 12738750 | P115: -2.09%
A116: 106 | B116: Cement | C116: JKCEMENT | D116: 2024-05-30 | E116: 4006.15 | F116: 4003.20 | G116: 3967.95 | H116: 3929.75 | I116: 3894.50 | J116: 4041.40 | K116: 4076.65 | L116: 4114.85 | M116: 4038.45 | N116: 3965 | O116: 746750 | P116: -3.83%
A117: 107 | B117: Metals | C117: JSWSTEEL | D117: 2024-05-30 | E117: 879.15 | F117: 887.37 | G117: 863.88 | H117: 848.62 | I117: 825.13 | J117: 902.63 | K117: 926.12 | L117: 941.38 | M117: 910.85 | N117: 872.1 | O117: 18354600 | P117: 0.01%
A118: 108 | B118: FMCG | C118: JUBLFOOD | D118: 2024-05-30 | E118: 463.55 | F118: 461.58 | G118: 456.37 | H118: 449.18 | I118: 443.97 | J118: 468.77 | K118: 473.98 | L118: 481.17 | M118: 466.8 | N118: 454.4 | O118: 17606250 | P118: -2.00%
A119: 109 | B119: Banking | C119: KOTAKBANK | D119: 2024-05-30 | E119: 1561.50 | F119: 1573.77 | G119: 1546.13 | H119: 1530.77 | I119: 1503.13 | J119: 1589.13 | K119: 1616.77 | L119: 1632.13 | M119: 1601.4 | N119: 1558.4 | O119: 65474800 | P119: 7.09%
A120: 110 | B120: Finance | C120: LTF | D120: 2024-05-30 | E120: 168.90 | F120: 169.37 | G120: 166.23 | H120: 163.57 | I120: 160.43 | J120: 172.03 | K120: 175.17 | L120: 177.83 | M120: 172.5 | N120: 166.7 | O120: 48153904 | P120: -4.50%
A121: 111 | B121: Pharma | C121: LALPATHLAB | D121: 2024-05-30 | E121: 2339.30 | F121: 2340.52 | G121: 2302.33 | H121: 2265.37 | I121: 2227.18 | J121: 2377.48 | K121: 2415.67 | L121: 2452.63 | M121: 2378.7 | N121: 2303.55 | O121: 1339800 | P121: -0.76%
A122: 112 | B122: Pharma | C122: LAURUSLABS | D122: 2024-05-30 | E122: 450.85 | F122: 451.15 | G122: 445.05 | H122: 439.25 | I122: 433.15 | J122: 456.95 | K122: 463.05 | L122: 468.85 | M122: 457.25 | N122: 445.35 | O122: 14681200 | P122: -4.67%
A123: 113 | B123: Finance | C123: LICHSGFIN | D123: 2024-05-30 | E123: 659.10 | F123: 663.20 | G123: 644.80 | H123: 630.50 | I123: 612.10 | J123: 677.50 | K123: 695.90 | L123: 710.20 | M123: 681.6 | N123: 648.9 | O123: 33985000 | P123: -1.15%
A124: 114 | B124: Capital_Goods | C124: LT | D124: 2024-05-30 | E124: 3524.15 | F124: 3558.73 | G124: 3472.42 | H124: 3420.68 | I124: 3334.37 | J124: 3610.47 | K124: 3696.78 | L124: 3748.52 | M124: 3645.05 | N124: 3507 | O124: 15301050 | P124: 0.36%
A125: 115 | B125: Technology | C125: LTIM | D125: 2024-05-30 | E125: 4692.90 | F125: 4703.97 | G125: 4658.93 | H125: 4624.97 | I125: 4579.93 | J125: 4737.93 | K125: 4782.97 | L125: 4816.93 | M125: 4749 | N125: 4670 | O125: 3670500 | P125: 1.58%
A126: 116 | B126: Technology | C126: LTTS | D126: 2024-05-30 | E126: 4556.50 | F126: 4589.65 | G126: 4504.30 | H126: 4452.10 | I126: 4366.75 | J126: 4641.85 | K126: 4727.20 | L126: 4779.40 | M126: 4675 | N126: 4537.45 | O126: 1562100 | P126: 7.65%
A127: 117 | B127: Pharma | C127: LUPIN | D127: 2024-05-30 | E127: 1665.10 | F127: 1666.07 | G127: 1646.13 | H127: 1627.17 | I127: 1607.23 | J127: 1685.03 | K127: 1704.97 | L127: 1723.93 | M127: 1686 | N127: 1647.1 | O127: 5985275 | P127: -0.74%
A128: 118 | B128: Automobile | C128: M&M | D128: 2024-05-30 | E128: 2206.00 | F128: 2204.10 | G128: 2187.45 | H128: 2168.90 | I128: 2152.25 | J128: 2222.65 | K128: 2239.30 | L128: 2257.85 | M128: 2220.75 | N128: 2185.55 | O128: 12082000 | P128: -2.53%
A129: 119 | B129: Finance | C129: M&MFIN | D129: 2024-05-30 | E129: 267.55 | F129: 269.15 | G129: 262.95 | H129: 258.35 | I129: 252.15 | J129: 273.75 | K129: 279.95 | L129: 284.55 | M129: 275.35 | N129: 264.55 | O129: 34684000 | P129: 0.84%
A130: 120 | B130: Finance | C130: MANAPPURAM | D130: 2024-05-30 | E130: 197.30 | F130: 200.23 | G130: 193.12 | H130: 188.93 | I130: 181.82 | J130: 204.42 | K130: 211.53 | L130: 215.72 | M130: 207.35 | N130: 196.05 | O130: 56307000 | P130: -4.59%
A131: 121 | B131: FMCG | C131: MARICO | D131: 2024-05-30 | E131: 520.85 | F131: 519.95 | G131: 515.30 | H131: 509.75 | I131: 505.10 | J131: 525.50 | K131: 530.15 | L131: 535.70 | M131: 524.6 | N131: 514.4 | O131: 14068800 | P131: -0.69%
A132: 122 | B132: Automobile | C132: MARUTI | D132: 2024-05-30 | E132: 12593.10 | F132: 12675.45 | G132: 12435.90 | H132: 12278.70 | I132: 12039.15 | J132: 12832.65 | K132: 13072.20 | L132: 13229.40 | M132: 12915 | N132: 12518.25 | O132: 2550900 | P132: -0.28%
A133: 123 | B133: FMCG | C133: MCDOWELL-N | D133: 2024-05-30 | E133: 1215.50 | F133: 1209.37 | G133: 1195.98 | H133: 1176.47 | I133: 1163.08 | J133: 1228.88 | K133: 1242.27 | L133: 1261.78 | M133: 1222.75 | N133: 1189.85 | O133: 11115300 | P133: 4.78%
A134: 124 | B134: Technology | C134: MCX | D134: 2024-05-30 | E134: 4045.70 | F134: 4069.62 | G134: 3986.08 | H134: 3926.47 | I134: 3842.93 | J134: 4129.23 | K134: 4212.77 | L134: 4272.38 | M134: 4153.15 | N134: 4010 | O134: 2382200 | P134: 0.60%
A135: 125 | B135: Pharma | C135: METROPOLIS | D135: 2024-05-30 | E135: 1797.10 | F135: 1797.82 | G135: 1777.78 | H135: 1758.47 | I135: 1738.43 | J135: 1817.13 | K135: 1837.17 | L135: 1856.48 | M135: 1817.85 | N135: 1778.5 | O135: 1244000 | P135: -1.99%
A136: 126 | B136: Finance | C136: MFSL | D136: 2024-05-30 | E136: 1010.00 | F136: 1016.53 | G136: 997.47 | H136: 984.93 | I136: 965.87 | J136: 1029.07 | K136: 1048.13 | L136: 1060.67 | M136: 1035.6 | N136: 1004 | O136: 7003200 | P136: -2.22%
A137: 127 | B137: Oil_Gas | C137: MGL | D137: 2024-05-30 | E137: 1441.20 | F137: 1450.07 | G137: 1417.13 | H137: 1393.07 | I137: 1360.13 | J137: 1474.13 | K137: 1507.07 | L137: 1531.13 | M137: 1483 | N137: 1426 | O137: 2376800 | P137: -1.74%
A138: 128 | B138: Automobile | C138: MOTHERSON | D138: 2024-05-30 | E138: 132.00 | F138: 131.85 | G138: 130.60 | H138: 129.20 | I138: 127.95 | J138: 133.25 | K138: 134.50 | L138: 135.90 | M138: 133.1 | N138: 130.45 | O138: 147346300 | P138: -0.10%
A139: 129 | B139: Technology | C139: MPHASIS | D139: 2024-05-30 | E139: 2307.60 | F139: 2325.07 | G139: 2284.53 | H139: 2261.47 | I139: 2220.93 | J139: 2348.13 | K139: 2388.67 | L139: 2411.73 | M139: 2365.6 | N139: 2302 | O139: 3074500 | P139: -1.27%
A140: 130 | B140: Automobile | C140: MRF | D140: 2024-05-30 | E140: 128080.55 | F140: 129911.78 | G140: 125273.57 | H140: 122466.58 | I140: 117828.37 | J140: 132718.77 | K140: 137356.98 | L140: 140163.97 | M140: 134550 | N140: 127104.8 | O140: 64000 | P140: 28.15%
A141: 131 | B141: Finance | C141: MUTHOOTFIN | D141: 2024-05-30 | E141: 1690.10 | F141: 1698.87 | G141: 1664.18 | H141: 1638.27 | I141: 1603.58 | J141: 1724.78 | K141: 1759.47 | L141: 1785.38 | M141: 1733.55 | N141: 1672.95 | O141: 5352050 | P141: -0.90%
A142: 132 | B142: Metals | C142: NATIONALUM | D142: 2024-05-30 | E142: 186.75 | F142: 186.70 | G142: 183.40 | H142: 180.05 | I142: 176.75 | J142: 190.05 | K142: 193.35 | L142: 196.70 | M142: 190 | N142: 183.35 | O142: 91927500 | P142: 2.15%
A143: 133 | B143: Technology | C143: NAUKRI | D143: 2024-05-30 | E143: 6044.80 | F143: 6056.58 | G143: 5978.22 | H143: 5911.63 | I143: 5833.27 | J143: 6123.17 | K143: 6201.53 | L143: 6268.12 | M143: 6134.95 | N143: 5990 | O143: 1444050 | P143: -0.74%
A144: 134 | B144: Chemicals | C144: NAVINFLUOR | D144: 2024-05-30 | E144: 3472.95 | F144: 3460.53 | G144: 3426.07 | H144: 3379.18 | I144: 3344.72 | J144: 3507.42 | K144: 3541.88 | L144: 3588.77 | M144: 3495 | N144: 3413.65 | O144: 2716025 | P144: 16.26%
A145: 135 | B145: FMCG | C145: NESTLEIND | D145: 2024-05-30 | E145: 2471.15 | F145: 2488.38 | G145: 2436.27 | H145: 2401.38 | I145: 2349.27 | J145: 2523.27 | K145: 2575.38 | L145: 2610.27 | M145: 2540.5 | N145: 2453.5 | O145: 5495800 | P145: -2.38%
A146: 136 | B146: Metals | C146: NMDC | D146: 2024-05-30 | E146: 271.20 | F146: 267.87 | G146: 263.28 | H146: 255.37 | I146: 250.78 | J146: 275.78 | K146: 280.37 | L146: 288.28 | M146: 272.45 | N146: 259.95 | O146: 75708000 | P146: -3.49%
A147: 137 | B147: Power | C147: NTPC | D147: 2024-05-30 | E147: 367.20 | F147: 370.68 | G147: 359.07 | H147: 350.93 | I147: 339.32 | J147: 378.82 | K147: 390.43 | L147: 398.57 | M147: 382.3 | N147: 362.55 | O147: 104772000 | P147: -3.15%
A148: 138 | B148: Realty | C148: OBEROIRLTY | D148: 2024-05-30 | E148: 1481.25 | F148: 1503.78 | G148: 1453.42 | H148: 1425.58 | I148: 1375.22 | J148: 1531.62 | K148: 1581.98 | L148: 1609.82 | M148: 1554.15 | N148: 1475.95 | O148: 4580100 | P148: -6.39%
A149: 139 | B149: Technology | C149: OFSS | D149: 2024-05-30 | E149: 7825.55 | F149: 7821.12 | G149: 7759.43 | H149: 7693.32 | I149: 7631.63 | J149: 7887.23 | K149: 7948.92 | L149: 8015.03 | M149: 7882.8 | N149: 7755 | O149: 1044500 | P149: -6.92%
A150: 140 | B150: Oil_Gas | C150: ONGC | D150: 2024-05-30 | E150: 288.15 | F150: 289.43 | G150: 284.17 | H150: 280.18 | I150: 274.92 | J150: 293.42 | K150: 298.68 | L150: 302.67 | M150: 294.7 | N150: 285.45 | O150: 77088550 | P150: -0.38%
A151: 141 | B151: Textile | C151: PAGEIND | D151: 2024-05-30 | E151: 34926.85 | F151: 35008.68 | G151: 34619.32 | H151: 34311.78 | I151: 33922.42 | J151: 35316.22 | K151: 35705.58 | L151: 36013.12 | M151: 35398.05 | N151: 34701.15 | O151: 182670 | P151: -0.98%
A152: 142 | B152: Pharma | C152: PEL | D152: 2024-05-30 | E152: 970.40 | F152: 964.67 | G152: 955.33 | H152: 940.27 | I152: 930.93 | J152: 979.73 | K152: 989.07 | L152: 1004.13 | M152: 974 | N152: 949.6 | O152: 12632250 | P152: -0.21%
A153: 143 | B153: Technology | C153: PERSISTENT | D153: 2024-05-30 | E153: 3392.30 | F153: 3417.10 | G153: 3360.20 | H153: 3328.10 | I153: 3271.20 | J153: 3449.20 | K153: 3506.10 | L153: 3538.20 | M153: 3474 | N153: 3385 | O153: 3614200 | P153: -2.10%
A154: 144 | B154: Oil_Gas | C154: PETRONET | D154: 2024-05-30 | E154: 315.80 | F154: 318.12 | G154: 310.23 | H154: 304.67 | I154: 296.78 | J154: 323.68 | K154: 331.57 | L154: 337.13 | M154: 326 | N154: 312.55 | O154: 44613000 | P154: -1.59%
A155: 145 | B155: Finance | C155: PFC | D155: 2024-05-30 | E155: 484.85 | F155: 481.62 | G155: 474.23 | H155: 463.62 | I155: 456.23 | J155: 492.23 | K155: 499.62 | L155: 510.23 | M155: 489 | N155: 471 | O155: 80178175 | P155: 1.50%
A156: 146 | B156: FMCG | C156: PIDILITIND | D156: 2024-05-30 | E156: 2975.90 | F156: 2992.93 | G156: 2946.87 | H156: 2917.83 | I156: 2871.77 | J156: 3021.97 | K156: 3068.03 | L156: 3097.07 | M156: 3039 | N156: 2963.9 | O156: 1838000 | P156: -1.68%
A157: 147 | B157: Chemicals | C157: PIIND | D157: 2024-05-30 | E157: 3626.80 | F157: 3635.67 | G157: 3583.13 | H157: 3539.47 | I157: 3486.93 | J157: 3679.33 | K157: 3731.87 | L157: 3775.53 | M157: 3688.2 | N157: 3592 | O157: 1726500 | P157: 3.38%
A158: 148 | B158: Banking | C158: PNB | D158: 2024-05-30 | E158: 137.00 | F158: 137.58 | G158: 134.82 | H158: 132.63 | I158: 129.87 | J158: 139.77 | K158: 142.53 | L158: 144.72 | M158: 140.35 | N158: 135.4 | O158: 285304000 | P158: 6.25%
A159: 149 | B159: Capital_Goods | C159: POLYCAB | D159: 2024-05-30 | E159: 5870.30 | F159: 5856.32 | G159: 5796.18 | H159: 5722.07 | I159: 5661.93 | J159: 5930.43 | K159: 5990.57 | L159: 6064.68 | M159: 5916.45 | N159: 5782.2 | O159: 1837550 | P159: -0.08%
A160: 150 | B160: Power | C160: POWERGRID | D160: 2024-05-30 | E160: 312.60 | F160: 313.73 | G160: 308.97 | H160: 305.33 | I160: 300.57 | J160: 317.37 | K160: 322.13 | L160: 325.77 | M160: 318.5 | N160: 310.1 | O160: 55976400 | P160: -4.90%
A161: 151 | B161: Media | C161: PVRINOX | D161: 2024-05-30 | E161: 1331.70 | F161: 1336.92 | G161: 1314.83 | H161: 1297.97 | I161: 1275.88 | J161: 1353.78 | K161: 1375.87 | L161: 1392.73 | M161: 1359 | N161: 1320.05 | O161: 5333735 | P161: 6.52%
A162: 152 | B162: Cement | C162: RAMCOCEM | D162: 2024-05-30 | E162: 778.95 | F162: 783.65 | G162: 771.75 | H162: 764.55 | I162: 752.65 | J162: 790.85 | K162: 802.75 | L162: 809.95 | M162: 795.55 | N162: 776.45 | O162: 9219950 | P162: 2.35%
A163: 153 | B163: Banking | C163: RBLBANK | D163: 2024-05-30 | E163: 266.75 | F163: 268.27 | G163: 262.33 | H163: 257.92 | I163: 251.98 | J163: 272.68 | K163: 278.62 | L163: 283.03 | M163: 274.2 | N163: 263.85 | O163: 60265000 | P163: -3.14%
A164: 154 | B164: Finance | C164: RECLTD | D164: 2024-05-30 | E164: 562.25 | F164: 563.17 | G164: 555.63 | H164: 549.02 | I164: 541.48 | J164: 569.78 | K164: 577.32 | L164: 583.93 | M164: 570.7 | N164: 556.55 | O164: 57710000 | P164: -1.14%
A165: 155 | B165: Oil_Gas | C165: RELIANCE | D165: 2024-05-30 | E165: 2884.75 | F165: 2901.92 | G165: 2830.28 | H165: 2775.82 | I165: 2704.18 | J165: 2956.38 | K165: 3028.02 | L165: 3082.48 | M165: 2973.55 | N165: 2847.45 | O165: 40666750 | P165: 1.79%
A166: 156 | B166: Metals | C166: SAIL | D166: 2024-05-30 | E166: 169.35 | F166: 169.05 | G166: 165.85 | H166: 162.35 | I166: 159.15 | J166: 172.55 | K166: 175.75 | L166: 179.25 | M166: 172.25 | N166: 165.55 | O166: 189292000 | P166: 1.84%
A167: 157 | B167: Finance | C167: SBICARD | D167: 2024-05-30 | E167: 723.90 | F167: 727.62 | G167: 717.43 | H167: 710.97 | I167: 700.78 | J167: 734.08 | K167: 744.27 | L167: 750.73 | M167: 737.8 | N167: 721.15 | O167: 20187200 | P167: -0.19%
A168: 158 | B168: Finance | C168: SBILIFE | D168: 2024-05-30 | E168: 1454.10 | F168: 1461.38 | G168: 1442.77 | H168: 1431.43 | I168: 1412.82 | J168: 1472.72 | K168: 1491.33 | L168: 1502.67 | M168: 1480 | N168: 1450.05 | O168: 10384875 | P168: -2.28%
A169: 159 | B169: Banking | C169: SBIN | D169: 2024-05-30 | E169: 825.70 | F169: 824.95 | G169: 817.20 | H169: 808.70 | I169: 800.95 | J169: 833.45 | K169: 841.20 | L169: 849.70 | M169: 832.7 | N169: 816.45 | O169: 94800750 | P169: -1.78%
A170: 160 | B170: Cement | C170: SHREECEM | D170: 2024-05-30 | E170: 25971.80 | F170: 25722.47 | G170: 25354.93 | H170: 24738.07 | I170: 24370.53 | J170: 26339.33 | K170: 26706.87 | L170: 27323.73 | M170: 26090 | N170: 25105.6 | O170: 389650 | P170: 10.78%
A171: 161 | B171: Capital_Goods | C171: SIEMENS | D171: 2024-05-30 | E171: 5972.20 | F171: 5955.90 | G171: 5923.80 | H171: 5875.40 | I171: 5843.30 | J171: 6004.30 | K171: 6036.40 | L171: 6084.80 | M171: 5988 | N171: 5907.5 | O171: 1321200 | P171: 1.21%
A172: 162 | B172: Textile | C172: SRF | D172: 2024-05-30 | E172: 2589.15 | F172: 2617.87 | G172: 2521.53 | H172: 2453.92 | I172: 2357.58 | J172: 2685.48 | K172: 2781.82 | L172: 2849.43 | M172: 2714.2 | N172: 2550.25 | O172: 3996750 | P172: -1.30%
A173: 163 | B173: Finance | C173: SHRIRAMFIN | D173: 2024-05-30 | E173: 2603.75 | F173: 2622.23 | G173: 2572.52 | H173: 2541.28 | I173: 2491.57 | J173: 2653.47 | K173: 2703.18 | L173: 2734.42 | M173: 2671.95 | N173: 2591 | O173: 6260100 | P173: -2.87%
A174: 164 | B174: Pharma | C174: SUNPHARMA | D174: 2024-05-30 | E174: 1521.60 | F174: 1527.33 | G174: 1507.32 | H174: 1493.03 | I174: 1473.02 | J174: 1541.62 | K174: 1561.63 | L174: 1575.92 | M174: 1547.35 | N174: 1513.05 | O174: 13804000 | P174: -5.47%
A175: 165 | B175: Media | C175: SUNTV | D175: 2024-05-30 | E175: 660.15 | F175: 658.82 | G175: 648.88 | H175: 637.62 | I175: 627.68 | J175: 670.08 | K175: 680.02 | L175: 691.28 | M175: 668.75 | N175: 647.55 | O175: 8611500 | P175: -3.85%
A176: 166 | B176: Pharma | C176: SYNGENE | D176: 2024-05-30 | E176: 685.85 | F176: 687.82 | G176: 676.63 | H176: 667.42 | I176: 656.23 | J176: 697.03 | K176: 708.22 | L176: 717.43 | M176: 699 | N176: 678.6 | O176: 7149000 | P176: -0.46%
A177: 167 | B177: Chemicals | C177: TATACHEM | D177: 2024-05-30 | E177: 1095.20 | F177: 1098.43 | G177: 1080.02 | H177: 1064.83 | I177: 1046.42 | J177: 1113.62 | K177: 1132.03 | L177: 1147.22 | M177: 1116.85 | N177: 1083.25 | O177: 11389400 | P177: -1.34%
A178: 168 | B178: Telecom | C178: TATACOMM | D178: 2024-05-30 | E178: 1733.35 | F178: 1741.62 | G178: 1714.73 | H178: 1696.12 | I178: 1669.23 | J178: 1760.23 | K178: 1787.12 | L178: 1805.73 | M178: 1768.5 | N178: 1723 | O178: 7549000 | P178: 0.43%
A179: 169 | B179: FMCG | C179: TATACONSUM | D179: 2024-05-30 | E179: 1096.95 | F179: 1101.92 | G179: 1086.03 | H179: 1075.12 | I179: 1059.23 | J179: 1112.83 | K179: 1128.72 | L179: 1139.63 | M179: 1117.8 | N179: 1091 | O179: 11452050 | P179: -3.52%
A180: 170 | B180: Automobile | C180: TATAMOTORS | D180: 2024-05-30 | E180: 1021.45 | F180: 1023.63 | G180: 999.97 | H180: 978.48 | I180: 954.82 | J180: 1045.12 | K180: 1068.78 | L180: 1090.27 | M180: 1047.3 | N180: 1002.15 | O180: 66323825 | P180: 2.77%
A181: 171 | B181: Power | C181: TATAPOWER | D181: 2024-05-30 | E181: 457.70 | F181: 458.48 | G181: 450.22 | H181: 442.73 | I181: 434.47 | J181: 465.97 | K181: 474.23 | L181: 481.72 | M181: 466.75 | N181: 451 | O181: 93163500 | P181: -2.03%
A182: 172 | B182: Metals | C182: TATASTEEL | D182: 2024-05-30 | E182: 167.80 | F182: 168.65 | G182: 165.30 | H182: 162.80 | I182: 159.45 | J182: 171.15 | K182: 174.50 | L182: 177.00 | M182: 172 | N182: 166.15 | O182: 261547000 | P182: -2.63%
A183: 173 | B183: Technology | C183: TCS | D183: 2024-05-30 | E183: 3841.45 | F183: 3843.40 | G183: 3800.05 | H183: 3758.65 | I183: 3715.30 | J183: 3884.80 | K183: 3928.15 | L183: 3969.55 | M183: 3886.75 | N183: 3802 | O183: 14434175 | P183: -0.99%
A184: 174 | B184: Technology | C184: TECHM | D184: 2024-05-30 | E184: 1258.25 | F184: 1263.63 | G184: 1247.22 | H184: 1236.18 | I184: 1219.77 | J184: 1274.67 | K184: 1291.08 | L184: 1302.12 | M184: 1280.05 | N184: 1252.6 | O184: 16460400 | P184: -2.27%
A185: 175 | B185: FMCG | C185: TITAN | D185: 2024-05-30 | E185: 3549.30 | F185: 3562.65 | G185: 3506.50 | H185: 3463.70 | I185: 3407.55 | J185: 3605.45 | K185: 3661.60 | L185: 3704.40 | M185: 3618.8 | N185: 3519.85 | O185: 6340775 | P185: 3.32%
A186: 176 | B186: Pharma | C186: TORNTPHARM | D186: 2024-05-30 | E186: 2748.25 | F186: 2750.03 | G186: 2703.22 | H186: 2658.18 | I186: 2611.37 | J186: 2795.07 | K186: 2841.88 | L186: 2886.92 | M186: 2796.85 | N186: 2705 | O186: 1309250 | P186: -3.77%
A187: 177 | B187: Textile | C187: TRENT | D187: 2024-05-30 | E187: 4555.95 | F187: 4586.28 | G187: 4474.67 | H187: 4393.38 | I187: 4281.77 | J187: 4667.57 | K187: 4779.18 | L187: 4860.47 | M187: 4697.9 | N187: 4505 | O187: 3580800 | P187: -3.46%
A188: 178 | B188: Automobile | C188: TVSMOTOR | D188: 2024-05-30 | E188: 2069.95 | F188: 2075.03 | G188: 2045.07 | H188: 2020.18 | I188: 1990.22 | J188: 2099.92 | K188: 2129.88 | L188: 2154.77 | M188: 2105 | N188: 2050.15 | O188: 5825400 | P188: -3.20%
A189: 179 | B189: FMCG | C189: UBL | D189: 2024-05-30 | E189: 1999.50 | F189: 2004.33 | G189: 1955.67 | H189: 1911.83 | I189: 1863.17 | J189: 2048.17 | K189: 2096.83 | L189: 2140.67 | M189: 2053 | N189: 1960.5 | O189: 3015600 | P189: -2.05%
A190: 180 | B190: Cement | C190: ULTRACEMCO | D190: 2024-05-30 | E190: 9898.05 | F190: 9955.00 | G190: 9800.05 | H190: 9702.05 | I190: 9547.10 | J190: 10053.00 | K190: 10207.95 | L190: 10305.95 | M190: 10109.95 | N190: 9857 | O190: 2048200 | P190: -2.06%
A191: 181 | B191: Chemicals | C191: UPL | D191: 2024-05-30 | E191: 498.10 | F191: 500.23 | G191: 492.17 | H191: 486.23 | I191: 478.17 | J191: 506.17 | K191: 514.23 | L191: 520.17 | M191: 508.3 | N191: 494.3 | O191: 40553500 | P191: 1.36%
A192: 182 | B192: Metals | C192: VEDL | D192: 2024-05-30 | E192: 418.85 | F192: 416.20 | G192: 409.80 | H192: 400.75 | I192: 394.35 | J192: 425.25 | K192: 431.65 | L192: 440.70 | M192: 422.6 | N192: 407.15 | O192: 98771200 | P192: -2.76%
A193: 183 | B193: Capital_Goods | C193: VOLTAS | D193: 2024-05-30 | E193: 1488.55 | F193: 1488.75 | G193: 1476.95 | H193: 1465.35 | I193: 1453.55 | J193: 1500.35 | K193: 1512.15 | L193: 1523.75 | M193: 1500.55 | N193: 1477.15 | O193: 5038800 | P193: -5.06%
A194: 184 | B194: Technology | C194: WIPRO | D194: 2024-05-30 | E194: 459.00 | F194: 459.58 | G194: 455.17 | H194: 451.33 | I194: 446.92 | J194: 463.42 | K194: 467.83 | L194: 471.67 | M194: 464 | N194: 455.75 | O194: 60442500 | P194: -1.26%
A195: 185 | B195: Media | C195: ZEEL | D195: 2024-05-30 | E195: 144.20 | F195: 144.17 | G195: 141.68 | H195: 139.17 | I195: 136.68 | J195: 146.68 | K195: 149.17 | L195: 151.68 | M195: 146.65 | N195: 141.65 | O195: 132981000 | P195: -1.50%
A196: 186 | B196: Pharma | C196: ZYDUSLIFE | D196: 2024-05-30 | E196: 1002.75 | F196: 998.63 | G196: 989.97 | H196: 977.18 | I196: 968.52 | J196: 1011.42 | K196: 1020.08 | L196: 1032.87 | M196: 1007.3 | N196: 985.85 | O196: 8887500 | P196: -0.59%
A221: Pivot Point: This is trigger point for intra day buy/sell based on the price range of the previous day
A222: As per the tool,the trader should take BUY position just above Pivot and keep the stop loss of pivot point and the first target would be Resistance 1(R1)
A223: If R1 is crossed then R2 becomes the next target with stop loss of at R1
A224: Similarly if price goes below pivot point then the trader should sell and keep a stop loss of pivot point and the first target would be S1
A225: If S1 is crossed then S2 becomes the next target with stop loss of at S1
A227: Disclaimer:
A228: This document has been prepared by the Retail Research Desk of Asit C Mehta
A229: Investment Intermediates Ltd. and is meant for use of the recipient only
A230: and is not for circulation. This document is not to be reported or
A231: copied or made available to others. It should not be considered to be
... 5 more rows

Sheet Cash Intra
M5: Back to Main Page
A6: FOR INTRA DAY TRADING | K6: =Main!B10 -> 2024-05-06
A8: Sr.no | C8: CLOSE RATE | D8: Pivot Point | E8: Supports | H8: Resistances
E9: S1 | F9: S2 | G9: S3 | H9: R1 | I9: R2 | J9: R3 | K9: HIGH | L9: LOW | M9: Total Trade Quanity in Lakhs
A10: 1 | B10: Nifty 50 | C10: 22475.85 | D10: 22539.53 | E10: 22284.37 | F10: 22092.88 | G10: 21837.72 | H10: 22731.02 | I10: 22986.18 | J10: 23177.67 | K10: 22794.70 | L10: 22348.05
A11: 2 | B11: Nifty Bank | C11: 48923.55 | D11: 49063.67 | E11: 48519.58 | F11: 48115.62 | G11: 47571.53 | H11: 49467.63 | I11: 50011.72 | J11: 50415.68 | K11: 49607.75 | L11: 48659.70
A12: 3 | B12: Nifty CPSE | C12: 6368.30 | D12: 6368.48 | E12: 6292.57 | F12: 6216.83 | G12: 6140.92 | H12: 6444.22 | I12: 6520.13 | J12: 6595.87 | K12: 6444.40 | L12: 6292.75
A13: 4 | B13: Nifty Infra | C13: 8519.50 | D13: 8548.82 | E13: 8423.48 | F13: 8327.47 | G13: 8202.13 | H13: 8644.83 | I13: 8770.17 | J13: 8866.18 | K13: 8674.15 | L13: 8452.80
A14: 5 | B14: Nifty IT | C14: 32908.40 | D14: 32967.97 | E14: 32630.93 | F14: 32353.47 | G14: 32016.43 | H14: 33245.43 | I14: 33582.47 | J14: 33859.93 | K14: 33305.00 | L14: 32690.50
A15: 6 | B15: Nifty PSE | C15: 10268.75 | D15: 10275.27 | E15: 10162.13 | F15: 10055.52 | G15: 9942.38 | H15: 10381.88 | I15: 10495.02 | J15: 10601.63 | K15: 10388.40 | L15: 10168.65
A16: 7 | B16: Nifty Midcap 50 | C16: 14189.30 | D16: 14200.65 | E16: 14102.55 | F16: 14015.80 | G16: 13917.70 | H16: 14287.40 | I16: 14385.50 | J16: 14472.25 | K16: 14298.75 | L16: 14113.90
A17: 8 | B17: ABB | C17: 6698.55 | D17: 6708.88 | E17: 6627.77 | F17: 6556.98 | G17: 6475.87 | H17: 6779.67 | I17: 6860.78 | J17: 6931.57 | K17: 6790 | L17: 6638.1 | M17: 3.37954
A18: 9 | B18: ACC | C18: 2531.4 | D18: 2532.82 | E18: 2501.63 | F18: 2471.87 | G18: 2440.68 | H18: 2562.58 | I18: 2593.77 | J18: 2623.53 | K18: 2564 | L18: 2503.05 | M18: 5.21596
A19: 10 | B19: APLAPOLLO | C19: 1587.3 | D19: 1590.17 | E19: 1567.33 | F19: 1547.37 | G19: 1524.53 | H19: 1610.13 | I19: 1632.97 | J19: 1652.93 | K19: 1613 | L19: 1570.2 | M19: 3.61205
A20: 11 | B20: AUBANK | C20: 645 | D20: 646.68 | E20: 637.82 | F20: 630.63 | G20: 621.77 | H20: 653.87 | I20: 662.73 | J20: 669.92 | K20: 655.55 | L20: 639.5 | M20: 36.62846
A21: 12 | B21: ADANIENSOL | C21: 1061.55 | D21: 1058.02 | E21: 1047.53 | F21: 1033.52 | G21: 1023.03 | H21: 1072.03 | I21: 1082.52 | J21: 1096.53 | K21: 1068.5 | L21: 1044 | M21: 26.66817
A22: 13 | B22: ADANIENT | C22: 2993.25 | D22: 3004.45 | E22: 2963.90 | F22: 2934.55 | G22: 2894.00 | H22: 3033.80 | I22: 3074.35 | J22: 3103.70 | K22: 3045 | L22: 2975.1 | M22: 14.72168
A23: 14 | B23: ADANIGREEN | C23: 1799.8 | D23: 1788.35 | E23: 1756.70 | F23: 1713.60 | G23: 1681.95 | H23: 1831.45 | I23: 1863.10 | J23: 1906.20 | K23: 1820 | L23: 1745.25 | M23: 9.06386
A24: 15 | B24: ADANIPORTS | C24: 1320.3 | D24: 1328.25 | E24: 1302.50 | F24: 1284.70 | G24: 1258.95 | H24: 1346.05 | I24: 1371.80 | J24: 1389.60 | K24: 1354 | L24: 1310.45 | M24: 35.28822
A25: 16 | B25: ADANIPOWER | C25: 604.7 | D25: 605.30 | E25: 595.55 | F25: 586.40 | G25: 576.65 | H25: 614.45 | I25: 624.20 | J25: 633.35 | K25: 615.05 | L25: 596.15 | M25: 31.25576
A26: 17 | B26: ATGL | C26: 930.4 | D26: 929.93 | E26: 922.97 | F26: 915.53 | G26: 908.57 | H26: 937.37 | I26: 944.33 | J26: 951.77 | K26: 936.9 | L26: 922.5 | M26: 24.73403
A27: 18 | B27: AWL | C27: 344.25 | D27: 346.25 | E27: 340.60 | F27: 336.95 | G27: 331.30 | H27: 349.90 | I27: 355.55 | J27: 359.20 | K27: 351.9 | L27: 342.6 | M27: 13.92909
A28: 19 | B28: ABCAPITAL | C28: 231.1 | D28: 231.20 | E28: 228.00 | F28: 224.90 | G28: 221.70 | H28: 234.30 | I28: 237.50 | J28: 240.60 | K28: 234.4 | L28: 228.1 | M28: 67.67686
A29: 20 | B29: ABFRL | C29: 254.15 | D29: 256.47 | E29: 248.13 | F29: 242.12 | G29: 233.78 | H29: 262.48 | I29: 270.82 | J29: 276.83 | K29: 264.8 | L29: 250.45 | M29: 76.06223
A30: 21 | B30: ALKEM | C30: 4904 | D30: 4865.20 | E30: 4800.40 | F30: 4696.80 | G30: 4632.00 | H30: 4968.80 | I30: 5033.60 | J30: 5137.20 | K30: 4930 | L30: 4761.6 | M30: 0.91122
A31: 22 | B31: AMBUJACEM | C31: 622.45 | D31: 624.40 | E31: 614.35 | F31: 606.25 | G31: 596.20 | H31: 632.50 | I31: 642.55 | J31: 650.65 | K31: 634.45 | L31: 616.3 | M31: 25.66478
A32: 23 | B32: APOLLOHOSP | C32: 6009.6 | D32: 5999.12 | E32: 5970.53 | F32: 5931.47 | G32: 5902.88 | H32: 6038.18 | I32: 6066.77 | J32: 6105.83 | K32: 6027.7 | L32: 5960.05 | M32: 5.63849
A33: 24 | B33: APOLLOTYRE | C33: 502.55 | D33: 502.85 | E33: 494.80 | F33: 487.05 | G33: 479.00 | H33: 510.60 | I33: 518.65 | J33: 526.40 | K33: 510.9 | L33: 495.1 | M33: 29.47783
A34: 25 | B34: ASHOKLEY | C34: 202.3 | D34: 202.57 | E34: 200.03 | F34: 197.77 | G34: 195.23 | H34: 204.83 | I34: 207.37 | J34: 209.63 | K34: 205.1 | L34: 200.3 | M34: 261.07306
A35: 26 | B35: ASIANPAINT | C35: 2929.75 | D35: 2945.33 | E35: 2893.67 | F35: 2857.58 | G35: 2805.92 | H35: 2981.42 | I35: 3033.08 | J35: 3069.17 | K35: 2997 | L35: 2909.25 | M35: 15.94445
A36: 27 | B36: ASTRAL | C36: 2069.5 | D36: 2065.83 | E36: 2047.77 | F36: 2026.03 | G36: 2007.97 | H36: 2087.57 | I36: 2105.63 | J36: 2127.37 | K36: 2083.9 | L36: 2044.1 | M36: 2.98394
A37: 28 | B37: AUROPHARMA | C37: 1151.65 | D37: 1155.42 | E37: 1141.23 | F37: 1130.82 | G37: 1116.63 | H37: 1165.83 | I37: 1180.02 | J37: 1190.43 | K37: 1169.6 | L37: 1145 | M37: 8.0267
A38: 29 | B38: DMART | C38: 4612.35 | D38: 4594.80 | E38: 4562.60 | F38: 4512.85 | G38: 4480.65 | H38: 4644.55 | I38: 4676.75 | J38: 4726.50 | K38: 4627 | L38: 4545.05 | M38: 4.36785
A39: 30 | B39: AXISBANK | C39: 1141.5 | D39: 1146.28 | E39: 1129.32 | F39: 1117.13 | G39: 1100.17 | H39: 1158.47 | I39: 1175.43 | J39: 1187.62 | K39: 1163.25 | L39: 1134.1 | M39: 99.93632
A40: 31 | B40: BAJAJ-AUTO | C40: 9105.6 | D40: 9142.85 | E40: 9027.10 | F40: 8948.60 | G40: 8832.85 | H40: 9221.35 | I40: 9337.10 | J40: 9415.60 | K40: 9258.6 | L40: 9064.35 | M40: 3.96042
A41: 32 | B41: BAJFINANCE | C41: 6931.5 | D41: 7079.48 | E41: 6758.97 | F41: 6586.43 | G41: 6265.92 | H41: 7252.02 | I41: 7572.53 | J41: 7745.07 | K41: 7400 | L41: 6906.95 | M41: 68.18601
A42: 33 | B42: BAJAJFINSV | C42: 1627.3 | D42: 1656.77 | E42: 1588.53 | F42: 1549.77 | G42: 1481.53 | H42: 1695.53 | I42: 1763.77 | J42: 1802.53 | K42: 1725 | L42: 1618 | M42: 52.27529
A43: 34 | B43: BAJAJHLDNG | C43: 8238.45 | D43: 8231.13 | E43: 8137.32 | F43: 8036.18 | G43: 7942.37 | H43: 8332.27 | I43: 8426.08 | J43: 8527.22 | K43: 8324.95 | L43: 8130 | M43: 0.46486
A44: 35 | B44: BALKRISIND | C44: 2444.55 | D44: 2447.35 | E44: 2420.20 | F44: 2395.85 | G44: 2368.70 | H44: 2471.70 | I44: 2498.85 | J44: 2523.20 | K44: 2474.5 | L44: 2423 | M44: 3.25984
A45: 36 | B45: BANDHANBNK | C45: 187.6 | D45: 189.02 | E45: 185.48 | F45: 183.37 | G45: 179.83 | H45: 191.13 | I45: 194.67 | J45: 196.78 | K45: 192.55 | L45: 186.9 | M45: 92.37768
A46: 37 | B46: BANKBARODA | C46: 275.75 | D46: 277.50 | E46: 272.50 | F46: 269.25 | G46: 264.25 | H46: 280.75 | I46: 285.75 | J46: 289.00 | K46: 282.5 | L46: 274.25 | M46: 195.68548
A47: 38 | B47: BANKINDIA | C47: 149.8 | D47: 150.35 | E47: 147.70 | F47: 145.60 | G47: 142.95 | H47: 152.45 | I47: 155.10 | J47: 157.20 | K47: 153 | L47: 148.25 | M47: 94.11856
A48: 39 | B48: BATAINDIA | C48: 1338.35 | D48: 1343.27 | E48: 1325.13 | F48: 1311.92 | G48: 1293.78 | H48: 1356.48 | I48: 1374.62 | J48: 1387.83 | K48: 1361.4 | L48: 1330.05 | M48: 3.12915
A49: 40 | B49: BERGEPAINT | C49: 523.25 | D49: 521.22 | E49: 515.53 | F49: 507.82 | G49: 502.13 | H49: 528.93 | I49: 534.62 | J49: 542.33 | K49: 526.9 | L49: 513.5 | M49: 14.72843
A50: 41 | B50: BDL | C50: 1959.6 | D50: 1963.53 | E50: 1938.07 | F50: 1916.53 | G50: 1891.07 | H50: 1985.07 | I50: 2010.53 | J50: 2032.07 | K50: 1989 | L50: 1942 | M50: 5.77539
A51: 42 | B51: BEL | C51: 234.1 | D51: 234.42 | E51: 230.83 | F51: 227.57 | G51: 223.98 | H51: 237.68 | I51: 241.27 | J51: 244.53 | K51: 238 | L51: 231.15 | M51: 157.82582
A52: 43 | B52: BHARATFORG | C52: 1252.2 | D52: 1258.45 | E52: 1235.95 | F52: 1219.70 | G52: 1197.20 | H52: 1274.70 | I52: 1297.20 | J52: 1313.45 | K52: 1280.95 | L52: 1242.2 | M52: 6.83589
A53: 44 | B53: BHEL | C53: 305 | D53: 305.80 | E53: 293.30 | F53: 281.60 | G53: 269.10 | H53: 317.50 | I53: 330.00 | J53: 341.70 | K53: 318.3 | L53: 294.1 | M53: 1307.58171
A54: 45 | B54: BPCL | C54: 629.85 | D54: 632.22 | E54: 622.73 | F54: 615.62 | G54: 606.13 | H54: 639.33 | I54: 648.82 | J54: 655.93 | K54: 641.7 | L54: 625.1 | M54: 44.98668
A55: 46 | B55: BHARTIARTL | C55: 1277.4 | D55: 1282.02 | E55: 1253.53 | F55: 1229.67 | G55: 1201.18 | H55: 1305.88 | I55: 1334.37 | J55: 1358.23 | K55: 1310.5 | L55: 1258.15 | M55: 112.90875
A56: 47 | B56: BIOCON | C56: 305.2 | D56: 306.55 | E56: 298.10 | F56: 291.00 | G56: 282.55 | H56: 313.65 | I56: 322.10 | J56: 329.20 | K56: 315 | L56: 299.45 | M56: 95.54032
A57: 48 | B57: BOSCHLTD | C57: 30093.45 | D57: 30265.40 | E57: 29760.85 | F57: 29428.25 | G57: 28923.70 | H57: 30598.00 | I57: 31102.55 | J57: 31435.15 | K57: 30769.95 | L57: 29932.8 | M57: 0.46475
A58: 49 | B58: BRITANNIA | C58: 4744.6 | D58: 4744.53 | E58: 4707.97 | F58: 4671.33 | G58: 4634.77 | H58: 4781.17 | I58: 4817.73 | J58: 4854.37 | K58: 4781.1 | L58: 4707.9 | M58: 2.62493
A59: 50 | B59: CGPOWER | C59: 548.2 | D59: 550.13 | E59: 544.12 | F59: 540.03 | G59: 534.02 | H59: 554.22 | I59: 560.23 | J59: 564.32 | K59: 556.15 | L59: 546.05 | M59: 9.94167
A60: 51 | B60: CANBK | C60: 625.65 | D60: 625.85 | E60: 618.80 | F60: 611.95 | G60: 604.90 | H60: 632.70 | I60: 639.75 | J60: 646.60 | K60: 632.9 | L60: 619 | M60: 39.76973
A61: 52 | B61: CHOLAFIN | C61: 1309.7 | D61: 1321.18 | E61: 1289.77 | F61: 1269.83 | G61: 1238.42 | H61: 1341.12 | I61: 1372.53 | J61: 1392.47 | K61: 1352.6 | L61: 1301.25 | M61: 34.78644
A62: 53 | B62: CIPLA | C62: 1424.75 | D62: 1424.65 | E62: 1415.30 | F62: 1405.85 | G62: 1396.50 | H62: 1434.10 | I62: 1443.45 | J62: 1452.90 | K62: 1434 | L62: 1415.2 | M62: 8.04513
A63: 54 | B63: COALINDIA | C63: 474.6 | D63: 466.60 | E63: 457.40 | F63: 440.20 | G63: 431.00 | H63: 483.80 | I63: 493.00 | J63: 510.20 | K63: 475.8 | L63: 449.4 | M63: 510.71947
A64: 55 | B64: COFORGE | C64: 4482.55 | D64: 4554.50 | E64: 4388.10 | F64: 4293.65 | G64: 4127.25 | H64: 4648.95 | I64: 4815.35 | J64: 4909.80 | K64: 4720.9 | L64: 4460.05 | M64: 49.92728
A65: 56 | B65: COLPAL | C65: 2799.15 | D65: 2805.38 | E65: 2772.77 | F65: 2746.38 | G65: 2713.77 | H65: 2831.77 | I65: 2864.38 | J65: 2890.77 | K65: 2838 | L65: 2779 | M65: 2.82927
A66: 57 | B66: CONCOR | C66: 1059.45 | D66: 1060.42 | E66: 1047.08 | F66: 1034.72 | G66: 1021.38 | H66: 1072.78 | I66: 1086.12 | J66: 1098.48 | K66: 1073.75 | L66: 1048.05 | M66: 27.23333
A67: 58 | B67: COROMANDEL | C67: 1208.1 | D67: 1206.37 | E67: 1197.73 | F67: 1187.37 | G67: 1178.73 | H67: 1216.73 | I67: 1225.37 | J67: 1235.73 | K67: 1215 | L67: 1196 | M67: 2.50533
A68: 59 | B68: CROMPTON | C68: 325.45 | D68: 325.62 | E68: 321.48 | F68: 317.52 | G68: 313.38 | H68: 329.58 | I68: 333.72 | J68: 337.68 | K68: 329.75 | L68: 321.65 | M68: 25.2533
A69: 60 | B69: CUMMINSIND | C69: 3406.85 | D69: 3365.45 | E69: 3252.50 | F69: 3098.15 | G69: 2985.20 | H69: 3519.80 | I69: 3632.75 | J69: 3787.10 | K69: 3478.4 | L69: 3211.1 | M69: 15.8526
A70: 61 | B70: DLF | C70: 878.2 | D70: 881.63 | E70: 859.37 | F70: 840.53 | G70: 818.27 | H70: 900.47 | I70: 922.73 | J70: 941.57 | K70: 903.9 | L70: 862.8 | M70: 52.7116
A71: 62 | B71: DABUR | C71: 531.75 | D71: 531.25 | E71: 524.50 | F71: 517.25 | G71: 510.50 | H71: 538.50 | I71: 545.25 | J71: 552.50 | K71: 538 | L71: 524 | M71: 70.0837
A72: 63 | B72: DALBHARAT | C72: 1796.1 | D72: 1796.38 | E72: 1781.27 | F72: 1766.43 | G72: 1751.32 | H72: 1811.22 | I72: 1826.33 | J72: 1841.17 | K72: 1811.5 | L72: 1781.55 | M72: 2.76434
A73: 64 | B73: DEEPAKNTR | C73: 2448.65 | D73: 2454.15 | E73: 2408.30 | F73: 2367.95 | G73: 2322.10 | H73: 2494.50 | I73: 2540.35 | J73: 2580.70 | K73: 2500 | L73: 2413.8 | M73: 2.57008
A74: 65 | B74: DELHIVERY | C74: 456.85 | D74: 456.45 | E74: 450.95 | F74: 445.05 | G74: 439.55 | H74: 462.35 | I74: 467.85 | J74: 473.75 | K74: 461.95 | L74: 450.55 | M74: 28.39904
A75: 66 | B75: DEVYANI | C75: 165.55 | D75: 165.63 | E75: 163.52 | F75: 161.48 | G75: 159.37 | H75: 167.67 | I75: 169.78 | J75: 171.82 | K75: 167.75 | L75: 163.6 | M75: 6.47989
A76: 67 | B76: DIVISLAB | C76: 3950.95 | D76: 3947.32 | E76: 3903.63 | F76: 3856.32 | G76: 3812.63 | H76: 3994.63 | I76: 4038.32 | J76: 4085.63 | K76: 3991 | L76: 3900 | M76: 3.48122
A77: 68 | B77: DIXON | C77: 8451.65 | D77: 8423.78 | E77: 8352.82 | F77: 8253.98 | G77: 8183.02 | H77: 8522.62 | I77: 8593.58 | J77: 8692.42 | K77: 8494.75 | L77: 8324.95 | M77: 2.61496
A78: 69 | B78: LALPATHLAB | C78: 2318.4 | D78: 2325.22 | E78: 2284.18 | F78: 2249.97 | G78: 2208.93 | H78: 2359.43 | I78: 2400.47 | J78: 2434.68 | K78: 2366.25 | L78: 2291 | M78: 1.12137
A79: 70 | B79: DRREDDY | C79: 6349.55 | D79: 6342.48 | E79: 6265.07 | F79: 6180.58 | G79: 6103.17 | H79: 6426.97 | I79: 6504.38 | J79: 6588.87 | K79: 6419.9 | L79: 6258 | M79: 5.81368
A80: 71 | B80: EICHERMOT | C80: 4599.25 | D80: 4611.62 | E80: 4567.63 | F80: 4536.02 | G80: 4492.03 | H80: 4643.23 | I80: 4687.22 | J80: 4718.83 | K80: 4655.6 | L80: 4580 | M80: 5.62484
A81: 72 | B81: ESCORTS | C81: 3484.55 | D81: 3461.75 | E81: 3420.15 | F81: 3355.75 | G81: 3314.15 | H81: 3526.15 | I81: 3567.75 | J81: 3632.15 | K81: 3503.35 | L81: 3397.35 | M81: 5.48565
A82: 73 | B82: NYKAA | C82: 173.7 | D82: 174.23 | E82: 170.97 | F82: 168.23 | G82: 164.97 | H82: 176.97 | I82: 180.23 | J82: 182.97 | K82: 177.5 | L82: 171.5 | M82: 23.9169
A83: 74 | B83: FEDERALBNK | C83: 165.95 | D83: 166.48 | E83: 163.47 | F83: 160.98 | G83: 157.97 | H83: 168.97 | I83: 171.98 | J83: 174.47 | K83: 169.5 | L83: 164 | M83: 177.5898
A84: 75 | B84: FACT | C84: 710.75 | D84: 715.38 | E84: 703.77 | F84: 696.78 | G84: 685.17 | H84: 722.37 | I84: 733.98 | J84: 740.97 | K84: 727 | L84: 708.4 | M84: 2.35909
A85: 76 | B85: FORTIS | C85: 451.95 | D85: 449.47 | E85: 442.68 | F85: 433.42 | G85: 426.63 | H85: 458.73 | I85: 465.52 | J85: 474.78 | K85: 456.25 | L85: 440.2 | M85: 15.18217
A86: 77 | B86: GAIL | C86: 203.8 | D86: 204.32 | E86: 200.13 | F86: 196.47 | G86: 192.28 | H86: 207.98 | I86: 212.17 | J86: 215.83 | K86: 208.5 | L86: 200.65 | M86: 157.81876
A87: 78 | B87: GLAND | C87: 1686.45 | D87: 1694.57 | E87: 1653.13 | F87: 1619.82 | G87: 1578.38 | H87: 1727.88 | I87: 1769.32 | J87: 1802.63 | K87: 1736 | L87: 1661.25 | M87: 2.54645
A88: 79 | B88: GODREJCP | C88: 1251.2 | D88: 1246.30 | E88: 1237.60 | F88: 1224.00 | G88: 1215.30 | H88: 1259.90 | I88: 1268.60 | J88: 1282.20 | K88: 1255 | L88: 1232.7 | M88: 7.28587
A89: 80 | B89: GODREJPROP | C89: 2569.7 | D89: 2547.23 | E89: 2509.47 | F89: 2449.23 | G89: 2411.47 | H89: 2607.47 | I89: 2645.23 | J89: 2705.47 | K89: 2585 | L89: 2487 | M89: 24.17565
A90: 81 | B90: GRASIM | C90: 2481.35 | D90: 2469.05 | E90: 2451.10 | F90: 2420.85 | G90: 2402.90 | H90: 2499.30 | I90: 2517.25 | J90: 2547.50 | K90: 2487 | L90: 2438.8 | M90: 11.92695
A91: 82 | B91: FLUOROCHEM | C91: 3580.65 | D91: 3600.42 | E91: 3535.83 | F91: 3491.02 | G91: 3426.43 | H91: 3645.23 | I91: 3709.82 | J91: 3754.63 | K91: 3665 | L91: 3555.6 | M91: 0.68164
A92: 83 | B92: GUJGASLTD | C92: 535.9 | D92: 536.23 | E92: 530.47 | F92: 525.03 | G92: 519.27 | H92: 541.67 | I92: 547.43 | J92: 552.87 | K92: 542 | L92: 530.8 | M92: 9.63669
A93: 84 | B93: HCLTECH | C93: 1348.05 | D93: 1350.53 | E93: 1331.07 | F93: 1314.08 | G93: 1294.62 | H93: 1367.52 | I93: 1386.98 | J93: 1403.97 | K93: 1370 | L93: 1333.55 | M93: 59.64228
A94: 85 | B94: HDFCAMC | C94: 3917.95 | D94: 3932.53 | E94: 3881.22 | F94: 3844.48 | G94: 3793.17 | H94: 3969.27 | I94: 4020.58 | J94: 4057.32 | K94: 3983.85 | L94: 3895.8 | M94: 2.65654
A95: 86 | B95: HDFCBANK | C95: 1519.6 | D95: 1522.47 | E95: 1504.33 | F95: 1489.07 | G95: 1470.93 | H95: 1537.73 | I95: 1555.87 | J95: 1571.13 | K95: 1540.6 | L95: 1507.2 | M95: 159.32621
A96: 87 | B96: HDFCLIFE | C96: 565.9 | D96: 570.98 | E96: 560.17 | F96: 554.43 | G96: 543.62 | H96: 576.72 | I96: 587.53 | J96: 593.27 | K96: 581.8 | L96: 565.25 | M96: 85.74215
A97: 88 | B97: HAVELLS | C97: 1663.55 | D97: 1670.62 | E97: 1641.48 | F97: 1619.42 | G97: 1590.28 | H97: 1692.68 | I97: 1721.82 | J97: 1743.88 | K97: 1699.75 | L97: 1648.55 | M97: 17.70873
A98: 89 | B98: HEROMOTOCO | C98: 4552.75 | D98: 4549.85 | E98: 4519.75 | F98: 4486.75 | G98: 4456.65 | H98: 4582.85 | I98: 4612.95 | J98: 4645.95 | K98: 4579.95 | L98: 4516.85 | M98: 3.47594
A99: 90 | B99: HINDALCO | C99: 647.1 | D99: 646.85 | E99: 638.65 | F99: 630.20 | G99: 622.00 | H99: 655.30 | I99: 663.50 | J99: 671.95 | K99: 655.05 | L99: 638.4 | M99: 106.33995
A100: 91 | B100: HAL | C100: 3920.2 | D100: 3922.40 | E100: 3877.80 | F100: 3835.40 | G100: 3790.80 | H100: 3964.80 | I100: 4009.40 | J100: 4051.80 | K100: 3967 | L100: 3880 | M100: 11.80369
A101: 92 | B101: HINDPETRO | C101: 534.1 | D101: 534.70 | E101: 528.50 | F101: 522.90 | G101: 516.70 | H101: 540.30 | I101: 546.50 | J101: 552.10 | K101: 540.9 | L101: 529.1 | M101: 57.78801
A102: 93 | B102: HINDUNILVR | C102: 2217.05 | D102: 2218.90 | E102: 2202.15 | F102: 2187.25 | G102: 2170.50 | H102: 2233.80 | I102: 2250.55 | J102: 2265.45 | K102: 2235.65 | L102: 2204 | M102: 25.95307
A103: 94 | B103: ICICIBANK | C103: 1142.05 | D103: 1144.97 | E103: 1132.53 | F103: 1123.02 | G103: 1110.58 | H103: 1154.48 | I103: 1166.92 | J103: 1176.43 | K103: 1157.4 | L103: 1135.45 | M103: 199.33604
A104: 95 | B104: ICICIGI | C104: 1673.4 | D104: 1674.18 | E104: 1640.67 | F104: 1607.93 | G104: 1574.42 | H104: 1706.92 | I104: 1740.43 | J104: 1773.17 | K104: 1707.7 | L104: 1641.45 | M104: 7.74101
A105: 96 | B105: ICICIPRULI | C105: 576.7 | D105: 578.15 | E105: 571.30 | F105: 565.90 | G105: 559.05 | H105: 583.55 | I105: 590.40 | J105: 595.80 | K105: 585 | L105: 572.75 | M105: 14.20649
A106: 97 | B106: IDFCFIRSTB | C106: 80.9 | D106: 81.18 | E106: 80.22 | F106: 79.53 | G106: 78.57 | H106: 81.87 | I106: 82.83 | J106: 83.52 | K106: 82.15 | L106: 80.5 | M106: 246.1215
A107: 98 | B107: ITC | C107: 436.45 | D107: 435.95 | E107: 431.85 | F107: 427.25 | G107: 423.15 | H107: 440.55 | I107: 444.65 | J107: 449.25 | K107: 440.05 | L107: 431.35 | M107: 229.04276
A108: 99 | B108: INDIANB | C108: 544 | D108: 542.93 | E108: 532.17 | F108: 520.33 | G108: 509.57 | H108: 554.77 | I108: 565.53 | J108: 577.37 | K108: 553.7 | L108: 531.1 | M108: 17.37781
A109: 100 | B109: INDHOTEL | C109: 570.6 | D109: 572.25 | E109: 563.50 | F109: 556.40 | G109: 547.65 | H109: 579.35 | I109: 588.10 | J109: 595.20 | K109: 581 | L109: 565.15 | M109: 20.71931
A110: 101 | B110: IOC | C110: 170.75 | D110: 171.68 | E110: 168.47 | F110: 166.18 | G110: 162.97 | H110: 173.97 | I110: 177.18 | J110: 179.47 | K110: 174.9 | L110: 169.4 | M110: 309.68452
A111: 102 | B111: IRCTC | C111: 1052.45 | D111: 1056.35 | E111: 1037.10 | F111: 1021.75 | G111: 1002.50 | H111: 1071.70 | I111: 1090.95 | J111: 1106.30 | K111: 1075.6 | L111: 1041 | M111: 25.04576
A112: 103 | B112: IRFC | C112: 157 | D112: 157.55 | E112: 154.60 | F112: 152.20 | G112: 149.25 | H112: 159.95 | I112: 162.90 | J112: 165.30 | K112: 160.5 | L112: 155.15 | M112: 312.88231
A113: 104 | B113: IGL | C113: 455.2 | D113: 457.40 | E113: 446.80 | F113: 438.40 | G113: 427.80 | H113: 465.80 | I113: 476.40 | J113: 484.80 | K113: 468 | L113: 449 | M113: 22.11729
A114: 105 | B114: INDUSTOWER | C114: 350.95 | D114: 352.32 | E114: 346.28 | F114: 341.62 | G114: 335.58 | H114: 356.98 | I114: 363.02 | J114: 367.68 | K114: 358.35 | L114: 347.65 | M114: 140.60465
A115: 106 | B115: INDUSINDBK | C115: 1483.7 | D115: 1491.57 | E115: 1465.18 | F115: 1446.67 | G115: 1420.28 | H115: 1510.08 | I115: 1536.47 | J115: 1554.98 | K115: 1517.95 | L115: 1473.05 | M115: 21.19368
A116: 107 | B116: NAUKRI | C116: 5997.85 | D116: 6013.62 | E116: 5927.23 | F116: 5856.62 | G116: 5770.23 | H116: 6084.23 | I116: 6170.62 | J116: 6241.23 | K116: 6100 | L116: 5943 | M116: 1.81263
A117: 108 | B117: INFY | C117: 1416.3 | D117: 1414.77 | E117: 1404.73 | F117: 1393.17 | G117: 1383.13 | H117: 1426.33 | I117: 1436.37 | J117: 1447.93 | K117: 1424.8 | L117: 1403.2 | M117: 88.42345
A118: 109 | B118: INDIGO | C118: 4019.25 | D118: 4065.45 | E118: 3951.80 | F118: 3884.35 | G118: 3770.70 | H118: 4132.90 | I118: 4246.55 | J118: 4314.00 | K118: 4179.1 | L118: 3998 | M118: 11.3407
A119: 110 | B119: IPCALAB | C119: 1337.7 | D119: 1340.27 | E119: 1321.48 | F119: 1305.27 | G119: 1286.48 | H119: 1356.48 | I119: 1375.27 | J119: 1391.48 | K119: 1359.05 | L119: 1324.05 | M119: 2.7843
A120: 111 | B120: JSWENERGY | C120: 642.2 | D120: 636.33 | E120: 626.77 | F120: 611.33 | G120: 601.77 | H120: 651.77 | I120: 661.33 | J120: 676.77 | K120: 645.9 | L120: 620.9 | M120: 25.85406
A121: 112 | B121: JSWSTEEL | C121: 874.2 | D121: 881.30 | E121: 858.90 | F121: 843.60 | G121: 821.20 | H121: 896.60 | I121: 919.00 | J121: 934.30 | K121: 903.7 | L121: 866 | M121: 36.72279
A122: 113 | B122: JINDALSTEL | C122: 931.5 | D122: 938.32 | E122: 916.63 | F122: 901.77 | G122: 880.08 | H122: 953.18 | I122: 974.87 | J122: 989.73 | K122: 960 | L122: 923.45 | M122: 30.3113
A123: 114 | B123: JUBLFOOD | C123: 462.75 | D123: 461.48 | E123: 455.97 | F123: 449.18 | G123: 443.67 | H123: 468.27 | I123: 473.78 | J123: 480.57 | K123: 467 | L123: 454.7 | M123: 26.012
A124: 115 | B124: KPITTECH | C124: 1537.25 | D124: 1537.15 | E124: 1520.30 | F124: 1503.35 | G124: 1486.50 | H124: 1554.10 | I124: 1570.95 | J124: 1587.90 | K124: 1554 | L124: 1520.2 | M124: 17.28068
A125: 116 | B125: KOTAKBANK | C125: 1546.7 | D125: 1559.48 | E125: 1531.07 | F125: 1515.43 | G125: 1487.02 | H125: 1575.12 | I125: 1603.53 | J125: 1619.17 | K125: 1587.9 | L125: 1543.85 | M125: 161.23589
A126: 117 | B126: LTF | C126: 167.75 | D126: 168.32 | E126: 165.23 | F126: 162.72 | G126: 159.63 | H126: 170.83 | I126: 173.92 | J126: 176.43 | K126: 171.4 | L126: 165.8 | M126: 45.61558
A127: 118 | B127: LTTS | C127: 4574 | D127: 4596.20 | E127: 4527.90 | F127: 4481.80 | G127: 4413.50 | H127: 4642.30 | I127: 4710.60 | J127: 4756.70 | K127: 4664.5 | L127: 4550.1 | M127: 1.83349
A128: 119 | B128: LICHSGFIN | C128: 654.05 | D128: 658.15 | E128: 640.40 | F128: 626.75 | G128: 609.00 | H128: 671.80 | I128: 689.55 | J128: 703.20 | K128: 675.9 | L128: 644.5 | M128: 26.50534
A129: 120 | B129: LTIM | C129: 4651.95 | D129: 4672.08 | E129: 4620.42 | F129: 4588.88 | G129: 4537.22 | H129: 4703.62 | I129: 4755.28 | J129: 4786.82 | K129: 4723.75 | L129: 4640.55 | M129: 3.99976
A130: 121 | B130: LT | C130: 3499.8 | D130: 3536.75 | E130: 3451.50 | F130: 3403.20 | G130: 3317.95 | H130: 3585.05 | I130: 3670.30 | J130: 3718.60 | K130: 3622 | L130: 3488.45 | M130: 40.79696
A131: 122 | B131: LAURUSLABS | C131: 447.35 | D131: 447.80 | E131: 441.60 | F131: 435.85 | G131: 429.65 | H131: 453.55 | I131: 459.75 | J131: 465.50 | K131: 454 | L131: 442.05 | M131: 10.14437
A132: 123 | B132: LICI | C132: 979.15 | D132: 984.57 | E132: 965.13 | F132: 951.12 | G132: 931.68 | H132: 998.58 | I132: 1018.02 | J132: 1032.03 | K132: 1004 | L132: 970.55 | M132: 22.07262
A133: 124 | B133: LUPIN | C133: 1654.75 | D133: 1661.92 | E133: 1640.83 | F133: 1626.92 | G133: 1605.83 | H133: 1675.83 | I133: 1696.92 | J133: 1710.83 | K133: 1683 | L133: 1648 | M133: 9.65116
A134: 125 | B134: MRF | C134: 128560.4 | D134: 130209.43 | E134: 126118.87 | F134: 123677.33 | G134: 119586.77 | H134: 132650.97 | I134: 136741.53 | J134: 139183.07 | K134: 134300 | L134: 127767.9 | M134: 0.32315
A135: 126 | B135: LODHA | C135: 1211 | D135: 1231.73 | E135: 1184.52 | F135: 1158.03 | G135: 1110.82 | H135: 1258.22 | I135: 1305.43 | J135: 1331.92 | K135: 1278.95 | L135: 1205.25 | M135: 6.10761
A136: 127 | B136: M&MFIN | C136: 267.1 | D136: 268.20 | E136: 263.30 | F136: 259.50 | G136: 254.60 | H136: 272.00 | I136: 276.90 | J136: 280.70 | K136: 273.1 | L136: 264.4 | M136: 47.25798
A137: 128 | B137: M&M | C137: 2193 | D137: 2191.78 | E137: 2173.57 | F137: 2154.13 | G137: 2135.92 | H137: 2211.22 | I137: 2229.43 | J137: 2248.87 | K137: 2210 | L137: 2172.35 | M137: 38.59227
A138: 129 | B138: MANKIND | C138: 2314.9 | D138: 2324.38 | E138: 2295.52 | F138: 2276.13 | G138: 2247.27 | H138: 2343.77 | I138: 2372.63 | J138: 2392.02 | K138: 2353.25 | L138: 2305 | M138: 2.2795
A139: 130 | B139: MARICO | C139: 516.9 | D139: 516.27 | E139: 511.08 | F139: 505.27 | G139: 500.08 | H139: 522.08 | I139: 527.27 | J139: 533.08 | K139: 521.45 | L139: 510.45 | M139: 11.04998
A140: 131 | B140: MARUTI | C140: 12492.15 | D140: 12577.85 | E140: 12325.70 | F140: 12159.25 | G140: 11907.10 | H140: 12744.30 | I140: 12996.45 | J140: 13162.90 | K140: 12830 | L140: 12411.4 | M140: 8.3499
A141: 132 | B141: MFSL | C141: 1001.65 | D141: 1010.55 | E141: 989.10 | F141: 976.55 | G141: 955.10 | H141: 1023.10 | I141: 1044.55 | J141: 1057.10 | K141: 1032 | L141: 998 | M141: 10.05079
A142: 133 | B142: MAXHEALTH | C142: 813.45 | D142: 815.58 | E142: 803.32 | F142: 793.18 | G142: 780.92 | H142: 825.72 | I142: 837.98 | J142: 848.12 | K142: 827.85 | L142: 805.45 | M142: 32.94764
A143: 134 | B143: MAZDOCK | C143: 2364.7 | D143: 2371.90 | E143: 2313.80 | F143: 2262.90 | G143: 2204.80 | H143: 2422.80 | I143: 2480.90 | J143: 2531.80 | K143: 2430 | L143: 2321 | M143: 19.8321
A144: 135 | B144: MSUMI | C144: 68.45 | D144: 68.53 | E144: 67.82 | F144: 67.18 | G144: 66.47 | H144: 69.17 | I144: 69.88 | J144: 70.52 | K144: 69.25 | L144: 67.9 | M144: 35.68212
A145: 136 | B145: MPHASIS | C145: 2291.9 | D145: 2309.27 | E145: 2268.63 | F145: 2245.37 | G145: 2204.73 | H145: 2332.53 | I145: 2373.17 | J145: 2396.43 | K145: 2349.9 | L145: 2286 | M145: 2.70305
A146: 137 | B146: MUTHOOTFIN | C146: 1700.95 | D146: 1709.08 | E146: 1675.87 | F146: 1650.78 | G146: 1617.57 | H146: 1734.17 | I146: 1767.38 | J146: 1792.47 | K146: 1742.3 | L146: 1684 | M146: 2.91478
A147: 138 | B147: NHPC | C147: 99.25 | D147: 99.30 | E147: 97.25 | F147: 95.25 | G147: 93.20 | H147: 101.30 | I147: 103.35 | J147: 105.35 | K147: 101.35 | L147: 97.3 | M147: 1139.71395
A148: 139 | B148: NMDC | C148: 268.95 | D148: 265.67 | E148: 261.43 | F148: 253.92 | G148: 249.68 | H148: 273.18 | I148: 277.42 | J148: 284.93 | K148: 269.9 | L148: 258.15 | M148: 389.74667
A149: 140 | B149: NTPC | C149: 364.95 | D149: 368.57 | E149: 356.73 | F149: 348.52 | G149: 336.68 | H149: 376.78 | I149: 388.62 | J149: 396.83 | K149: 380.4 | L149: 360.35 | M149: 268.44664
A150: 141 | B150: NAVINFLUOR | C150: 3435.65 | D150: 3427.40 | E150: 3389.80 | F150: 3343.95 | G150: 3306.35 | H150: 3473.25 | I150: 3510.85 | J150: 3556.70 | K150: 3465 | L150: 3381.55 | M150: 4.98125
A151: 142 | B151: NESTLEIND | C151: 2456.1 | D151: 2471.80 | E151: 2420.55 | F151: 2385.00 | G151: 2333.75 | H151: 2507.35 | I151: 2558.60 | J151: 2594.15 | K151: 2523.05 | L151: 2436.25 | M151: 11.2873
A152: 143 | B152: OBEROIRLTY | C152: 1472.45 | D152: 1494.22 | E152: 1443.43 | F152: 1414.42 | G152: 1363.63 | H152: 1523.23 | I152: 1574.02 | J152: 1603.03 | K152: 1545 | L152: 1465.2 | M152: 5.8162
A153: 144 | B153: ONGC | C153: 286.1 | D153: 287.68 | E153: 282.42 | F153: 278.73 | G153: 273.47 | H153: 291.37 | I153: 296.63 | J153: 300.32 | K153: 292.95 | L153: 284 | M153: 289.13016
A154: 145 | B154: OIL | C154: 630.65 | D154: 631.50 | E154: 620.00 | F154: 609.35 | G154: 597.85 | H154: 642.15 | I154: 653.65 | J154: 664.30 | K154: 643 | L154: 620.85 | M154: 42.78873
A155: 146 | B155: PAYTM | C155: 369.9 | D155: 371.15 | E155: 366.80 | F155: 363.70 | G155: 359.35 | H155: 374.25 | I155: 378.60 | J155: 381.70 | K155: 375.5 | L155: 368.05 | M155: 9.83852
A156: 147 | B156: POLICYBZR | C156: 1293.85 | D156: 1286.20 | E156: 1261.70 | F156: 1229.55 | G156: 1205.05 | H156: 1318.35 | I156: 1342.85 | J156: 1375.00 | K156: 1310.7 | L156: 1254.05 | M156: 8.74727
A157: 148 | B157: PIIND | C157: 3594.25 | D157: 3603.40 | E157: 3550.85 | F157: 3507.45 | G157: 3454.90 | H157: 3646.80 | I157: 3699.35 | J157: 3742.75 | K157: 3655.95 | L157: 3560 | M157: 3.18934
A158: 149 | B158: PAGEIND | C158: 34792.9 | D158: 34822.32 | E158: 34494.63 | F158: 34196.37 | G158: 33868.68 | H158: 35120.58 | I158: 35448.27 | J158: 35746.53 | K158: 35150 | L158: 34524.05 | M158: 0.17696
A159: 150 | B159: PATANJALI | C159: 1447.4 | D159: 1445.47 | E159: 1425.93 | F159: 1404.47 | G159: 1384.93 | H159: 1466.93 | I159: 1486.47 | J159: 1507.93 | K159: 1465 | L159: 1424 | M159: 5.00578
A160: 151 | B160: PERSISTENT | C160: 3366.85 | D160: 3391.07 | E160: 3336.78 | F160: 3306.72 | G160: 3252.43 | H160: 3421.13 | I160: 3475.42 | J160: 3505.48 | K160: 3445.35 | L160: 3361 | M160: 3.45291
A161: 152 | B161: PETRONET | C161: 313.8 | D161: 315.92 | E161: 308.68 | F161: 303.57 | G161: 296.33 | H161: 321.03 | I161: 328.27 | J161: 333.38 | K161: 323.15 | L161: 310.8 | M161: 80.79399
A162: 153 | B162: PIDILITIND | C162: 2952.8 | D162: 2971.10 | E162: 2918.70 | F162: 2884.60 | G162: 2832.20 | H162: 3005.20 | I162: 3057.60 | J162: 3091.70 | K162: 3023.5 | L162: 2937 | M162: 3.27375
A163: 154 | B163: PEL | C163: 962.2 | D163: 957.30 | E163: 948.60 | F163: 935.00 | G163: 926.30 | H163: 970.90 | I163: 979.60 | J163: 993.20 | K163: 966 | L163: 943.7 | M163: 26.89514
A164: 155 | B164: POLYCAB | C164: 5832.15 | D164: 5817.68 | E164: 5765.47 | F164: 5698.78 | G164: 5646.57 | H164: 5884.37 | I164: 5936.58 | J164: 6003.27 | K164: 5869.9 | L164: 5751 | M164: 3.12177
A165: 156 | B165: POONAWALLA | C165: 483.7 | D165: 487.07 | E165: 478.13 | F165: 472.57 | G165: 463.63 | H165: 492.63 | I165: 501.57 | J165: 507.13 | K165: 496 | L165: 481.5 | M165: 12.46656
A166: 157 | B166: PFC | C166: 480.45 | D166: 478.03 | E166: 470.57 | F166: 460.68 | G166: 453.22 | H166: 487.92 | I166: 495.38 | J166: 505.27 | K166: 485.5 | L166: 468.15 | M166: 289.9618
A167: 158 | B167: POWERGRID | C167: 310.85 | D167: 311.73 | E167: 307.37 | F167: 303.88 | G167: 299.52 | H167: 315.22 | I167: 319.58 | J167: 323.07 | K167: 316.1 | L167: 308.25 | M167: 270.74447
A168: 159 | B168: PRESTIGE | C168: 1460.6 | D168: 1446.45 | E168: 1414.65 | F168: 1368.70 | G168: 1336.90 | H168: 1492.40 | I168: 1524.20 | J168: 1570.15 | K168: 1478.25 | L168: 1400.5 | M168: 26.27902
A169: 160 | B169: PGHH | C169: 15905.25 | D169: 15931.90 | E169: 15773.35 | F169: 15641.45 | G169: 15482.90 | H169: 16063.80 | I169: 16222.35 | J169: 16354.25 | K169: 16090.45 | L169: 15800 | M169: 0.03207
A170: 161 | B170: PNB | C170: 135.8 | D170: 136.45 | E170: 133.60 | F170: 131.40 | G170: 128.55 | H170: 138.65 | I170: 141.50 | J170: 143.70 | K170: 139.3 | L170: 134.25 | M170: 613.53686
A171: 162 | B171: RECLTD | C171: 557.8 | D171: 559.43 | E171: 551.72 | F171: 545.63 | G171: 537.92 | H171: 565.52 | I171: 573.23 | J171: 579.32 | K171: 567.15 | L171: 553.35 | M171: 451.05471
A172: 163 | B172: RVNL | C172: 284.1 | D172: 285.40 | E172: 280.30 | F172: 276.50 | G172: 271.40 | H172: 289.20 | I172: 294.30 | J172: 298.10 | K172: 290.5 | L172: 281.6 | M172: 92.83077
A173: 164 | B173: RELIANCE | C173: 2868 | D173: 2883.40 | E173: 2816.90 | F173: 2765.80 | G173: 2699.30 | H173: 2934.50 | I173: 3001.00 | J173: 3052.10 | K173: 2949.9 | L173: 2832.3 | M173: 86.13479
A174: 165 | B174: SBICARD | C174: 722.25 | D174: 725.68 | E174: 716.42 | F174: 710.58 | G174: 701.32 | H174: 731.52 | I174: 740.78 | J174: 746.62 | K174: 734.95 | L174: 719.85 | M174: 8.67523
A175: 166 | B175: SBILIFE | C175: 1443.25 | D175: 1451.45 | E175: 1430.20 | F175: 1417.15 | G175: 1395.90 | H175: 1464.50 | I175: 1485.75 | J175: 1498.80 | K175: 1472.7 | L175: 1438.4 | M175: 13.55425
A176: 167 | B176: SRF | C176: 2567.65 | D176: 2598.87 | E176: 2503.78 | F176: 2439.92 | G176: 2344.83 | H176: 2662.73 | I176: 2757.82 | J176: 2821.68 | K176: 2693.95 | L176: 2535 | M176: 6.40886
A177: 168 | B177: MOTHERSON | C177: 131.2 | D177: 131.03 | E177: 129.82 | F177: 128.43 | G177: 127.22 | H177: 132.42 | I177: 133.63 | J177: 135.02 | K177: 132.25 | L177: 129.65 | M177: 97.48819
A178: 169 | B178: SHREECEM | C178: 25746.55 | D178: 25523.42 | E178: 25151.03 | F178: 24555.52 | G178: 24183.13 | H178: 26118.93 | I178: 26491.32 | J178: 27086.83 | K178: 25895.8 | L178: 24927.9 | M178: 2.21844
A179: 170 | B179: SHRIRAMFIN | C179: 2588.55 | D179: 2607.23 | E179: 2556.47 | F179: 2524.38 | G179: 2473.62 | H179: 2639.32 | I179: 2690.08 | J179: 2722.17 | K179: 2658 | L179: 2575.15 | M179: 15.24429
A180: 171 | B180: SIEMENS | C180: 5928.05 | D180: 5914.13 | E180: 5880.27 | F180: 5832.48 | G180: 5798.62 | H180: 5961.92 | I180: 5995.78 | J180: 6043.57 | K180: 5948 | L180: 5866.35 | M180: 1.3591
A181: 172 | B181: SONACOMS | C181: 610.25 | D181: 612.72 | E181: 604.53 | F181: 598.82 | G181: 590.63 | H181: 618.43 | I181: 626.62 | J181: 632.33 | K181: 620.9 | L181: 607 | M181: 22.2676
A182: 173 | B182: SBIN | C182: 831.45 | D182: 829.22 | E182: 822.23 | F182: 813.02 | G182: 806.03 | H182: 838.43 | I182: 845.42 | J182: 854.63 | K182: 836.2 | L182: 820 | M182: 226.67634
A183: 174 | B183: SAIL | C183: 167.95 | D183: 167.83 | E183: 164.72 | F183: 161.48 | G183: 158.37 | H183: 171.07 | I183: 174.18 | J183: 177.42 | K183: 170.95 | L183: 164.6 | M183: 717.34933
A184: 175 | B184: SUNPHARMA | C184: 1511.15 | D184: 1516.55 | E184: 1496.10 | F184: 1481.05 | G184: 1460.60 | H184: 1531.60 | I184: 1552.05 | J184: 1567.10 | K184: 1537 | L184: 1501.5 | M184: 31.83226
A185: 176 | B185: SUNTV | C185: 655.95 | D185: 654.55 | E185: 644.20 | F185: 632.45 | G185: 622.10 | H185: 666.30 | I185: 676.65 | J185: 688.40 | K185: 664.9 | L185: 642.8 | M185: 5.87757
A186: 177 | B186: SYNGENE | C186: 680.5 | D186: 684.27 | E186: 670.53 | F186: 660.57 | G186: 646.83 | H186: 694.23 | I186: 707.97 | J186: 717.93 | K186: 698 | L186: 674.3 | M186: 5.9975
A187: 178 | B187: TVSMOTOR | C187: 2052.75 | D187: 2058.15 | E187: 2030.45 | F187: 2008.15 | G187: 1980.45 | H187: 2080.45 | I187: 2108.15 | J187: 2130.45 | K187: 2085.85 | L187: 2035.85 | M187: 5.27068
A188: 179 | B188: TATACHEM | C188: 1090.8 | D188: 1094.20 | E188: 1079.00 | F188: 1067.20 | G188: 1052.00 | H188: 1106.00 | I188: 1121.20 | J188: 1133.00 | K188: 1109.4 | L188: 1082.4 | M188: 10.26369
A189: 180 | B189: TATACOMM | C189: 1721.75 | D189: 1730.82 | E189: 1703.13 | F189: 1684.52 | G189: 1656.83 | H189: 1749.43 | I189: 1777.12 | J189: 1795.73 | K189: 1758.5 | L189: 1712.2 | M189: 3.4321
A190: 181 | B190: TCS | C190: 3843.4 | D190: 3844.87 | E190: 3796.13 | F190: 3748.87 | G190: 3700.13 | H190: 3892.13 | I190: 3940.87 | J190: 3988.13 | K190: 3893.6 | L190: 3797.6 | M190: 29.62234
A191: 182 | B191: TATACONSUM | C191: 1094.3 | D191: 1099.67 | E191: 1084.43 | F191: 1074.57 | G191: 1059.33 | H191: 1109.53 | I191: 1124.77 | J191: 1134.63 | K191: 1114.9 | L191: 1089.8 | M191: 29.35813
A192: 183 | B192: TATAELXSI | C192: 7111.75 | D192: 7129.92 | E192: 7061.83 | F192: 7011.92 | G192: 6943.83 | H192: 7179.83 | I192: 7247.92 | J192: 7297.83 | K192: 7198 | L192: 7080 | M192: 0.82962
A193: 184 | B193: TATAMTRDVR | C193: 684.4 | D193: 685.75 | E193: 671.50 | F193: 658.60 | G193: 644.35 | H193: 698.65 | I193: 712.90 | J193: 725.80 | K193: 700 | L193: 672.85 | M193: 11.06465
A194: 185 | B194: TATAMOTORS | C194: 1013.4 | D194: 1016.53 | E194: 992.87 | F194: 972.33 | G194: 948.67 | H194: 1037.07 | I194: 1060.73 | J194: 1081.27 | K194: 1040.2 | L194: 996 | M194: 118.71773
A195: 186 | B195: TATAPOWER | C195: 454.75 | D195: 455.82 | E195: 447.43 | F195: 440.12 | G195: 431.73 | H195: 463.13 | I195: 471.52 | J195: 478.83 | K195: 464.2 | L195: 448.5 | M195: 168.25776
A196: 187 | B196: TATASTEEL | C196: 166.5 | D196: 167.47 | E196: 164.18 | F196: 161.87 | G196: 158.58 | H196: 169.78 | I196: 173.07 | J196: 175.38 | K196: 170.75 | L196: 165.15 | M196: 625.73586
A197: 188 | B197: TECHM | C197: 1250.45 | D197: 1255.17 | E197: 1238.33 | F197: 1226.22 | G197: 1209.38 | H197: 1267.28 | I197: 1284.12 | J197: 1296.23 | K197: 1272 | L197: 1243.05 | M197: 23.22455
A198: 189 | B198: RAMCOCEM | C198: 772.3 | D198: 777.63 | E198: 765.32 | F198: 758.33 | G198: 746.02 | H198: 784.62 | I198: 796.93 | J198: 803.92 | K198: 789.95 | L198: 770.65 | M198: 6.21411
A199: 190 | B199: TITAN | C199: 3533.9 | D199: 3541.63 | E199: 3484.27 | F199: 3434.63 | G199: 3377.27 | H199: 3591.27 | I199: 3648.63 | J199: 3698.27 | K199: 3599 | L199: 3492 | M199: 16.81592
A200: 191 | B200: TORNTPHARM | C200: 2734.7 | D200: 2729.95 | E200: 2677.05 | F200: 2619.40 | G200: 2566.50 | H200: 2787.60 | I200: 2840.50 | J200: 2898.15 | K200: 2782.85 | L200: 2672.3 | M200: 9.39897
A201: 192 | B201: TORNTPOWER | C201: 1484.25 | D201: 1494.53 | E201: 1466.07 | F201: 1447.88 | G201: 1419.42 | H201: 1512.72 | I201: 1541.18 | J201: 1559.37 | K201: 1523 | L201: 1476.35 | M201: 4.6221
A202: 193 | B202: TRENT | C202: 4523.65 | D202: 4562.07 | E202: 4443.58 | F202: 4363.52 | G202: 4245.03 | H202: 4642.13 | I202: 4760.62 | J202: 4840.68 | K202: 4680.55 | L202: 4482 | M202: 13.13008
A203: 194 | B203: TIINDIA | C203: 3819.45 | D203: 3799.42 | E203: 3773.03 | F203: 3726.62 | G203: 3700.23 | H203: 3845.83 | I203: 3872.22 | J203: 3918.63 | K203: 3825.8 | L203: 3753 | M203: 1.78775
A204: 195 | B204: UPL | C204: 493.6 | D204: 495.87 | E204: 487.78 | F204: 481.97 | G204: 473.88 | H204: 501.68 | I204: 509.77 | J204: 515.58 | K204: 503.95 | L204: 490.05 | M204: 21.96892
A205: 196 | B205: ULTRACEMCO | C205: 9816.3 | D205: 9875.22 | E205: 9720.43 | F205: 9624.57 | G205: 9469.78 | H205: 9971.08 | I205: 10125.87 | J205: 10221.73 | K205: 10030 | L205: 9779.35 | M205: 5.17348
... 30 more rows

Sheet MidCap Intra
L5: Back To Main Page
A6: FOR INTRA DAY TRADING | K6: =Main!B10 -> 2024-05-06
A9: Sr.no | B9: Scrip | C9: CLOSE RATE | D9: Pivot Point | E9: Supports | H9: Resistances
E10: S1 | F10: S2 | G10: S3 | H10: R1 | I10: R2 | J10: R3 | K10: HIGH | L10: LOW | M10: Total Trade Quanity in Lakhs
A11: 1 | B11: 360ONE | C11: 791.95 | D11: 785.45 | E11: 774.55 | F11: 757.15 | G11: 746.25 | H11: 802.85 | I11: 813.75 | J11: 831.15 | K11: 796.35 | L11: 768.05 | M11: 7.31424
A12: 2 | B12: 3MINDIA | C12: 29696.8 | D12: 29748.65 | E12: 29299.30 | F12: 28901.80 | G12: 28452.45 | H12: 30146.15 | I12: 30595.50 | J12: 30993.00 | K12: 30198 | L12: 29351.15 | M12: 0.1355
A13: 3 | B13: ABB | C13: 6698.55 | D13: 6708.88 | E13: 6627.77 | F13: 6556.98 | G13: 6475.87 | H13: 6779.67 | I13: 6860.78 | J13: 6931.57 | K13: 6790 | L13: 6638.1 | M13: 3.37954
A14: 4 | B14: ACC | C14: 2531.4 | D14: 2532.82 | E14: 2501.63 | F14: 2471.87 | G14: 2440.68 | H14: 2562.58 | I14: 2593.77 | J14: 2623.53 | K14: 2564 | L14: 2503.05 | M14: 5.21596
A15: 5 | B15: AIAENG | C15: 3708.5 | D15: 3729.50 | E15: 3679.00 | F15: 3649.50 | G15: 3599.00 | H15: 3759.00 | I15: 3809.50 | J15: 3839.00 | K15: 3780 | L15: 3700 | M15: 6.22763
A16: 6 | B16: APLAPOLLO | C16: 1587.3 | D16: 1590.17 | E16: 1567.33 | F16: 1547.37 | G16: 1524.53 | H16: 1610.13 | I16: 1632.97 | J16: 1652.93 | K16: 1613 | L16: 1570.2 | M16: 3.61205
A17: 7 | B17: AUBANK | C17: 645 | D17: 646.68 | E17: 637.82 | F17: 630.63 | G17: 621.77 | H17: 653.87 | I17: 662.73 | J17: 669.92 | K17: 655.55 | L17: 639.5 | M17: 36.62846
A18: 8 | B18: AARTIDRUGS | C18: 502.6 | D18: 500.78 | E18: 495.12 | F18: 487.63 | G18: 481.97 | H18: 508.27 | I18: 513.93 | J18: 521.42 | K18: 506.45 | L18: 493.3 | M18: 0.9778
A19: 9 | B19: AARTIIND | C19: 739.5 | D19: 742.63 | E19: 730.27 | F19: 721.03 | G19: 708.67 | H19: 751.87 | I19: 764.23 | J19: 773.47 | K19: 755 | L19: 733.4 | M19: 8.63447
A20: 10 | B20: AAVAS | C20: 1586.05 | D20: 1585.67 | E20: 1566.38 | F20: 1546.72 | G20: 1527.43 | H20: 1605.33 | I20: 1624.62 | J20: 1644.28 | K20: 1604.95 | L20: 1566 | M20: 1.37496
A21: 11 | B21: ABBOTINDIA | C21: 26146.6 | D21: 26350.90 | E21: 25851.85 | F21: 25557.10 | G21: 25058.05 | H21: 26645.65 | I21: 27144.70 | J21: 27439.45 | K21: 26849.95 | L21: 26056.15 | M21: 0.15129
A22: 12 | B22: ADANIENSOL | C22: 1061.55 | D22: 1058.02 | E22: 1047.53 | F22: 1033.52 | G22: 1023.03 | H22: 1072.03 | I22: 1082.52 | J22: 1096.53 | K22: 1068.5 | L22: 1044 | M22: 26.66817
A23: 13 | B23: ADANIENT | C23: 2993.25 | D23: 3004.45 | E23: 2963.90 | F23: 2934.55 | G23: 2894.00 | H23: 3033.80 | I23: 3074.35 | J23: 3103.70 | K23: 3045 | L23: 2975.1 | M23: 14.72168
A24: 14 | B24: ADANIGREEN | C24: 1799.8 | D24: 1788.35 | E24: 1756.70 | F24: 1713.60 | G24: 1681.95 | H24: 1831.45 | I24: 1863.10 | J24: 1906.20 | K24: 1820 | L24: 1745.25 | M24: 9.06386
A25: 15 | B25: ADANIPORTS | C25: 1320.3 | D25: 1328.25 | E25: 1302.50 | F25: 1284.70 | G25: 1258.95 | H25: 1346.05 | I25: 1371.80 | J25: 1389.60 | K25: 1354 | L25: 1310.45 | M25: 35.28822
A26: 16 | B26: ADANIPOWER | C26: 604.7 | D26: 605.30 | E26: 595.55 | F26: 586.40 | G26: 576.65 | H26: 614.45 | I26: 624.20 | J26: 633.35 | K26: 615.05 | L26: 596.15 | M26: 31.25576
A27: 17 | B27: ATGL | C27: 930.4 | D27: 929.93 | E27: 922.97 | F27: 915.53 | G27: 908.57 | H27: 937.37 | I27: 944.33 | J27: 951.77 | K27: 936.9 | L27: 922.5 | M27: 24.73403
A28: 18 | B28: AWL | C28: 344.25 | D28: 346.25 | E28: 340.60 | F28: 336.95 | G28: 331.30 | H28: 349.90 | I28: 355.55 | J28: 359.20 | K28: 351.9 | L28: 342.6 | M28: 13.92909
A29: 19 | B29: ABCAPITAL | C29: 231.1 | D29: 231.20 | E29: 228.00 | F29: 224.90 | G29: 221.70 | H29: 234.30 | I29: 237.50 | J29: 240.60 | K29: 234.4 | L29: 228.1 | M29: 67.67686
A30: 20 | B30: ABFRL | C30: 254.15 | D30: 256.47 | E30: 248.13 | F30: 242.12 | G30: 233.78 | H30: 262.48 | I30: 270.82 | J30: 276.83 | K30: 264.8 | L30: 250.45 | M30: 76.06223
A31: 21 | B31: AEGISCHEM | C31: 627.6 | D31: 634.60 | E31: 611.20 | F31: 594.80 | G31: 571.40 | H31: 651.00 | I31: 674.40 | J31: 690.80 | K31: 658 | L31: 618.2 | M31: 9.7882
A32: 22 | B32: AETHER | C32: 830.15 | D32: 830.35 | E32: 823.80 | F32: 817.45 | G32: 810.90 | H32: 836.70 | I32: 843.25 | J32: 849.60 | K32: 836.9 | L32: 824 | M32: 0.30038
A33: 23 | B33: AFFLE | C33: 1108.65 | D33: 1120.22 | E33: 1090.43 | F33: 1072.22 | G33: 1042.43 | H33: 1138.43 | I33: 1168.22 | J33: 1186.43 | K33: 1150 | L33: 1102 | M33: 2.03698
A34: 24 | B34: AJANTPHARM | C34: 2383.85 | D34: 2427.97 | E34: 2315.93 | F34: 2248.02 | G34: 2135.98 | H34: 2495.88 | I34: 2607.92 | J34: 2675.83 | K34: 2540 | L34: 2360.05 | M34: 27.7132
A35: 25 | B35: APLLTD | C35: 1024.3 | D35: 1022.00 | E35: 993.20 | F35: 962.10 | G35: 933.30 | H35: 1053.10 | I35: 1081.90 | J35: 1113.00 | K35: 1050.8 | L35: 990.9 | M35: 6.30919
A36: 26 | B36: ALKEM | C36: 4904 | D36: 4865.20 | E36: 4800.40 | F36: 4696.80 | G36: 4632.00 | H36: 4968.80 | I36: 5033.60 | J36: 5137.20 | K36: 4930 | L36: 4761.6 | M36: 0.91122
A37: 27 | B37: ALKYLAMINE | C37: 2046.4 | D37: 2057.47 | E37: 2016.93 | F37: 1987.47 | G37: 1946.93 | H37: 2086.93 | I37: 2127.47 | J37: 2156.93 | K37: 2098 | L37: 2028 | M37: 0.26502
A38: 28 | B38: ALLCARGO | C38: 71.8 | D38: 71.80 | E38: 70.65 | F38: 69.50 | G38: 68.35 | H38: 72.95 | I38: 74.10 | J38: 75.25 | K38: 72.95 | L38: 70.65 | M38: 23.66847
A39: 29 | B39: ALOKINDS | C39: 27 | D39: 27.15 | E39: 26.65 | F39: 26.30 | G39: 25.80 | H39: 27.50 | I39: 28.00 | J39: 28.35 | K39: 27.65 | L39: 26.8 | M39: 37.1197
A40: 30 | B40: ARE&M | C40: 1128.1 | D40: 1124.28 | E40: 1113.82 | F40: 1099.53 | G40: 1089.07 | H40: 1138.57 | I40: 1149.03 | J40: 1163.32 | K40: 1134.75 | L40: 1110 | M40: 8.63363
A41: 31 | B41: AMBER | C41: 3969 | D41: 3944.70 | E41: 3909.35 | F41: 3849.70 | G41: 3814.35 | H41: 4004.35 | I41: 4039.70 | J41: 4099.35 | K41: 3980.05 | L41: 3885.05 | M41: 2.02836
A42: 32 | B42: AMBUJACEM | C42: 622.45 | D42: 624.40 | E42: 614.35 | F42: 606.25 | G42: 596.20 | H42: 632.50 | I42: 642.55 | J42: 650.65 | K42: 634.45 | L42: 616.3 | M42: 25.66478
A43: 33 | B43: ANGELONE | C43: 2716.7 | D43: 2740.07 | E43: 2682.18 | F43: 2647.67 | G43: 2589.78 | H43: 2774.58 | I43: 2832.47 | J43: 2866.98 | K43: 2797.95 | L43: 2705.55 | M43: 2.4009
A44: 34 | B44: ANURAS | C44: 834.65 | D44: 836.90 | E44: 828.75 | F44: 822.85 | G44: 814.70 | H44: 842.80 | I44: 850.95 | J44: 856.85 | K44: 845.05 | L44: 831 | M44: 1.31431
A45: 35 | B45: APARINDS | C45: 7966.75 | D45: 8013.98 | E45: 7863.97 | F45: 7761.18 | G45: 7611.17 | H45: 8116.77 | I45: 8266.78 | J45: 8369.57 | K45: 8164 | L45: 7911.2 | M45: 1.42886
A46: 36 | B46: APOLLOHOSP | C46: 6009.6 | D46: 5999.12 | E46: 5970.53 | F46: 5931.47 | G46: 5902.88 | H46: 6038.18 | I46: 6066.77 | J46: 6105.83 | K46: 6027.7 | L46: 5960.05 | M46: 5.63849
A47: 37 | B47: APOLLOTYRE | C47: 502.55 | D47: 502.85 | E47: 494.80 | F47: 487.05 | G47: 479.00 | H47: 510.60 | I47: 518.65 | J47: 526.40 | K47: 510.9 | L47: 495.1 | M47: 29.47783
A48: 38 | B48: APTUS | C48: 328.7 | D48: 329.73 | E48: 322.57 | F48: 316.43 | G48: 309.27 | H48: 335.87 | I48: 343.03 | J48: 349.17 | K48: 336.9 | L48: 323.6 | M48: 4.40398
A49: 39 | B49: ACI | C49: 657.7 | D49: 650.53 | E49: 637.17 | F49: 616.63 | G49: 603.27 | H49: 671.07 | I49: 684.43 | J49: 704.97 | K49: 663.9 | L49: 630 | M49: 5.42899
A50: 40 | B50: ASAHIINDIA | C50: 603 | D50: 603.73 | E50: 596.17 | F50: 589.33 | G50: 581.77 | H50: 610.57 | I50: 618.13 | J50: 624.97 | K50: 611.3 | L50: 596.9 | M50: 0.72701
A51: 41 | B51: ASHOKLEY | C51: 202.3 | D51: 202.57 | E51: 200.03 | F51: 197.77 | G51: 195.23 | H51: 204.83 | I51: 207.37 | J51: 209.63 | K51: 205.1 | L51: 200.3 | M51: 261.07306
A52: 42 | B52: ASIANPAINT | C52: 2929.75 | D52: 2945.33 | E52: 2893.67 | F52: 2857.58 | G52: 2805.92 | H52: 2981.42 | I52: 3033.08 | J52: 3069.17 | K52: 2997 | L52: 2909.25 | M52: 15.94445
A53: 43 | B53: ASTERDM | C53: 347.25 | D53: 347.38 | E53: 342.77 | F53: 338.28 | G53: 333.67 | H53: 351.87 | I53: 356.48 | J53: 360.97 | K53: 352 | L53: 342.9 | M53: 19.56603
A54: 44 | B54: ASTRAL | C54: 2069.5 | D54: 2065.83 | E54: 2047.77 | F54: 2026.03 | G54: 2007.97 | H54: 2087.57 | I54: 2105.63 | J54: 2127.37 | K54: 2083.9 | L54: 2044.1 | M54: 2.98394
A55: 45 | B55: ATUL | C55: 6142.1 | D55: 6153.45 | E55: 5993.65 | F55: 5845.20 | G55: 5685.40 | H55: 6301.90 | I55: 6461.70 | J55: 6610.15 | K55: 6313.25 | L55: 6005 | M55: 2.85834
A56: 46 | B56: AUROPHARMA | C56: 1151.65 | D56: 1155.42 | E56: 1141.23 | F56: 1130.82 | G56: 1116.63 | H56: 1165.83 | I56: 1180.02 | J56: 1190.43 | K56: 1169.6 | L56: 1145 | M56: 8.0267
A57: 47 | B57: AVANTIFEED | C57: 540.8 | D57: 548.88 | E57: 527.92 | F57: 515.03 | G57: 494.07 | H57: 561.77 | I57: 582.73 | J57: 595.62 | K57: 569.85 | L57: 536 | M57: 9.20656
A58: 48 | B58: DMART | C58: 4612.35 | D58: 4594.80 | E58: 4562.60 | F58: 4512.85 | G58: 4480.65 | H58: 4644.55 | I58: 4676.75 | J58: 4726.50 | K58: 4627 | L58: 4545.05 | M58: 4.36785
A59: 49 | B59: AXISBANK | C59: 1141.5 | D59: 1146.28 | E59: 1129.32 | F59: 1117.13 | G59: 1100.17 | H59: 1158.47 | I59: 1175.43 | J59: 1187.62 | K59: 1163.25 | L59: 1134.1 | M59: 99.93632
A60: 50 | B60: BEML | C60: 3552.35 | D60: 3574.45 | E60: 3465.90 | F60: 3379.45 | G60: 3270.90 | H60: 3660.90 | I60: 3769.45 | J60: 3855.90 | K60: 3683 | L60: 3488 | M60: 7.15928
A61: 51 | B61: BLS | C61: 347.7 | D61: 348.88 | E61: 343.67 | F61: 339.63 | G61: 334.42 | H61: 352.92 | I61: 358.13 | J61: 362.17 | K61: 354.1 | L61: 344.85 | M61: 13.03229
A62: 52 | B62: BSE | C62: 2850.75 | D62: 2852.83 | E62: 2811.27 | F62: 2771.78 | G62: 2730.22 | H62: 2892.32 | I62: 2933.88 | J62: 2973.37 | K62: 2894.4 | L62: 2813.35 | M62: 9.43429
A63: 53 | B63: BAJAJ-AUTO | C63: 9105.6 | D63: 9142.85 | E63: 9027.10 | F63: 8948.60 | G63: 8832.85 | H63: 9221.35 | I63: 9337.10 | J63: 9415.60 | K63: 9258.6 | L63: 9064.35 | M63: 3.96042
A64: 54 | B64: BAJFINANCE | C64: 6931.5 | D64: 7079.48 | E64: 6758.97 | F64: 6586.43 | G64: 6265.92 | H64: 7252.02 | I64: 7572.53 | J64: 7745.07 | K64: 7400 | L64: 6906.95 | M64: 68.18601
A65: 55 | B65: BAJAJFINSV | C65: 1627.3 | D65: 1656.77 | E65: 1588.53 | F65: 1549.77 | G65: 1481.53 | H65: 1695.53 | I65: 1763.77 | J65: 1802.53 | K65: 1725 | L65: 1618 | M65: 52.27529
A66: 56 | B66: BAJAJHLDNG | C66: 8238.45 | D66: 8231.13 | E66: 8137.32 | F66: 8036.18 | G66: 7942.37 | H66: 8332.27 | I66: 8426.08 | J66: 8527.22 | K66: 8324.95 | L66: 8130 | M66: 0.46486
A67: 57 | B67: BALAMINES | C67: 2153.45 | D67: 2166.28 | E67: 2127.57 | F67: 2101.68 | G67: 2062.97 | H67: 2192.17 | I67: 2230.88 | J67: 2256.77 | K67: 2205 | L67: 2140.4 | M67: 0.46823
A68: 58 | B68: BALKRISIND | C68: 2444.55 | D68: 2447.35 | E68: 2420.20 | F68: 2395.85 | G68: 2368.70 | H68: 2471.70 | I68: 2498.85 | J68: 2523.20 | K68: 2474.5 | L68: 2423 | M68: 3.25984
A69: 59 | B69: BALRAMCHIN | C69: 391.6 | D69: 393.57 | E69: 385.13 | F69: 378.67 | G69: 370.23 | H69: 400.03 | I69: 408.47 | J69: 414.93 | K69: 402 | L69: 387.1 | M69: 13.77181
A70: 60 | B70: BANDHANBNK | C70: 187.6 | D70: 189.02 | E70: 185.48 | F70: 183.37 | G70: 179.83 | H70: 191.13 | I70: 194.67 | J70: 196.78 | K70: 192.55 | L70: 186.9 | M70: 92.37768
A71: 61 | B71: BANKBARODA | C71: 275.75 | D71: 277.50 | E71: 272.50 | F71: 269.25 | G71: 264.25 | H71: 280.75 | I71: 285.75 | J71: 289.00 | K71: 282.5 | L71: 274.25 | M71: 195.68548
A72: 62 | B72: BANKINDIA | C72: 149.8 | D72: 150.35 | E72: 147.70 | F72: 145.60 | G72: 142.95 | H72: 152.45 | I72: 155.10 | J72: 157.20 | K72: 153 | L72: 148.25 | M72: 94.11856
A73: 63 | B73: MAHABANK | C73: 68.4 | D73: 68.88 | E73: 67.42 | F73: 66.43 | G73: 64.97 | H73: 69.87 | I73: 71.33 | J73: 72.32 | K73: 70.35 | L73: 67.9 | M73: 299.62784
A74: 64 | B74: BATAINDIA | C74: 1338.35 | D74: 1343.27 | E74: 1325.13 | F74: 1311.92 | G74: 1293.78 | H74: 1356.48 | I74: 1374.62 | J74: 1387.83 | K74: 1361.4 | L74: 1330.05 | M74: 3.12915
A75: 65 | B75: BAYERCROP | C75: 5462.4 | D75: 5484.52 | E75: 5381.03 | F75: 5299.67 | G75: 5196.18 | H75: 5565.88 | I75: 5669.37 | J75: 5750.73 | K75: 5588 | L75: 5403.15 | M75: 0.16595
A76: 66 | B76: BERGEPAINT | C76: 523.25 | D76: 521.22 | E76: 515.53 | F76: 507.82 | G76: 502.13 | H76: 528.93 | I76: 534.62 | J76: 542.33 | K76: 526.9 | L76: 513.5 | M76: 14.72843
A77: 67 | B77: BDL | C77: 1959.6 | D77: 1963.53 | E77: 1938.07 | F77: 1916.53 | G77: 1891.07 | H77: 1985.07 | I77: 2010.53 | J77: 2032.07 | K77: 1989 | L77: 1942 | M77: 5.77539
A78: 68 | B78: BEL | C78: 234.1 | D78: 234.42 | E78: 230.83 | F78: 227.57 | G78: 223.98 | H78: 237.68 | I78: 241.27 | J78: 244.53 | K78: 238 | L78: 231.15 | M78: 157.82582
A79: 69 | B79: BHARATFORG | C79: 1252.2 | D79: 1258.45 | E79: 1235.95 | F79: 1219.70 | G79: 1197.20 | H79: 1274.70 | I79: 1297.20 | J79: 1313.45 | K79: 1280.95 | L79: 1242.2 | M79: 6.83589
A80: 70 | B80: BHEL | C80: 305 | D80: 305.80 | E80: 293.30 | F80: 281.60 | G80: 269.10 | H80: 317.50 | I80: 330.00 | J80: 341.70 | K80: 318.3 | L80: 294.1 | M80: 1307.58171
A81: 71 | B81: BPCL | C81: 629.85 | D81: 632.22 | E81: 622.73 | F81: 615.62 | G81: 606.13 | H81: 639.33 | I81: 648.82 | J81: 655.93 | K81: 641.7 | L81: 625.1 | M81: 44.98668
A82: 72 | B82: BHARTIARTL | C82: 1277.4 | D82: 1282.02 | E82: 1253.53 | F82: 1229.67 | G82: 1201.18 | H82: 1305.88 | I82: 1334.37 | J82: 1358.23 | K82: 1310.5 | L82: 1258.15 | M82: 112.90875
A83: 73 | B83: BIKAJI | C83: 530.6 | D83: 531.03 | E83: 525.57 | F83: 520.53 | G83: 515.07 | H83: 536.07 | I83: 541.53 | J83: 546.57 | K83: 536.5 | L83: 526 | M83: 0.73264
A84: 74 | B84: BIOCON | C84: 305.2 | D84: 306.55 | E84: 298.10 | F84: 291.00 | G84: 282.55 | H84: 313.65 | I84: 322.10 | J84: 329.20 | K84: 315 | L84: 299.45 | M84: 95.54032
A85: 75 | B85: BIRLACORPN | C85: 1559.9 | D85: 1545.75 | E85: 1516.55 | F85: 1473.20 | G85: 1444.00 | H85: 1589.10 | I85: 1618.30 | J85: 1661.65 | K85: 1574.95 | L85: 1502.4 | M85: 5.50169
A86: 76 | B86: BSOFT | C86: 634.2 | D86: 636.63 | E86: 624.82 | F86: 615.43 | G86: 603.62 | H86: 646.02 | I86: 657.83 | J86: 667.22 | K86: 648.45 | L86: 627.25 | M86: 33.88284
A87: 77 | B87: BLUEDART | C87: 6821.5 | D87: 6655.27 | E87: 6411.03 | F87: 6000.57 | G87: 5756.33 | H87: 7065.73 | I87: 7309.97 | J87: 7720.43 | K87: 6899.5 | L87: 6244.8 | M87: 3.60224
A88: 78 | B88: BLUESTARCO | C88: 1447.9 | D88: 1454.53 | E88: 1415.07 | F88: 1382.23 | G88: 1342.77 | H88: 1487.37 | I88: 1526.83 | J88: 1559.67 | K88: 1494 | L88: 1421.7 | M88: 9.07077
A89: 79 | B89: BBTC | C89: 1538.55 | D89: 1545.23 | E89: 1523.32 | F89: 1508.08 | G89: 1486.17 | H89: 1560.47 | I89: 1582.38 | J89: 1597.62 | K89: 1567.15 | L89: 1530 | M89: 0.46622
A90: 80 | B90: BORORENEW | C90: 514.1 | D90: 516.53 | E90: 509.57 | F90: 505.03 | G90: 498.07 | H90: 521.07 | I90: 528.03 | J90: 532.57 | K90: 523.5 | L90: 512 | M90: 2.94758
A91: 81 | B91: BOSCHLTD | C91: 30093.45 | D91: 30265.40 | E91: 29760.85 | F91: 29428.25 | G91: 28923.70 | H91: 30598.00 | I91: 31102.55 | J91: 31435.15 | K91: 30769.95 | L91: 29932.8 | M91: 0.46475
A92: 82 | B92: BRIGADE | C92: 1020.6 | D92: 1024.97 | E92: 1009.93 | F92: 999.27 | G92: 984.23 | H92: 1035.63 | I92: 1050.67 | J92: 1061.33 | K92: 1040 | L92: 1014.3 | M92: 4.48779
A93: 83 | B93: BCG
A94: 84 | B94: BRITANNIA | C94: 4744.6 | D94: 4744.53 | E94: 4707.97 | F94: 4671.33 | G94: 4634.77 | H94: 4781.17 | I94: 4817.73 | J94: 4854.37 | K94: 4781.1 | L94: 4707.9 | M94: 2.62493
A95: 85 | B95: MAPMYINDIA | C95: 1978.2 | D95: 1995.07 | E95: 1944.13 | F95: 1910.07 | G95: 1859.13 | H95: 2029.13 | I95: 2080.07 | J95: 2114.13 | K95: 2046 | L95: 1961 | M95: 0.56344
A96: 86 | B96: CCL | C96: 587.85 | D96: 585.18 | E96: 574.67 | F96: 561.48 | G96: 550.97 | H96: 598.37 | I96: 608.88 | J96: 622.07 | K96: 595.7 | L96: 572 | M96: 1.3684
A97: 87 | B97: CESC | C97: 152.85 | D97: 154.05 | E97: 150.45 | F97: 148.05 | G97: 144.45 | H97: 156.45 | I97: 160.05 | J97: 162.45 | K97: 157.65 | L97: 151.65 | M97: 112.05177
A98: 88 | B98: CGPOWER | C98: 548.2 | D98: 550.13 | E98: 544.12 | F98: 540.03 | G98: 534.02 | H98: 554.22 | I98: 560.23 | J98: 564.32 | K98: 556.15 | L98: 546.05 | M98: 9.94167
A99: 89 | B99: CIEINDIA | C99: 490.35 | D99: 486.98 | E99: 481.37 | F99: 472.38 | G99: 466.77 | H99: 495.97 | I99: 501.58 | J99: 510.57 | K99: 492.6 | L99: 478 | M99: 5.9618
A100: 90 | B100: CRISIL | C100: 4366.6 | D100: 4362.22 | E100: 4304.53 | F100: 4242.47 | G100: 4184.78 | H100: 4424.28 | I100: 4481.97 | J100: 4544.03 | K100: 4419.9 | L100: 4300.15 | M100: 0.30547
A101: 91 | B101: CSBBANK | C101: 365.45 | D101: 366.65 | E101: 359.80 | F101: 354.15 | G101: 347.30 | H101: 372.30 | I101: 379.15 | J101: 384.80 | K101: 373.5 | L101: 361 | M101: 2.47935
A102: 92 | B102: CAMPUS | C102: 248.15 | D102: 248.72 | E102: 244.68 | F102: 241.22 | G102: 237.18 | H102: 252.18 | I102: 256.22 | J102: 259.68 | K102: 252.75 | L102: 245.25 | M102: 4.28686
A103: 93 | B103: CANFINHOME | C103: 768.85 | D103: 772.28 | E103: 757.82 | F103: 746.78 | G103: 732.32 | H103: 783.32 | I103: 797.78 | J103: 808.82 | K103: 786.75 | L103: 761.25 | M103: 6.5938
A104: 94 | B104: CANBK | C104: 625.65 | D104: 625.85 | E104: 618.80 | F104: 611.95 | G104: 604.90 | H104: 632.70 | I104: 639.75 | J104: 646.60 | K104: 632.9 | L104: 619 | M104: 39.76973
A105: 95 | B105: CGCL | C105: 222.2 | D105: 222.45 | E105: 220.45 | F105: 218.70 | G105: 216.70 | H105: 224.20 | I105: 226.20 | J105: 227.95 | K105: 224.45 | L105: 220.7 | M105: 0.86675
A106: 96 | B106: CARBORUNIV | C106: 1441.45 | D106: 1460.15 | E106: 1406.40 | F106: 1371.35 | G106: 1317.60 | H106: 1495.20 | I106: 1548.95 | J106: 1584.00 | K106: 1513.9 | L106: 1425.1 | M106: 2.02104
A107: 97 | B107: CASTROLIND | C107: 196.4 | D107: 198.35 | E107: 192.65 | F107: 188.90 | G107: 183.20 | H107: 202.10 | I107: 207.80 | J107: 211.55 | K107: 204.05 | L107: 194.6 | M107: 62.75448
A108: 98 | B108: CEATLTD | C108: 2544.95 | D108: 2494.42 | E108: 2413.83 | F108: 2282.72 | G108: 2202.13 | H108: 2625.53 | I108: 2706.12 | J108: 2837.23 | K108: 2575 | L108: 2363.3 | M108: 10.17124
A109: 99 | B109: CENTRALBK | C109: 65.15 | D109: 65.45 | E109: 64.20 | F109: 63.25 | G109: 62.00 | H109: 66.40 | I109: 67.65 | J109: 68.60 | K109: 66.7 | L109: 64.5 | M109: 130.41002
A110: 100 | B110: CDSL | C110: 2079.6 | D110: 2070.77 | E110: 2043.83 | F110: 2008.07 | G110: 1981.13 | H110: 2106.53 | I110: 2133.47 | J110: 2169.23 | K110: 2097.7 | L110: 2035 | M110: 10.92311
A111: 101 | B111: CENTURYPLY | C111: 652.15 | D111: 654.42 | E111: 645.83 | F111: 639.52 | G111: 630.93 | H111: 660.73 | I111: 669.32 | J111: 675.63 | K111: 663 | L111: 648.1 | M111: 1.889
A112: 102 | B112: CENTURYTEX | C112: 1964.25 | D112: 1973.07 | E112: 1912.18 | F112: 1860.12 | G112: 1799.23 | H112: 2025.13 | I112: 2086.02 | J112: 2138.08 | K112: 2033.95 | L112: 1921 | M112: 3.48339
A113: 103 | B113: CERA | C113: 6852.35 | D113: 6914.92 | E113: 6737.43 | F113: 6622.52 | G113: 6445.03 | H113: 7029.83 | I113: 7207.32 | J113: 7322.23 | K113: 7092.4 | L113: 6800 | M113: 0.29935
A114: 104 | B114: CHALET | C114: 868.1 | D114: 873.02 | E114: 854.03 | F114: 839.97 | G114: 820.98 | H114: 887.08 | I114: 906.07 | J114: 920.13 | K114: 892 | L114: 858.95 | M114: 0.84205
A115: 105 | B115: CHAMBLFERT | C115: 405.7 | D115: 407.92 | E115: 398.13 | F115: 390.57 | G115: 380.78 | H115: 415.48 | I115: 425.27 | J115: 432.83 | K115: 417.7 | L115: 400.35 | M115: 28.09862
A116: 106 | B116: CHEMPLASTS | C116: 479.4 | D116: 481.83 | E116: 473.77 | F116: 468.13 | G116: 460.07 | H116: 487.47 | I116: 495.53 | J116: 501.17 | K116: 489.9 | L116: 476.2 | M116: 1.59214
A117: 107 | B117: CHOLAHLDNG | C117: 1144.75 | D117: 1149.95 | E117: 1134.95 | F117: 1125.15 | G117: 1110.15 | H117: 1159.75 | I117: 1174.75 | J117: 1184.55 | K117: 1164.95 | L117: 1140.15 | M117: 2.28419
A118: 108 | B118: CHOLAFIN | C118: 1309.7 | D118: 1321.18 | E118: 1289.77 | F118: 1269.83 | G118: 1238.42 | H118: 1341.12 | I118: 1372.53 | J118: 1392.47 | K118: 1352.6 | L118: 1301.25 | M118: 34.78644
A119: 109 | B119: CIPLA | C119: 1424.75 | D119: 1424.65 | E119: 1415.30 | F119: 1405.85 | G119: 1396.50 | H119: 1434.10 | I119: 1443.45 | J119: 1452.90 | K119: 1434 | L119: 1415.2 | M119: 8.04513
A120: 110 | B120: CUB | C120: 161.1 | D120: 161.23 | E120: 159.47 | F120: 157.83 | G120: 156.07 | H120: 162.87 | I120: 164.63 | J120: 166.27 | K120: 163 | L120: 159.6 | M120: 30.34824
A121: 111 | B121: CLEAN | C121: 1302.8 | D121: 1310.60 | E121: 1292.20 | F121: 1281.60 | G121: 1263.20 | H121: 1321.20 | I121: 1339.60 | J121: 1350.20 | K121: 1329 | L121: 1300 | M121: 0.65366
A122: 112 | B122: COALINDIA | C122: 474.6 | D122: 466.60 | E122: 457.40 | F122: 440.20 | G122: 431.00 | H122: 483.80 | I122: 493.00 | J122: 510.20 | K122: 475.8 | L122: 449.4 | M122: 510.71947
A123: 113 | B123: COCHINSHIP | C123: 1321.9 | D123: 1328.98 | E123: 1296.22 | F123: 1270.53 | G123: 1237.77 | H123: 1354.67 | I123: 1387.43 | J123: 1413.12 | K123: 1361.75 | L123: 1303.3 | M123: 23.14662
A124: 114 | B124: COFORGE | C124: 4482.55 | D124: 4554.50 | E124: 4388.10 | F124: 4293.65 | G124: 4127.25 | H124: 4648.95 | I124: 4815.35 | J124: 4909.80 | K124: 4720.9 | L124: 4460.05 | M124: 49.92728
A125: 115 | B125: COLPAL | C125: 2799.15 | D125: 2805.38 | E125: 2772.77 | F125: 2746.38 | G125: 2713.77 | H125: 2831.77 | I125: 2864.38 | J125: 2890.77 | K125: 2838 | L125: 2779 | M125: 2.82927
A126: 116 | B126: CAMS | C126: 3298.65 | D126: 3305.88 | E126: 3277.77 | F126: 3256.88 | G126: 3228.77 | H126: 3326.77 | I126: 3354.88 | J126: 3375.77 | K126: 3334 | L126: 3285 | M126: 2.71404
A127: 117 | B127: CONCORDBIO | C127: 1617.75 | D127: 1628.83 | E127: 1598.87 | F127: 1579.98 | G127: 1550.02 | H127: 1647.72 | I127: 1677.68 | J127: 1696.57 | K127: 1658.8 | L127: 1609.95 | M127: 0.32866
A128: 118 | B128: CONCOR | C128: 1059.45 | D128: 1060.42 | E128: 1047.08 | F128: 1034.72 | G128: 1021.38 | H128: 1072.78 | I128: 1086.12 | J128: 1098.48 | K128: 1073.75 | L128: 1048.05 | M128: 27.23333
A129: 119 | B129: COROMANDEL | C129: 1208.1 | D129: 1206.37 | E129: 1197.73 | F129: 1187.37 | G129: 1178.73 | H129: 1216.73 | I129: 1225.37 | J129: 1235.73 | K129: 1215 | L129: 1196 | M129: 2.50533
A130: 120 | B130: CRAFTSMAN | C130: 4389.25 | D130: 4398.02 | E130: 4326.03 | F130: 4262.82 | G130: 4190.83 | H130: 4461.23 | I130: 4533.22 | J130: 4596.43 | K130: 4470 | L130: 4334.8 | M130: 0.43645
A131: 121 | B131: CREDITACC | C131: 1467 | D131: 1468.97 | E131: 1448.13 | F131: 1429.27 | G131: 1408.43 | H131: 1487.83 | I131: 1508.67 | J131: 1527.53 | K131: 1489.8 | L131: 1450.1 | M131: 0.68373
A132: 122 | B132: CROMPTON | C132: 325.45 | D132: 325.62 | E132: 321.48 | F132: 317.52 | G132: 313.38 | H132: 329.58 | I132: 333.72 | J132: 337.68 | K132: 329.75 | L132: 321.65 | M132: 25.2533
A133: 123 | B133: CUMMINSIND | C133: 3406.85 | D133: 3365.45 | E133: 3252.50 | F133: 3098.15 | G133: 2985.20 | H133: 3519.80 | I133: 3632.75 | J133: 3787.10 | K133: 3478.4 | L133: 3211.1 | M133: 15.8526
A134: 124 | B134: CYIENT | C134: 1798.35 | D134: 1800.12 | E134: 1778.23 | F134: 1758.12 | G134: 1736.23 | H134: 1820.23 | I134: 1842.12 | J134: 1862.23 | K134: 1822 | L134: 1780 | M134: 4.83754
A135: 125 | B135: DCMSHRIRAM | C135: 966.4 | D135: 962.82 | E135: 950.63 | F135: 934.87 | G135: 922.68 | H135: 978.58 | I135: 990.77 | J135: 1006.53 | K135: 975 | L135: 947.05 | M135: 0.46541
A136: 126 | B136: DLF | C136: 878.2 | D136: 881.63 | E136: 859.37 | F136: 840.53 | G136: 818.27 | H136: 900.47 | I136: 922.73 | J136: 941.57 | K136: 903.9 | L136: 862.8 | M136: 52.7116
A137: 127 | B137: DABUR | C137: 531.75 | D137: 531.25 | E137: 524.50 | F137: 517.25 | G137: 510.50 | H137: 538.50 | I137: 545.25 | J137: 552.50 | K137: 538 | L137: 524 | M137: 70.0837
A138: 128 | B138: DALBHARAT | C138: 1796.1 | D138: 1796.38 | E138: 1781.27 | F138: 1766.43 | G138: 1751.32 | H138: 1811.22 | I138: 1826.33 | J138: 1841.17 | K138: 1811.5 | L138: 1781.55 | M138: 2.76434
A139: 129 | B139: DATAPATTNS | C139: 2892.9 | D139: 2911.53 | E139: 2844.32 | F139: 2795.73 | G139: 2728.52 | H139: 2960.12 | I139: 3027.33 | J139: 3075.92 | K139: 2978.75 | L139: 2862.95 | M139: 2.21661
A140: 130 | B140: DEEPAKFERT | C140: 584.85 | D140: 591.20 | E140: 574.95 | F140: 565.05 | G140: 548.80 | H140: 601.10 | I140: 617.35 | J140: 627.25 | K140: 607.45 | L140: 581.3 | M140: 7.84396
A141: 131 | B141: DEEPAKNTR | C141: 2448.65 | D141: 2454.15 | E141: 2408.30 | F141: 2367.95 | G141: 2322.10 | H141: 2494.50 | I141: 2540.35 | J141: 2580.70 | K141: 2500 | L141: 2413.8 | M141: 2.57008
A142: 132 | B142: DELHIVERY | C142: 456.85 | D142: 456.45 | E142: 450.95 | F142: 445.05 | G142: 439.55 | H142: 462.35 | I142: 467.85 | J142: 473.75 | K142: 461.95 | L142: 450.55 | M142: 28.39904
A143: 133 | B143: DELTACORP | C143: 123.25 | D143: 122.88 | E143: 121.37 | F143: 119.48 | G143: 117.97 | H143: 124.77 | I143: 126.28 | J143: 128.17 | K143: 124.4 | L143: 121 | M143: 14.63863
A144: 134 | B144: DEVYANI | C144: 165.55 | D144: 165.63 | E144: 163.52 | F144: 161.48 | G144: 159.37 | H144: 167.67 | I144: 169.78 | J144: 171.82 | K144: 167.75 | L144: 163.6 | M144: 6.47989
A145: 135 | B145: DIVISLAB | C145: 3950.95 | D145: 3947.32 | E145: 3903.63 | F145: 3856.32 | G145: 3812.63 | H145: 3994.63 | I145: 4038.32 | J145: 4085.63 | K145: 3991 | L145: 3900 | M145: 3.48122
A146: 136 | B146: DIXON | C146: 8451.65 | D146: 8423.78 | E146: 8352.82 | F146: 8253.98 | G146: 8183.02 | H146: 8522.62 | I146: 8593.58 | J146: 8692.42 | K146: 8494.75 | L146: 8324.95 | M146: 2.61496
A147: 137 | B147: LALPATHLAB | C147: 2318.4 | D147: 2325.22 | E147: 2284.18 | F147: 2249.97 | G147: 2208.93 | H147: 2359.43 | I147: 2400.47 | J147: 2434.68 | K147: 2366.25 | L147: 2291 | M147: 1.12137
A148: 138 | B148: DRREDDY | C148: 6349.55 | D148: 6342.48 | E148: 6265.07 | F148: 6180.58 | G148: 6103.17 | H148: 6426.97 | I148: 6504.38 | J148: 6588.87 | K148: 6419.9 | L148: 6258 | M148: 5.81368
A149: 139 | B149: EIDPARRY | C149: 613.75 | D149: 622.58 | E149: 600.17 | F149: 586.58 | G149: 564.17 | H149: 636.17 | I149: 658.58 | J149: 672.17 | K149: 645 | L149: 609 | M149: 12.8427
A150: 140 | B150: EIHOTEL | C150: 477.2 | D150: 475.07 | E150: 470.13 | F150: 463.07 | G150: 458.13 | H150: 482.13 | I150: 487.07 | J150: 494.13 | K150: 480 | L150: 468 | M150: 4.22604
A151: 141 | B151: EPL | C151: 181.4 | D151: 182.08 | E151: 179.82 | F151: 178.23 | G151: 175.97 | H151: 183.67 | I151: 185.93 | J151: 187.52 | K151: 184.35 | L151: 180.5 | M151: 6.99565
A152: 142 | B152: EASEMYTRIP | C152: 46.5 | D152: 46.57 | E152: 45.98 | F152: 45.47 | G152: 44.88 | H152: 47.08 | I152: 47.67 | J152: 48.18 | K152: 47.15 | L152: 46.05 | M152: 333.13057
A153: 143 | B153: EICHERMOT | C153: 4599.25 | D153: 4611.62 | E153: 4567.63 | F153: 4536.02 | G153: 4492.03 | H153: 4643.23 | I153: 4687.22 | J153: 4718.83 | K153: 4655.6 | L153: 4580 | M153: 5.62484
A154: 144 | B154: ELGIEQUIP | C154: 656.3 | D154: 658.13 | E154: 649.77 | F154: 643.23 | G154: 634.87 | H154: 664.67 | I154: 673.03 | J154: 679.57 | K154: 666.5 | L154: 651.6 | M154: 19.8813
A155: 145 | B155: EMAMILTD | C155: 495.45 | D155: 494.70 | E155: 485.75 | F155: 476.05 | G155: 467.10 | H155: 504.40 | I155: 513.35 | J155: 523.05 | K155: 503.65 | L155: 485 | M155: 10.41482
A156: 146 | B156: ENDURANCE | C156: 1944.7 | D156: 1947.23 | E156: 1932.47 | F156: 1920.23 | G156: 1905.47 | H156: 1959.47 | I156: 1974.23 | J156: 1986.47 | K156: 1962 | L156: 1935 | M156: 1.13412
A157: 147 | B157: ENGINERSIN | C157: 242.15 | D157: 242.27 | E157: 238.18 | F157: 234.22 | G157: 230.13 | H157: 246.23 | I157: 250.32 | J157: 254.28 | K157: 246.35 | L157: 238.3 | M157: 64.82333
A158: 148 | B158: EPIGRAL | C158: 1300.4 | D158: 1303.58 | E158: 1287.87 | F158: 1275.33 | G158: 1259.62 | H158: 1316.12 | I158: 1331.83 | J158: 1344.37 | K158: 1319.3 | L158: 1291.05 | M158: 0.41425
A159: 149 | B159: EQUITASBNK | C159: 94.4 | D159: 96.35 | E159: 91.95 | F159: 89.50 | G159: 85.10 | H159: 98.80 | I159: 103.20 | J159: 105.65 | K159: 100.75 | L159: 93.9 | M159: 144.27285
A160: 150 | B160: ERIS | C160: 869.7 | D160: 881.47 | E160: 853.23 | F160: 836.77 | G160: 808.53 | H160: 897.93 | I160: 926.17 | J160: 942.63 | K160: 909.7 | L160: 865 | M160: 4.25044
A161: 151 | B161: ESCORTS | C161: 3484.55 | D161: 3461.75 | E161: 3420.15 | F161: 3355.75 | G161: 3314.15 | H161: 3526.15 | I161: 3567.75 | J161: 3632.15 | K161: 3503.35 | L161: 3397.35 | M161: 5.48565
A162: 152 | B162: EXIDEIND | C162: 468.95 | D162: 466.17 | E162: 461.33 | F162: 453.72 | G162: 448.88 | H162: 473.78 | I162: 478.62 | J162: 486.23 | K162: 471 | L162: 458.55 | M162: 46.77076
A163: 153 | B163: FDC | C163: 448.65 | D163: 449.88 | E163: 445.47 | F163: 442.28 | G163: 437.87 | H163: 453.07 | I163: 457.48 | J163: 460.67 | K163: 454.3 | L163: 446.7 | M163: 0.78849
A164: 154 | B164: NYKAA | C164: 173.7 | D164: 174.23 | E164: 170.97 | F164: 168.23 | G164: 164.97 | H164: 176.97 | I164: 180.23 | J164: 182.97 | K164: 177.5 | L164: 171.5 | M164: 23.9169
A165: 155 | B165: FEDERALBNK | C165: 165.95 | D165: 166.48 | E165: 163.47 | F165: 160.98 | G165: 157.97 | H165: 168.97 | I165: 171.98 | J165: 174.47 | K165: 169.5 | L165: 164 | M165: 177.5898
A166: 156 | B166: FACT | C166: 710.75 | D166: 715.38 | E166: 703.77 | F166: 696.78 | G166: 685.17 | H166: 722.37 | I166: 733.98 | J166: 740.97 | K166: 727 | L166: 708.4 | M166: 2.35909
A167: 157 | B167: FINEORG | C167: 4298.2 | D167: 4329.42 | E167: 4258.88 | F167: 4219.57 | G167: 4149.03 | H167: 4368.73 | I167: 4439.27 | J167: 4478.58 | K167: 4399.95 | L167: 4290.1 | M167: 0.17966
A168: 158 | B168: FINCABLES | C168: 1048.35 | D168: 1058.33 | E168: 1034.67 | F168: 1020.98 | G168: 997.32 | H168: 1072.02 | I168: 1095.68 | J168: 1109.37 | K168: 1082 | L168: 1044.65 | M168: 2.87131
A169: 159 | B169: FINPIPE | C169: 270.75 | D169: 271.68 | E169: 266.12 | F169: 261.48 | G169: 255.92 | H169: 276.32 | I169: 281.88 | J169: 286.52 | K169: 277.25 | L169: 267.05 | M169: 14.54104
A170: 160 | B170: FSL | C170: 208 | D170: 208.87 | E170: 203.83 | F170: 199.67 | G170: 194.63 | H170: 213.03 | I170: 218.07 | J170: 222.23 | K170: 213.9 | L170: 204.7 | M170: 38.27533
A171: 161 | B171: FIVESTAR | C171: 774.7 | D171: 766.20 | E171: 753.50 | F171: 732.30 | G171: 719.60 | H171: 787.40 | I171: 800.10 | J171: 821.30 | K171: 778.9 | L171: 745 | M171: 22.83371
A172: 162 | B172: FORTIS | C172: 451.95 | D172: 449.47 | E172: 442.68 | F172: 433.42 | G172: 426.63 | H172: 458.73 | I172: 465.52 | J172: 474.78 | K172: 456.25 | L172: 440.2 | M172: 15.18217
A173: 163 | B173: GRINFRA | C173: 1393.65 | D173: 1393.57 | E173: 1362.13 | F173: 1330.62 | G173: 1299.18 | H173: 1425.08 | I173: 1456.52 | J173: 1488.03 | K173: 1425 | L173: 1362.05 | M173: 0.77566
A174: 164 | B174: GAIL | C174: 203.8 | D174: 204.32 | E174: 200.13 | F174: 196.47 | G174: 192.28 | H174: 207.98 | I174: 212.17 | J174: 215.83 | K174: 208.5 | L174: 200.65 | M174: 157.81876
A175: 165 | B175: GMMPFAUDLR | C175: 1402.4 | D175: 1407.32 | E175: 1387.38 | F175: 1372.37 | G175: 1352.43 | H175: 1422.33 | I175: 1442.27 | J175: 1457.28 | K175: 1427.25 | L175: 1392.3 | M175: 1.34062
A176: 166 | B176: GMRINFRA | C176: 85.6 | D176: 86.67 | E176: 83.48 | F176: 81.37 | G176: 78.18 | H176: 88.78 | I176: 91.97 | J176: 94.08 | K176: 89.85 | L176: 84.55 | M176: 594.84779
A177: 167 | B177: GALAXYSURF | C177: 2551.2 | D177: 2551.52 | E177: 2515.73 | F177: 2480.27 | G177: 2444.48 | H177: 2586.98 | I177: 2622.77 | J177: 2658.23 | K177: 2587.3 | L177: 2516.05 | M177: 0.12092
A178: 168 | B178: GICRE | C178: 340 | D178: 340.32 | E178: 333.58 | F178: 327.17 | G178: 320.43 | H178: 346.73 | I178: 353.47 | J178: 359.88 | K178: 347.05 | L178: 333.9 | M178: 11.35166
A179: 169 | B179: GILLETTE | C179: 6696.75 | D179: 6717.78 | E179: 6609.97 | F179: 6523.18 | G179: 6415.37 | H179: 6804.57 | I179: 6912.38 | J179: 6999.17 | K179: 6825.6 | L179: 6631 | M179: 0.14954
A180: 170 | B180: GLAND | C180: 1686.45 | D180: 1694.57 | E180: 1653.13 | F180: 1619.82 | G180: 1578.38 | H180: 1727.88 | I180: 1769.32 | J180: 1802.63 | K180: 1736 | L180: 1661.25 | M180: 2.54645
A181: 171 | B181: GLAXO | C181: 2095.35 | D181: 2106.15 | E181: 2067.30 | F181: 2039.25 | G181: 2000.40 | H181: 2134.20 | I181: 2173.05 | J181: 2201.10 | K181: 2145 | L181: 2078.1 | M181: 1.01606
A182: 172 | B182: GLS | C182: 829.95 | D182: 832.32 | E182: 816.63 | F182: 803.32 | G182: 787.63 | H182: 845.63 | I182: 861.32 | J182: 874.63 | K182: 848 | L182: 819 | M182: 0.77779
A183: 173 | B183: GLENMARK | C183: 1053.3 | D183: 1056.63 | E183: 1041.97 | F183: 1030.63 | G183: 1015.97 | H183: 1067.97 | I183: 1082.63 | J183: 1093.97 | K183: 1071.3 | L183: 1045.3 | M183: 8.45271
A184: 174 | B184: MEDANTA | C184: 1409 | D184: 1413.07 | E184: 1381.33 | F184: 1353.67 | G184: 1321.93 | H184: 1440.73 | I184: 1472.47 | J184: 1500.13 | K184: 1444.8 | L184: 1385.4 | M184: 2.69688
A185: 175 | B185: GOCOLORS | C185: 1043.35 | D185: 1015.22 | E185: 961.43 | F185: 879.52 | G185: 825.73 | H185: 1097.13 | I185: 1150.92 | J185: 1232.83 | K185: 1069 | L185: 933.3 | M185: 2.62086
A186: 176 | B186: GPIL | C186: 922.95 | D186: 921.62 | E186: 906.53 | F186: 890.12 | G186: 875.03 | H186: 938.03 | I186: 953.12 | J186: 969.53 | K186: 936.7 | L186: 905.2 | M186: 7.89989
A187: 177 | B187: GODFRYPHLP | C187: 3388.2 | D187: 3402.33 | E187: 3265.87 | F187: 3143.53 | G187: 3007.07 | H187: 3524.67 | I187: 3661.13 | J187: 3783.47 | K187: 3538.8 | L187: 3280 | M187: 5.18669
A188: 178 | B188: GODREJCP | C188: 1251.2 | D188: 1246.30 | E188: 1237.60 | F188: 1224.00 | G188: 1215.30 | H188: 1259.90 | I188: 1268.60 | J188: 1282.20 | K188: 1255 | L188: 1232.7 | M188: 7.28587
A189: 179 | B189: GODREJIND | C189: 868.75 | D189: 878.75 | E189: 855.00 | F189: 841.25 | G189: 817.50 | H189: 892.50 | I189: 916.25 | J189: 930.00 | K189: 902.5 | L189: 865 | M189: 9.38649
A190: 180 | B190: GODREJPROP | C190: 2569.7 | D190: 2547.23 | E190: 2509.47 | F190: 2449.23 | G190: 2411.47 | H190: 2607.47 | I190: 2645.23 | J190: 2705.47 | K190: 2585 | L190: 2487 | M190: 24.17565
A191: 181 | B191: GRANULES | C191: 423.35 | D191: 424.32 | E191: 420.63 | F191: 417.92 | G191: 414.23 | H191: 427.03 | I191: 430.72 | J191: 433.43 | K191: 428 | L191: 421.6 | M191: 5.0038
A192: 182 | B192: GRAPHITE | C192: 656.5 | D192: 660.57 | E192: 649.98 | F192: 643.47 | G192: 632.88 | H192: 667.08 | I192: 677.67 | J192: 684.18 | K192: 671.15 | L192: 654.05 | M192: 8.66851
A193: 183 | B193: GRASIM | C193: 2481.35 | D193: 2469.05 | E193: 2451.10 | F193: 2420.85 | G193: 2402.90 | H193: 2499.30 | I193: 2517.25 | J193: 2547.50 | K193: 2487 | L193: 2438.8 | M193: 11.92695
A194: 184 | B194: GESHIP | C194: 1040.75 | D194: 1049.10 | E194: 1017.10 | F194: 993.45 | G194: 961.45 | H194: 1072.75 | I194: 1104.75 | J194: 1128.40 | K194: 1081.1 | L194: 1025.45 | M194: 3.27333
A195: 185 | B195: GRINDWELL | C195: 2115 | D195: 2108.15 | E195: 2091.85 | F195: 2068.70 | G195: 2052.40 | H195: 2131.30 | I195: 2147.60 | J195: 2170.75 | K195: 2124.45 | L195: 2085 | M195: 0.1606
A196: 186 | B196: GUJALKALI | C196: 793.35 | D196: 790.77 | E196: 784.58 | F196: 775.82 | G196: 769.63 | H196: 799.53 | I196: 805.72 | J196: 814.48 | K196: 796.95 | L196: 782 | M196: 0.41446
A197: 187 | B197: GAEL | C197: 163.2 | D197: 164.68 | E197: 160.62 | F197: 158.03 | G197: 153.97 | H197: 167.27 | I197: 171.33 | J197: 173.92 | K197: 168.75 | L197: 162.1 | M197: 5.60416
A198: 188 | B198: FLUOROCHEM | C198: 3580.65 | D198: 3600.42 | E198: 3535.83 | F198: 3491.02 | G198: 3426.43 | H198: 3645.23 | I198: 3709.82 | J198: 3754.63 | K198: 3665 | L198: 3555.6 | M198: 0.68164
A199: 189 | B199: GUJGASLTD | C199: 535.9 | D199: 536.23 | E199: 530.47 | F199: 525.03 | G199: 519.27 | H199: 541.67 | I199: 547.43 | J199: 552.87 | K199: 542 | L199: 530.8 | M199: 9.63669
A200: 190 | B200: GNFC | C200: 684.8 | D200: 689.55 | E200: 675.10 | F200: 665.40 | G200: 650.95 | H200: 699.25 | I200: 713.70 | J200: 723.40 | K200: 704 | L200: 679.85 | M200: 9.74963
A201: 191 | B201: GPPL | C201: 212.55 | D201: 214.85 | E201: 207.70 | F201: 202.85 | G201: 195.70 | H201: 219.70 | I201: 226.85 | J201: 231.70 | K201: 222 | L201: 210 | M201: 80.01121
A202: 192 | B202: GSFC | C202: 242 | D202: 243.68 | E202: 239.07 | F202: 236.13 | G202: 231.52 | H202: 246.62 | I202: 251.23 | J202: 254.17 | K202: 248.3 | L202: 240.75 | M202: 18.8546
A203: 193 | B203: GSPL | C203: 296.95 | D203: 297.75 | E203: 294.75 | F203: 292.55 | G203: 289.55 | H203: 299.95 | I203: 302.95 | J203: 305.15 | K203: 300.75 | L203: 295.55 | M203: 31.67508
A204: 194 | B204: HEG | C204: 2327.95 | D204: 2322.65 | E204: 2280.30 | F204: 2232.65 | G204: 2190.30 | H204: 2370.30 | I204: 2412.65 | J204: 2460.30 | K204: 2365 | L204: 2275 | M204: 2.70044
A205: 195 | B205: HCLTECH | C205: 1348.05 | D205: 1350.53 | E205: 1331.07 | F205: 1314.08 | G205: 1294.62 | H205: 1367.52 | I205: 1386.98 | J205: 1403.97 | K205: 1370 | L205: 1333.55 | M205: 59.64228
A206: 196 | B206: HDFCAMC | C206: 3917.95 | D206: 3932.53 | E206: 3881.22 | F206: 3844.48 | G206: 3793.17 | H206: 3969.27 | I206: 4020.58 | J206: 4057.32 | K206: 3983.85 | L206: 3895.8 | M206: 2.65654
... 319 more rows

Sheet Bulk Deals
E6: Back To Main Page
A7: Subject : | B7: BULK DEAL | D7: =Main!B10 -> 2024-05-06
A9: Date | B9: Scrip code | C9: Scrip Name | D9: Client Name | E9: Buy / Sell | F9: Quantity Traded | G9: Trade Price / Wt.Avg.trade price | H9: Exchange
A10: 2024-05-03 | B10: 543319 | C10: AAPLUSTRAD | D10: JAINISH ANILKUMAR LALCHETA | E10: SELL | F10: 128,000 | G10: 18.4 | H10: BSE
A11: 2024-05-03 | B11: 543319 | C11: AAPLUSTRAD | D11: KETAN KIRTIKUMAR VAKHARIA | E11: SELL | F11: 80,000 | G11: 17.54 | H11: BSE
A12: 2024-05-03 | B12: 543319 | C12: AAPLUSTRAD | D12: SHUBHAM ASHOKBHAI PATEL | E12: SELL | F12: 8,000 | G12: 18.4 | H12: BSE
A13: 2024-05-03 | B13: 543319 | C13: AAPLUSTRAD | D13: MAHADEV MANUBHAI MAKVANA | E13: SELL | F13: 8,000 | G13: 18.4 | H13: BSE
A14: 2024-05-03 | B14: 543319 | C14: AAPLUSTRAD | D14: SHUBHAM ASHOKBHAI PATEL | E14: BUY | F14: 80,000 | G14: 18.2 | H14: BSE
A15: 2024-05-03 | B15: 543319 | C15: AAPLUSTRAD | D15: MAHADEV MANUBHAI MAKVANA | E15: BUY | F15: 376,000 | G15: 18.05 | H15: BSE
A16: 2024-05-03 | B16: 543678 | C16: AMBOAGRI | D16: PRADEEP SUTODIYA | E16: BUY | F16: 96,000 | G16: 34.09 | H16: BSE
A17: 2024-05-03 | B17: 531300 | C17: AMITINT | D17: KAVITA MAYANK VARIA | E17: SELL | F17: 100,000 | G17: 4.06 | H17: BSE
A18: 2024-05-03 | B18: 531300 | C18: AMITINT | D18: MAITREEVARIA | E18: SELL | F18: 100,000 | G18: 4.06 | H18: BSE
A19: 2024-05-03 | B19: 531300 | C19: AMITINT | D19: PRAVEENSINGH | E19: BUY | F19: 300,000 | G19: 4.06 | H19: BSE
A20: 2024-05-03 | B20: 539662 | C20: BFLAFL | D20: SUMIT KUMAR GOEL | E20: BUY | F20: 92,954 | G20: 19.89 | H20: BSE
A21: 2024-05-03 | B21: 543209 | C21: BILLWIN | D21: SHERWOOD SECURITIES PVT LTD | E21: SELL | F21: 51,000 | G21: 50.74 | H21: BSE
A22: 2024-05-03 | B22: 539596 | C22: DELTA | D22: DEEKAM TRADING PRIVATE LIMITED | E22: BUY | F22: 50,000 | G22: 45.03 | H22: BSE
A23: 2024-05-03 | B23: 539596 | C23: DELTA | D23: PITAM GOEL | E23: SELL | F23: 30,000 | G23: 45.03 | H23: BSE
A24: 2024-05-03 | B24: 523732 | C24: ECOBOAR | D24: GUTTIKONDA VARA LAKSHMI | E24: BUY | F24: 100,000 | G24: 44.33 | H24: BSE
A25: 2024-05-03 | B25: 544166 | C25: EMMFORCE | D25: CAMELLIA TRADEX PRIVATE LIMITED | E25: BUY | F25: 181,200 | G25: 215.5 | H25: BSE
A26: 2024-05-03 | B26: 540190 | C26: FRANKLININD | D26: MULTIPLIER SHARE & STOCK ADVISORS PRIVATE LIMITED | E26: SELL | F26: 3,703 | G26: 6.14 | H26: BSE
A27: 2024-05-03 | B27: 540190 | C27: FRANKLININD | D27: MULTIPLIER SHARE & STOCK ADVISORS PRIVATE LIMITED | E27: BUY | F27: 427,508 | G27: 6.14 | H27: BSE
A28: 2024-05-03 | B28: 531744 | C28: GINISILK | D28: ANITA CHAINRAI | E28: SELL | F28: 38,623 | G28: 88.07 | H28: BSE
A29: 2024-05-03 | B29: 513309 | C29: GOLKONDA | D29: VIBHU GUPTA | E29: SELL | F29: 9,079 | G29: 14.08 | H29: BSE
A30: 2024-05-03 | B30: 513309 | C30: GOLKONDA | D30: VIBHU GUPTA | E30: BUY | F30: 62,634 | G30: 13.96 | H30: BSE
A31: 2024-05-03 | B31: 543546 | C31: HEALTHYLIFE | D31: PRADEEP SUTODIYA | E31: BUY | F31: 150,000 | G31: 9.2 | H31: BSE
A32: 2024-05-03 | B32: 543546 | C32: HEALTHYLIFE | D32: JR SEAMLESS PRIVATE LIMITED | E32: SELL | F32: 200,000 | G32: 9.21 | H32: BSE
A33: 2024-05-03 | B33: 543546 | C33: HEALTHYLIFE | D33: SONALBEN HARISINH BARAD | E33: BUY | F33: 140,000 | G33: 9.21 | H33: BSE
A34: 2024-05-03 | B34: 543546 | C34: HEALTHYLIFE | D34: ASHOK DILIPKUMAR JAIN HUF | E34: BUY | F34: 180,000 | G34: 9.2 | H34: BSE
A35: 2024-05-03 | B35: 539175 | C35: INDRAIND | D35: GREEN PEAKS ENTERPRISES LLP | E35: BUY | F35: 68,721 | G35: 13.34 | H35: BSE
A36: 2024-05-03 | B36: 539175 | C36: INDRAIND | D36: GREEN PEAKS ENTERPRISES LLP | E36: SELL | F36: 100,000 | G36: 13.33 | H36: BSE
A37: 2024-05-03 | B37: 539175 | C37: INDRAIND | D37: HJS SECURITIES PRIVATE LIMITED | E37: SELL | F37: 50,527 | G37: 13.33 | H37: BSE
A38: 2024-05-03 | B38: 539175 | C38: INDRAIND | D38: RDS CORPORATE SERVICES PRIVATE LIMITED | E38: BUY | F38: 228,230 | G38: 13.33 | H38: BSE
A39: 2024-05-03 | B39: 539175 | C39: INDRAIND | D39: RDS CORPORATE SERVICES PRIVATE LIMITED | E39: SELL | F39: 262,836 | G39: 13.34 | H39: BSE
A40: 2024-05-03 | B40: 539175 | C40: INDRAIND | D40: JANAKI RAMAN SUNDAR VIGNESH | E40: SELL | F40: 66,000 | G40: 13.33 | H40: BSE
A41: 2024-05-03 | B41: 536709 | C41: INDRENEW | D41: PROFIN COMMODITIES PRIVATE LIMITED | E41: SELL | F41: 136,662 | G41: 14.09 | H41: BSE
A42: 2024-05-03 | B42: 530145 | C42: KISAN | D42: DHIRESH SHASHIKANT GOSALIA | E42: SELL | F42: 200,000 | G42: 93 | H42: BSE
A43: 2024-05-03 | B43: 530145 | C43: KISAN | D43: LADDERUP VENTURES LLP | E43: SELL | F43: 260,219 | G43: 93.47 | H43: BSE
A44: 2024-05-03 | B44: 530145 | C44: KISAN | D44: MULTIPLIER SHARE & STOCK ADVISORS PRIVATE LIMITED | E44: BUY | F44: 450,000 | G44: 93.47 | H44: BSE
A45: 2024-05-03 | B45: 530145 | C45: KISAN | D45: VORA FINANCIAL SERVICES PVT LTD | E45: BUY | F45: 200,000 | G45: 93.47 | H45: BSE
A46: 2024-05-03 | B46: 531494 | C46: NAVKAR | D46: MANSI SHARE & STOCK ADVISORS PRIVATE LIMITED | E46: BUY | F46: 2,500,000 | G46: 13.1 | H46: BSE
A47: 2024-05-03 | B47: 531494 | C47: NAVKAR | D47: RUKHMANI GARMENTS LLP | E47: SELL | F47: 2,153,323 | G47: 13.1 | H47: BSE
A48: 2024-05-03 | B48: 523242 | C48: NBFOOT | D48: GRANDEUR CORPORATION PRIVATE LIMITED | E48: SELL | F48: 700,000 | G48: 7.44 | H48: BSE
A49: 2024-05-03 | B49: 523242 | C49: NBFOOT | D49: VIRAL PRAFUL JHAVERI | E49: BUY | F49: 60,000 | G49: 7.36 | H49: BSE
A50: 2024-05-03 | B50: 523242 | C50: NBFOOT | D50: VIRAL PRAFUL JHAVERI | E50: SELL | F50: 100,000 | G50: 8.07 | H50: BSE
A51: 2024-05-03 | B51: 523242 | C51: NBFOOT | D51: LEMON MANAGEMENT CONSULTANCY PRIVATE LIMITED | E51: BUY | F51: 216,200 | G51: 7.46 | H51: BSE
A52: 2024-05-03 | B52: 523242 | C52: NBFOOT | D52: DEV GANPAT PAWAR | E52: SELL | F52: 52,000 | G52: 8.1 | H52: BSE
A53: 2024-05-03 | B53: 523242 | C53: NBFOOT | D53: DEV GANPAT PAWAR | E53: BUY | F53: 94,300 | G53: 7.34 | H53: BSE
A54: 2024-05-03 | B54: 523242 | C54: NBFOOT | D54: AGRAWAL SECURITIES LIMITED | E54: BUY | F54: 75,000 | G54: 8.06 | H54: BSE
A55: 2024-05-03 | B55: 536659 | C55: PVVINFRA | D55: GKML SOFTWARE TECHNOLOGIES PRIVATE LIMITED | E55: SELL | F55: 118,500 | G55: 41.95 | H55: BSE
A56: 2024-05-03 | B56: 536659 | C56: PVVINFRA | D56: SABRIYA FISHERIES LLP | E56: SELL | F56: 124,000 | G56: 41.64 | H56: BSE
A57: 2024-05-03 | B57: 541703 | C57: RACONTEUR | D57: AMIT KUMAR JAIN HUF | E57: SELL | F57: 46,400 | G57: 26.77 | H57: BSE
A58: 2024-05-03 | B58: 541703 | C58: RACONTEUR | D58: AMIT KUMAR JAIN HUF | E58: BUY | F58: 46,400 | G58: 26.56 | H58: BSE
A59: 2024-05-03 | B59: 540590 | C59: RIDDHICORP | D59: KISHOR AMRITALAL VYAS | E59: SELL | F59: 77,081 | G59: 105 | H59: BSE
A60: 2024-05-03 | B60: 540590 | C60: RIDDHICORP | D60: ALACRITY SECURITIES LIMITED | E60: BUY | F60: 77,699 | G60: 105 | H60: BSE
A61: 2024-05-03 | B61: 539584 | C61: SIPTL | D61: NIKHIL RAJESH SINGH | E61: BUY | F61: 9,996,000 | G61: 0.94 | H61: BSE
A62: 2024-05-03 | B62: 539584 | C62: SIPTL | D62: SHUBHAM ASHOKBHAI PATEL | E62: BUY | F62: 5,502,600 | G62: 0.94 | H62: BSE
A63: 2024-05-03 | B63: 539584 | C63: SIPTL | D63: NIKHIL RAJESH SINGH | E63: SELL | F63: 10,350,512 | G63: 0.99 | H63: BSE
A64: 2024-05-03 | B64: 539584 | C64: SIPTL | D64: MAHADEV MANUBHAI MAKVANA | E64: SELL | F64: 9,652,174 | G64: 0.94 | H64: BSE
A65: 2024-05-03 | B65: 539584 | C65: SIPTL | D65: CHANDAN CHAURASIYA | E65: SELL | F65: 9,300,000 | G65: 0.94 | H65: BSE
A66: 2024-05-03 | B66: 539584 | C66: SIPTL | D66: KAMLESH NAVINCHANDRA SHAH | E66: SELL | F66: 400,504 | G66: 0.99 | H66: BSE
A67: 2024-05-03 | B67: 539584 | C67: SIPTL | D67: SETU SECURITIES PVT. LTD. | E67: SELL | F67: 1,000,000 | G67: 0.94 | H67: BSE
A68: 2024-05-03 | B68: 539584 | C68: SIPTL | D68: MULTIPLIER SHARE & STOCK ADVISORS PRIVATE LIMITED | E68: SELL | F68: 1,066,715 | G68: 0.98 | H68: BSE
A69: 2024-05-03 | B69: 539584 | C69: SIPTL | D69: SETU SECURITIES PVT. LTD. | E69: BUY | F69: 1,000,000 | G69: 0.94 | H69: BSE
A70: 2024-05-03 | B70: 539584 | C70: SIPTL | D70: MULTIPLIER SHARE & STOCK ADVISORS PRIVATE LIMITED | E70: BUY | F70: 6,000,000 | G70: 0.94 | H70: BSE
A71: 2024-05-03 | B71: 539584 | C71: SIPTL | D71: KAMLESH NAVINCHANDRA SHAH | E71: BUY | F71: 700,000 | G71: 0.97 | H71: BSE
A72: 2024-05-03 | B72: 543924 | C72: SONALIS | D72: GREEN PEAKS ENTERPRISES LLP | E72: BUY | F72: 14,000 | G72: 69.79 | H72: BSE
A73: 2024-05-03 | B73: 543924 | C73: SONALIS | D73: GREEN PEAKS ENTERPRISES LLP | E73: SELL | F73: 12,000 | G73: 69.79 | H73: BSE
A74: 2024-05-03 | B74: 543924 | C74: SONALIS | D74: MILIND MADHANI SECURITIES PRIVATE LIMITED | E74: SELL | F74: 18,000 | G74: 69.79 | H74: BSE
A75: 2024-05-03 | B75: 543924 | C75: SONALIS | D75: BIJAL KISHORECHAND MADHANI (HUF) | E75: BUY | F75: 10,000 | G75: 69.79 | H75: BSE
A76: 2024-05-03 | B76: 543924 | C76: SONALIS | D76: MILIND MADHANI SECURITIES PRIVATE LIMITED | E76: BUY | F76: 24,000 | G76: 69.79 | H76: BSE
A77: 2024-05-03 | B77: 543924 | C77: SONALIS | D77: BONANZA PORTFOLIO LIMITED | E77: BUY | F77: 22,000 | G77: 69.79 | H77: BSE
A78: 2024-05-03 | B78: 543924 | C78: SONALIS | D78: SANDESH KHANDELWAL | E78: SELL | F78: 20,000 | G78: 69.79 | H78: BSE
A79: 2024-05-03 | B79: 543924 | C79: SONALIS | D79: RISHI KHANDELWAL | E79: SELL | F79: 22,000 | G79: 69.19 | H79: BSE
A80: 2024-05-03 | B80: 543924 | C80: SONALIS | D80: RISHI KHANDELWAL | E80: BUY | F80: 2,000 | G80: 63.2 | H80: BSE
A81: 2024-05-03 | B81: 543924 | C81: SONALIS | D81: RUCHIRA GOYAL | E81: SELL | F81: 10,000 | G81: 67.58 | H81: BSE
A82: 2024-05-03 | B82: 543924 | C82: SONALIS | D82: RUCHIRA GOYAL | E82: BUY | F82: 4,000 | G82: 69.79 | H82: BSE
A83: 2024-05-03 | B83: 543924 | C83: SONALIS | D83: ANANT WEALTH CONSULTANTS PRIVATE LIMITED | E83: SELL | F83: 24,000 | G83: 69.79 | H83: BSE
A84: 2024-05-03 | B84: 543924 | C84: SONALIS | D84: VARUN VERMA | E84: BUY | F84: 10,000 | G84: 68.99 | H84: BSE
A85: 2024-05-03 | B85: 543924 | C85: SONALIS | D85: PARESH DHIRAJLAL SHAH | E85: SELL | F85: 10,000 | G85: 69.79 | H85: BSE
A86: 2024-05-03 | B86: 517548 | C86: STARLITE | D86: INDRACHAUHAN | E86: BUY | F86: 100,000 | G86: 2.16 | H86: BSE
A87: 2024-05-03 | B87: 517548 | C87: STARLITE | D87: N L RUNGTA (HUF) | E87: SELL | F87: 178,500 | G87: 2.18 | H87: BSE
A88: 2024-05-03 | B88: 531716 | C88: TRICOMFRU | D88: KUMAR MODANI RAJ | E88: SELL | F88: 147,860 | G88: 2.2 | H88: BSE
A89: 2024-05-03 | B89: ARROWGREEN | C89: Arrow Greentech Limited | D89: GRAVITON RESEARCH CAPITAL LLP | E89: BUY | F89: 128,773 | G89: 527.52 | H89: NSE
A90: 2024-05-03 | B90: BIRDYS | C90: Grill Splendour Ser Ltd | D90: BLACK HAWK PROPERTIES PRIVATE LIMITED | E90: BUY | F90: 67,200 | G90: 98.5 | H90: NSE
A91: 2024-05-03 | B91: BTML | C91: Bodhi Tree Multimedia Ltd | D91: FAST TRACK FINSEC PRIVATE LIMITED | E91: BUY | F91: 522,882 | G91: 17.48 | H91: NSE
A92: 2024-05-03 | B92: CENTENKA | C92: Century Enka Ltd | D92: GRAVITON RESEARCH CAPITAL LLP | E92: BUY | F92: 167,202 | G92: 522.97 | H92: NSE
A93: 2024-05-03 | B93: CIGNITITEC | C93: Cigniti Technologies Ltd | D93: RAJASTHAN GLOBAL SECURITIES PVT LTD | E93: BUY | F93: 277,661 | G93: 1348.76 | H93: NSE
A94: 2024-05-03 | B94: CMNL | C94: Chaman Metallics Limited | D94: MULTIPLIER SHARE & STOCK ADVISORS PRIVATE LIMITED | E94: BUY | F94: 145,500 | G94: 82.25 | H94: NSE
A95: 2024-05-03 | B95: COFORGE | C95: Coforge Limited | D95: GRAVITON RESEARCH CAPITAL LLP | E95: BUY | F95: 360,584 | G95: 4567.73 | H95: NSE
A96: 2024-05-03 | B96: DUGLOBAL | C96: DUDIGITAL GLOBAL LIMITED | D96: IND SWIFT LABORATORIES LIMITED | E96: BUY | F96: 500,000 | G96: 74.03 | H96: NSE
A97: 2024-05-03 | B97: GLOBE | C97: Globe Textiles (I) Ltd. | D97: INTERTICK DEVELOPERS PRIVATE LIMITED | E97: BUY | F97: 1,666,661 | G97: 3.65 | H97: NSE
A98: 2024-05-03 | B98: GRASIMPP | C98: Grasim Industries Limited | D98: MORGAN STANLEY ASIA SINGAPORE PTE | E98: BUY | F98: 319,113 | G98: 1202.05 | H98: NSE
A99: 2024-05-03 | B99: GRAVITA | C99: Gravita India Limited | D99: ABUDHABI INVESTMENT AUTHORITY MONSOON (IEDPASIVE/EMIINDIA) | E99: BUY | F99: 750,000 | G99: 934.4 | H99: NSE
A100: 2024-05-03 | B100: LAXMICOT | C100: Laxmi Cotspin Limited | D100: SANDIP SUKHABHAI KHANT | E100: BUY | F100: 56,027 | G100: 35.53 | H100: NSE
A101: 2024-05-03 | B101: LAXMICOT | C101: Laxmi Cotspin Limited | D101: AXAYKUMAR DASHARATHSINH VAGHELA | E101: BUY | F101: 260,260 | G101: 36.55 | H101: NSE
A102: 2024-05-03 | B102: LLOYDS | C102: Lloyds Luxuries Limited | D102: MAHEK MEHUL SHAH | E102: BUY | F102: 121,000 | G102: 146.8 | H102: NSE
A103: 2024-05-03 | B103: NDL | C103: Nandan Denim Limited | D103: NISHCHAYA TRADINGS PRIVATE LIMITED | E103: BUY | F103: 760,000 | G103: 38.96 | H103: NSE
A104: 2024-05-03 | B104: RBL | C104: Rane Brake Lining Limited | D104: NK SECURITIES RESEARCH PRIVATE LIMITED | E104: BUY | F104: 88,302 | G104: 977.64 | H104: NSE
A105: 2024-05-03 | B105: RBL | C105: Rane Brake Lining Limited | D105: QE SECURITIES LLP | E105: BUY | F105: 37,382 | G105: 984.9 | H105: NSE
A106: 2024-05-03 | B106: RBL | C106: Rane Brake Lining Limited | D106: GRAVITON RESEARCH CAPITAL LLP | E106: BUY | F106: 64,591 | G106: 934.48 | H106: NSE
A107: 2024-05-03 | B107: RBL | C107: Rane Brake Lining Limited | D107: GAURAV PALIWAL | E107: BUY | F107: 42,788 | G107: 1014.59 | H107: NSE
A108: 2024-05-03 | B108: SABAR | C108: Sabar Flex India Limited | D108: PRADIP HASMUKHBHAI PANCHAL | E108: BUY | F108: 120,000 | G108: 20.75 | H108: NSE
A109: 2024-05-03 | B109: SONAMAC | C109: Sona Machinery Limited | D109: YUGA STOCKS AND COMMODITIES PRIVATE LIMITED . | E109: BUY | F109: 90,000 | G109: 163.95 | H109: NSE
A110: 2024-05-03 | B110: SONAMAC | C110: Sona Machinery Limited | D110: LATHE DERIVATIVES TRADING PRIVATE LIMITED . | E110: BUY | F110: 137,000 | G110: 163.94 | H110: NSE
A111: 2024-05-03 | B111: TAJGVK | C111: Taj GVK Hotels & Resorts | D111: GRAVITON RESEARCH CAPITAL LLP | E111: BUY | F111: 564,578 | G111: 410.1 | H111: NSE
A112: 2024-05-03 | B112: TFL | C112: Transwarranty Finance Lim | D112: BONANZA PORTFOLIO LTD | E112: BUY | F112: 297,842 | G112: 13.8 | H112: NSE
A113: 2024-05-03 | B113: TFL | C113: Transwarranty Finance Lim | D113: JAIN POOJA | E113: BUY | F113: 526,000 | G113: 13.8 | H113: NSE
A114: 2024-05-03 | B114: TFL | C114: Transwarranty Finance Lim | D114: AMIT KUMAR JAIN HUF | E114: BUY | F114: 566,290 | G114: 13.83 | H114: NSE
A115: 2024-05-03 | B115: TFL | C115: Transwarranty Finance Lim | D115: NARAYAN PAL HUF | E115: BUY | F115: 400,003 | G115: 13.85 | H115: NSE
A116: 2024-05-03 | B116: TFL | C116: Transwarranty Finance Lim | D116: CHITTILANGATKALAM HAREENDRAN | E116: BUY | F116: 70,000 | G116: 12.87 | H116: NSE
A117: 2024-05-03 | B117: TFL | C117: Transwarranty Finance Lim | D117: SHRI MUKTA SHARES | E117: BUY | F117: 303,280 | G117: 13.8 | H117: NSE
A118: 2024-05-03 | B118: TGL | C118: Teerth Gopicon Limited | D118: ASHWIN STOCKS AND INVESTMENT PRIVATE LIMITED | E118: BUY | F118: 110,400 | G118: 238.34 | H118: NSE
A119: 2024-05-03 | B119: TGL | C119: Teerth Gopicon Limited | D119: VISHAL BIPINKUMAR DOSHI | E119: BUY | F119: 120,000 | G119: 245.86 | H119: NSE
A120: 2024-05-03 | B120: TGL | C120: Teerth Gopicon Limited | D120: SOHAM FINCARE INDIA LLP | E120: BUY | F120: 68,400 | G120: 232.52 | H120: NSE
A121: 2024-05-03 | B121: TOKYOPLAST | C121: Tokyo Plast Intl Ltd | D121: SETU SECURITIES PVT LTD | E121: BUY | F121: 98,103 | G121: 134.82 | H121: NSE
A122: 2024-05-03 | B122: TRU | C122: TruCap Finance Limited | D122: NIVL IT SERVICES PRIVATE LIMITED | E122: BUY | F122: 400,000 | G122: 65.91 | H122: NSE
A123: 2024-05-03 | B123: TRU | C123: TruCap Finance Limited | D123: OSC GLOBAL PROCESSING PRIVATE LIMITED | E123: BUY | F123: 1,213,419 | G123: 64.22 | H123: NSE
A124: 2024-05-03 | B124: TVSELECT | C124: TVS Electronics Limited | D124: GRAVITON RESEARCH CAPITAL LLP | E124: BUY | F124: 176,817 | G124: 362.03 | H124: NSE
A125: 2024-05-03 | B125: TVSELECT | C125: TVS Electronics Limited | D125: MANSI SHARE AND STOCK ADVISORS PVT LTD | E125: BUY | F125: 9,219 | G125: 361.98 | H125: NSE
A126: 2024-05-03 | B126: UGROCAP | C126: Ugro Capital Limited | D126: GRAVITON RESEARCH CAPITAL LLP | E126: BUY | F126: 480,442 | G126: 293.93 | H126: NSE
A127: 2024-05-03 | B127: UNIVASTU | C127: Univastu India Limited | D127: KRISHNA AWTAR JAGANNATH KABRA HUF | E127: BUY | F127: 80,600 | G127: 207.52 | H127: NSE
A128: 2024-05-03 | B128: YESBANK | C128: Yes Bank Limited | D128: GOLDMAN SACHS (SINGAPORE) PTE.- ODI | E128: BUY | F128: 369,243,945 | G128: 24.26 | H128: NSE
A129: 2024-05-03 | B129: ANMOL | C129: Anmol India Limited | D129: BHAGVATIBEN JYANTILAL PANCHAL | E129: SELL | F129: 350,000 | G129: 39 | H129: NSE
A130: 2024-05-03 | B130: ARROWGREEN | C130: Arrow Greentech Limited | D130: GRAVITON RESEARCH CAPITAL LLP | E130: SELL | F130: 128,773 | G130: 527.66 | H130: NSE
A131: 2024-05-03 | B131: BIRDYS | C131: Grill Splendour Ser Ltd | D131: NISHITH ATULBHAI SHAH | E131: SELL | F131: 58,800 | G131: 98.5 | H131: NSE
A132: 2024-05-03 | B132: BTML | C132: Bodhi Tree Multimedia Ltd | D132: FAST TRACK FINSEC PRIVATE LIMITED | E132: SELL | F132: 669,270 | G132: 17.14 | H132: NSE
A133: 2024-05-03 | B133: CENTENKA | C133: Century Enka Ltd | D133: GRAVITON RESEARCH CAPITAL LLP | E133: SELL | F133: 167,202 | G133: 523.42 | H133: NSE
A134: 2024-05-03 | B134: CMNL | C134: Chaman Metallics Limited | D134: MULTIPLIER SHARE & STOCK ADVISORS PRIVATE LIMITED | E134: SELL | F134: 73,500 | G134: 82.27 | H134: NSE
A135: 2024-05-03 | B135: COFORGE | C135: Coforge Limited | D135: GRAVITON RESEARCH CAPITAL LLP | E135: SELL | F135: 354,884 | G135: 4567.73 | H135: NSE
A136: 2024-05-03 | B136: DELAPLEX | C136: Delaplex Limited | D136: CHANAKYA OPPORTUNITIES FUND I | E136: SELL | F136: 52,200 | G136: 232 | H136: NSE
A137: 2024-05-03 | B137: GRASIMPP | C137: Grasim Industries Limited | D137: MIRAE ASSET MUTUAL FUND | E137: SELL | F137: 300,000 | G137: 1200.58 | H137: NSE
A138: 2024-05-03 | B138: GRAVITA | C138: Gravita India Limited | D138: RAJAT AGRAWAL | E138: SELL | F138: 750,000 | G138: 934.4 | H138: NSE
A139: 2024-05-03 | B139: JALAN | C139: Jalan Transolu. India Ltd | D139: VKC CORPORATE SOLUTIONS PRIVATE LIMITED | E139: SELL | F139: 111,000 | G139: 3.77 | H139: NSE
A140: 2024-05-03 | B140: JETFREIGHT | C140: Jet Freight Logistics Ltd | D140: SETU SECURITIES PVT LTD | E140: SELL | F140: 232,876 | G140: 13.95 | H140: NSE
A141: 2024-05-03 | B141: LAXMICOT | C141: Laxmi Cotspin Limited | D141: AXAYKUMAR DASHARATHSINH VAGHELA | E141: SELL | F141: 260,260 | G141: 36.13 | H141: NSE
A142: 2024-05-03 | B142: LAXMICOT | C142: Laxmi Cotspin Limited | D142: SANDIP SUKHABHAI KHANT | E142: SELL | F142: 151,659 | G142: 35.28 | H142: NSE
A143: 2024-05-03 | B143: MADHUSUDAN | C143: Madhusudan Masala Limited | D143: AVNEESH KUMAR RANA | E143: SELL | F143: 85,000 | G143: 132.12 | H143: NSE
A144: 2024-05-03 | B144: NDL | C144: Nandan Denim Limited | D144: NISHCHAYA TRADINGS PRIVATE LIMITED | E144: SELL | F144: 282,481 | G144: 39.1 | H144: NSE
A145: 2024-05-03 | B145: RBL | C145: Rane Brake Lining Limited | D145: QE SECURITIES LLP | E145: SELL | F145: 40,400 | G145: 982.59 | H145: NSE
A146: 2024-05-03 | B146: RBL | C146: Rane Brake Lining Limited | D146: GRAVITON RESEARCH CAPITAL LLP | E146: SELL | F146: 64,593 | G146: 933.05 | H146: NSE
A147: 2024-05-03 | B147: RBL | C147: Rane Brake Lining Limited | D147: NK SECURITIES RESEARCH PRIVATE LIMITED | E147: SELL | F147: 89,070 | G147: 979.12 | H147: NSE
A148: 2024-05-03 | B148: SABAR | C148: Sabar Flex India Limited | D148: THAKOR NAYANA CHANDUBHAI | E148: SELL | F148: 120,000 | G148: 20.75 | H148: NSE
A149: 2024-05-03 | B149: SECURCRED | C149: SecUR Credentials Limited | D149: KUNVARJI FINSTOCK PVT LTD | E149: SELL | F149: 450,000 | G149: 17.57 | H149: NSE
A150: 2024-05-03 | B150: SONAMAC | C150: Sona Machinery Limited | D150: YUGA STOCKS AND COMMODITIES PRIVATE LIMITED . | E150: SELL | F150: 61,000 | G150: 163.95 | H150: NSE
A151: 2024-05-03 | B151: SONAMAC | C151: Sona Machinery Limited | D151: LATHE DERIVATIVES TRADING PRIVATE LIMITED . | E151: SELL | F151: 110,000 | G151: 163.94 | H151: NSE
A152: 2024-05-03 | B152: TAJGVK | C152: Taj GVK Hotels & Resorts | D152: GRAVITON RESEARCH CAPITAL LLP | E152: SELL | F152: 564,578 | G152: 410.5 | H152: NSE
A153: 2024-05-03 | B153: TFL | C153: Transwarranty Finance Lim | D153: SHRI MUKTA SHARES | E153: SELL | F153: 303,280 | G153: 13.83 | H153: NSE
A154: 2024-05-03 | B154: TFL | C154: Transwarranty Finance Lim | D154: CHITTILANGATKALAM HAREENDRAN | E154: SELL | F154: 550,000 | G154: 13.82 | H154: NSE
A155: 2024-05-03 | B155: TFL | C155: Transwarranty Finance Lim | D155: CHANGARAMKANDATH PADMANABHAN USHA | E155: SELL | F155: 1,169,544 | G155: 13.83 | H155: NSE
A156: 2024-05-03 | B156: TFL | C156: Transwarranty Finance Lim | D156: NARAYAN PAL HUF | E156: SELL | F156: 400,003 | G156: 13.76 | H156: NSE
A157: 2024-05-03 | B157: TFL | C157: Transwarranty Finance Lim | D157: AMIT KUMAR JAIN HUF | E157: SELL | F157: 566,290 | G157: 13.83 | H157: NSE
A158: 2024-05-03 | B158: TFL | C158: Transwarranty Finance Lim | D158: BONANZA PORTFOLIO LTD | E158: SELL | F158: 237,972 | G158: 13.59 | H158: NSE
A159: 2024-05-03 | B159: TFL | C159: Transwarranty Finance Lim | D159: JAIN POOJA | E159: SELL | F159: 526,000 | G159: 13.78 | H159: NSE
A160: 2024-05-03 | B160: TGL | C160: Teerth Gopicon Limited | D160: ASHWIN STOCKS AND INVESTMENT PRIVATE LIMITED | E160: SELL | F160: 110,400 | G160: 241.16 | H160: NSE
A161: 2024-05-03 | B161: TGL | C161: Teerth Gopicon Limited | D161: SOHAM FINCARE INDIA LLP | E161: SELL | F161: 68,400 | G161: 233.13 | H161: NSE
A162: 2024-05-03 | B162: TGL | C162: Teerth Gopicon Limited | D162: VISHAL BIPINKUMAR DOSHI | E162: SELL | F162: 2,400 | G162: 245.95 | H162: NSE
A163: 2024-05-03 | B163: TIL-RE | C163: TIL Ltd | D163: GUTTIKONDA RAJASEKHAR | E163: SELL | F163: 367,626 | G163: 152.84 | H163: NSE
A164: 2024-05-03 | B164: TOKYOPLAST | C164: Tokyo Plast Intl Ltd | D164: SETU SECURITIES PVT LTD | E164: SELL | F164: 97,903 | G164: 138.02 | H164: NSE
A165: 2024-05-03 | B165: TRU | C165: TruCap Finance Limited | D165: NIVL IT SERVICES PRIVATE LIMITED | E165: SELL | F165: 681,841 | G165: 62.81 | H165: NSE
A166: 2024-05-03 | B166: TRU | C166: TruCap Finance Limited | D166: OSC GLOBAL PROCESSING PRIVATE LIMITED | E166: SELL | F166: 1,124,311 | G166: 65.67 | H166: NSE
A167: 2024-05-03 | B167: TVSELECT | C167: TVS Electronics Limited | D167: GRAVITON RESEARCH CAPITAL LLP | E167: SELL | F167: 176,817 | G167: 362.5 | H167: NSE
A168: 2024-05-03 | B168: TVSELECT | C168: TVS Electronics Limited | D168: MANSI SHARE AND STOCK ADVISORS PVT LTD | E168: SELL | F168: 110,337 | G168: 362.43 | H168: NSE
A169: 2024-05-03 | B169: UGROCAP | C169: Ugro Capital Limited | D169: GRAVITON RESEARCH CAPITAL LLP | E169: SELL | F169: 480,442 | G169: 293.92 | H169: NSE
A170: 2024-05-03 | B170: UNIVASTU | C170: Univastu India Limited | D170: KRISHNA AWTAR JAGANNATH KABRA HUF | E170: SELL | F170: 45,000 | G170: 210.61 | H170: NSE
A171: 2024-05-03 | B171: YESBANK | C171: Yes Bank Limited | D171: CA BASQUE INVESTMENTS | E171: SELL | F171: 594,000,000 | G171: 24.27 | H171: NSE

Sheet Call Tracker (Equity & F&O)
M5: Back To Main Page
A6: Retail Research Technical Calls & Fundamental Performance Report for the month of May-2024
M7: =Main!B10 -> 2024-05-06
B8: Positional Call
A9: Sr.no | B9: Date | D9: Company | E9: Rec | F9: Rec Price | G9: Stop Loss*** | H9: Call Closed At | I9: Target | J9: Remark | K9: Profit / Loss per Share | L9: All charges | M9: Net Gain / Loss % | N9: Status | O9: Closed Date | P9: Market Closing Price | Q9: Second Buying Date
A10: 1 | B10: 2024-03-11 | D10: NESTLEIND | E10: Accu | F10: 2485-2585 | G10: 2390 | I10: 2800-3000 | J10: Open | P10: =VLOOKUP(D10,'MidCap Intra'!$B$11:$C$568,2,0) -> 2456.10 | S10: H
A11: 2 | B11: 2024-03-22 | D11: TCS | E11: Accu | F11: 3780-3880 | G11: 3640 | I11: 4100-4200 | J11: Open | P11: =VLOOKUP(D11,'MidCap Intra'!$B$11:$C$568,2,0) -> 3843.40 | S11: H
A12: 3 | B12: 2024-04-03 | D12: BRITANNIA | E12: Accu | F12: 4710-4810 | G12: 4580 | I12: 5050-5300 | J12: Open | P12: =VLOOKUP(D12,'MidCap Intra'!$B$11:$C$568,2,0) -> 4744.60 | S12: H
A13: 4 | B13: 2024-04-12 | D13: GLAND | E13: Accu | F13: 1705-1750 | G13: 1625 | I13: 1875-2000 | J13: Open | P13: =VLOOKUP(D13,'MidCap Intra'!$B$11:$C$568,2,0) -> 1686.45 | S13: K
A14: 5 | B14: 2024-04-15 | D14: HDFCBANK | E14: Accu | F14: 1445-1497 | G14: 1377 | I14: 1630-1750 | J14: Open | P14: =VLOOKUP(D14,'MidCap Intra'!$B$11:$C$568,2,0) -> 1519.60 | S14: H
A15: 6 | B15: 2024-04-23 | D15: PRSMJOHNSN | E15: Accu | F15: 158-164 | G15: 149.5 | I15: 180-195 | J15: Open | P15: =VLOOKUP(D15,'MidCap Intra'!$B$11:$C$568,2,0) -> 160.65 | S15: H
A16: 7 | B16: 2024-04-29 | D16: SUNTV | E16: Accu | F16: 632.5-652.5 | G16: 618 | I16: 695-730 | J16: Open | P16: =VLOOKUP(D16,'MidCap Intra'!$B$11:$C$568,2,0) -> 655.95 | S16: H
A17: 8 | B17: 2024-04-30 | D17: LTF | E17: Accu | F17: 162-169 | G17: 159 | I17: 180-190 | J17: Open | P17: =VLOOKUP(D17,'MidCap Intra'!$B$11:$C$568,2,0) -> 167.75 | S17: H
A18: 9 | B18: 2024-04-30 | D18: KPITTECH | E18: Accu | F18: 1410-1480 | G18: 1360 | I18: 1600-1700 | J18: Open | P18: =VLOOKUP(D18,'MidCap Intra'!$B$11:$C$568,2,0) -> 1537.25 | S18: H
A19: 10 | B19: 2024-05-02 | D19: HCLTECH | E19: Accu | F19: 1310-1360 | G19: 1285 | I19: 1435-1510 | J19: Open | P19: =VLOOKUP(D19,'MidCap Intra'!$B$11:$C$568,2,0) -> 1348.05 | S19: H
A24: CLBS = Closing Basis ***
A25: Dividend adjusted <> | F25: Reinitiated $
A26: Part book {} | D26: s | F26: Revised stoploss #
A30: Master Trade High Risk
A31: Sr.no | B31: Date | D31: Company | E31: Rec | F31: Rec Price | G31: Stop Loss | H31: Call Closed At | I31: Target | J31: Remark | K31: Profit / Loss per share | L31: All charges | M31: Gain / Loss per Lot | N31: Lot | O31: Status | P31: Closed Date
A32: 1 | B32: 2024-04-26 | D32: TATACONSUM MAY FUT | E32: Buy | F32: 1102.5 | G32: 1078 | H32: 1114 | I32: 1128-1150 | J32: Profit of Rs.11.5/- | K32: =H32-F32 -> 11.5 | L32: =(H32*N32)*0.03% -> 150.39 | M32: =(K32*N32)-L32 -> 5024.6 | N32: 450 | O32: Successful | P32: 2024-05-03 | S32: H
A33: 2 | B33: 2024-05-02 | D33: JUBLFOOD MAY FUT | E33: Buy | F33: 457 | G33: 448 | H33: 465.5 | I33: 468-478 | J33: Profit of Rs.8.5/- | K33: =H33-F33 -> 8.5 | L33: =(H33*N33)*0.03% -> 174.56 | M33: =(K33*N33)-L33 -> 10450.4 | N33: 1250 | O33: Successful | P33: 2024-05-03 | S33: H
A34: 3 | B34: 2024-05-02 | D34: ASIANPAINT MAY FUT | E34: Buy | F34: 3002.5 | G34: 2950 | H34: 2950 | I34: 3055-3108 | J34: Loss of Rs.52.5/- | K34: =H34-F34 -> -52.5 | L34: =(H34*N34)*0.03% -> 177.00 | M34: =(K34*N34)-L34 -> -10677.0 | N34: 200 | O34: Unsuccessful | P34: 2024-05-03 | S34: N
A39: Master Trade Medium Risk
A40: Sr.no | B40: Date | D40: Company | E40: Rec | F40: Rec Price | G40: Stop Loss | H40: Call Closed At | I40: Target | J40: Remark | K40: Profit/ Loss per lot | L40: All charges | M40: Gain / Loss per Lot | N40: Lot | O40: Status | P40: Closed Date
A41: 1 | B41: 2024-04-29 | D41: NIFTY 21800 PE 30 MAY | E41: Sell | F41: 80-82 | J41: Open | S41: H
D42: NIFTY 23200 CE 30 MAY | E42: Sell | F42: 94-96
A43: 2 | B43: 2024-05-02 | D43: KOTAKBANK 1600 CE 30 MAY | E43: Buy | F43: 32 | H43: 44 | J43: Profit of Rs.7/- | K43: =H43-F43 -> 12 | L43: 50.00 | M43: 2700.0 | N43: 400 | O43: Successful | P43: 2024-05-02 | S43: H
D44: KOTAKBANK 1660 CE 30 MAY | E44: Sell | F44: 16 | H44: 21 | K44: =F44-H44 -> -5 | L44: 50.00 | N44: 400
A45: 3 | B45: 2024-05-02 | D45: NIFTY 22700 PE 2-MAY | E45: Buy | F45: 40 | G45: 10 | H45: 65.5 | I45: 80-120 | J45: Profit of Rs.25.5/- | K45: =H45-F45 -> 25.5 | L45: 50.00 | M45: =(K45*N45)-L45 -> 1225.0 | N45: 50 | O45: Successful | P45: 2024-05-02 | S45: H
A46: 4 | B46: 2024-05-02 | D46: NIFTY 22700 PE 2-MAY | E46: Buy | F46: 37.5 | G46: 10 | H46: 57.5 | I46: 80-120 | J46: Profit of Rs.20/- | K46: =H46-F46 -> 20 | L46: 50.00 | M46: =(K46*N46)-L46 -> 950.0 | N46: 50 | O46: Successful | P46: 2024-05-02 | S46: H
A47: 5 | B47: 2024-05-02 | D47: KOTAKBANK 1600 CE 30 MAY | E47: Buy | F47: 39 | H47: 30.5 | J47: Loss of Rs.04/- | K47: =H47-F47 -> -8.5 | L47: 50.00 | M47: -1700.0 | N47: 400 | O47: Unsuccessful | P47: 2024-05-03 | S47: H
D48: KOTAKBANK 1660 CE 30 MAY | E48: Sell | F48: 19 | H48: 14.5 | K48: =F48-H48 -> 4.5 | L48: 50.00 | N48: 400
A49: 6 | B49: 2024-04-29 | D49: NIFTY 22600 CE 2-MAY | E49: Sell | F49: 132 | H49: 87 | J49: Profit of Rs.24/- | K49: =F49-H49 -> 45 | L49: 50.00 | M49: 1100.0 | N49: 50 | O49: Successful | P49: 2024-05-02 | S49: N
D50: NIFTY 22750 CE 2-MAY | E50: Buy | F50: 26 | H50: 5 | K50: =H50-F50 -> -21 | L50: 50.00 | N50: 50
A51: 7 | B51: 2024-05-03 | D51: NIFTY 22800 PE 9-MAY | E51: Buy | F51: 130 | H51: 212.5 | J51: Profit of Rs.33/- | K51: =H51-F51 -> 82.5 | L51: 50.00 | M51: 1550.0 | N51: 50 | O51: Successful | P51: 2024-05-03
D52: NIFTY 22600 PE 9-MAY | E52: Sell | F52: 63 | H52: 112.5 | K52: =F52-H52 -> -49.5 | L52: 50.00 | N52: 50
A53: 8 | B53: 2024-05-03 | D53: FINNIFTY 21950 CE 7-MAY | E53: Buy | F53: 122 | G53: 80 | H53: 80 | I53: 160-200 | J53: Loss of Rs.42/- | K53: =H53-F53 -> -42 | L53: 50.00 | M53: =(K53*N53)-L53 -> -1730.0 | N53: 40 | O53: Unsuccessful | P53: 2024-05-03
A54: 9 | B54: 2024-05-03 | D54: BANKNIFTY 49200 CE 8-MAY | E54: Buy | F54: 295 | G54: 190 | H54: 360 | I54: 400-500 | J54: Profit of Rs.65/- | K54: =H54-F54 -> 65 | L54: 50.00 | M54: =(K54*N54)-L54 -> 925.0 | N54: 15 | O54: Successful | P54: 2024-05-03
A58: Techno -Funda (positional)
A59: Sr.no | B59: Date | D59: Company | E59: Rec | F59: Rec Price | G59: Stop Loss*** | H59: Call Closed At | I59: Target | J59: Remark | K59: Profit / Loss per Share/Lot | L59: All charges | M59: Net Gain / Loss % | N59: Status | O59: Closed Date | P59: Market Closing Price | Q59: Second Buying Date
A60: 1 | B60: 2024-03-05 | D60: TRIDENT | E60: Accu | F60: 37.3-41.30 | G60: 35 | I60: 48-52 | J60: Open | P60: =VLOOKUP(D60,'MidCap Intra'!$B$11:$C$568,2,0) -> 39.50 | S60: H
A61: 2 | B61: 2024-04-08 | D61: NILKAMAL | E61: Accu | F61: 1855-1955 | G61: 1770 | I61: 2150-2350 | J61: Open | S61: H
A64: CLBS = Closing Basis *** | F64: Reinitiated $
A65: Dividend adjusted <> | F65: Revised stoploss # | H65: .................
B74: Investment Idea
A75: Sr.no | B75: Date | D75: Company | E75: Rec | F75: Rec Price | G75: Point of Review | H75: Close Rate | I75: Target | J75: Remark | K75: Profit / Loss per Share | L75: Gain / Loss % | M75: Status | N75: Closed Date
A76: 1 | B76: 2013-11-01 | D76: L&T Finance Holding | E76: Accu | F76: 82.00 | G76: - | H76: 100 | I76: 100.00 | J76: Target Achieved | K76: =H76-F76 -> 18.00 | L76: =K76/F76 -> 21.95% | M76: Successful | N76: 2016-10-14
A77: 2 | B77: 2014-06-04 | D77: Finolex Inds | E77: Buy | F77: 257.00 | G77: - | H77: 300 | I77: 300.00 | J77: Target Achieved | K77: 43.00 | L77: 16.73% | M77: Successful | N77: 2014-07-02
A78: 3 | B78: 2014-07-08 | D78: JK Cement | E78: Buy | F78: 393.00 | G78: - | H78: 468 | I78: 468.00 | J78: Target Achieved | K78: 75.00 | L78: 19.08% | M78: Successful | N78: 2014-08-12
A79: 4 | B79: 2014-08-06 | D79: Finolex Cables | E79: Buy | F79: 205.00 | G79: - | H79: 275 | I79: 250.00 | J79: Target Achieved | K79: 70.00 | L79: 34.15% | M79: Successful | N79: 2014-11-19
A80: 5 | B80: 2014-09-04 | D80: Exide Inds | E80: Buy | F80: 162.00 | G80: - | H80: 190 | I80: 190.00 | J80: Target Achieved | K80: 28.00 | L80: 17.28% | M80: Successful | N80: 2015-01-02
A81: 6 | B81: 2014-09-04 | D81: Deepak Nitrite | E81: Buy | F81: 75.00 | G81: - | H81: 91.5 | I81: 95-100 | J81: Profit of Rs.16.50/- | K81: 16.50 | L81: 22.00% | M81: Successful | N81: 2014-11-11
A82: 7 | B82: 2014-10-01 | D82: Mercks | E82: Buy | F82: 850.00 | G82: - | H82: 982.5 | I82: 1050.00 | J82: Profit of Rs.132.50/- | K82: 132.50 | L82: 15.59% | M82: Successful | N82: 2015-02-04
A83: 8 | B83: 2014-10-01 | D83: Grindwell Norton | E83: Buy | F83: 475.00 | G83: - | H83: 515 | I83: 600.00 | J83: Profit of Rs.40/- | K83: 40.00 | L83: 8.42% | M83: Successful | N83: 2014-10-27
A84: 9 | B84: 2014-10-01 | D84: Snowman Logistics | E84: Buy | F84: 86.00 | G84: - | H84: 99 | I84: 140.00 | J84: Profit of Rs.13.00/- | K84: 13.00 | L84: 15.12% | M84: Successful | N84: 2014-10-27
A85: 10 | B85: 2014-10-14 | D85: Birla Corp | E85: Buy | F85: 496.60 | G85: - | H85: 621 | I85: 580.00 | J85: Target Achieved | K85: 124.40 | L85: 25.05% | M85: Successful | N85: 2016-08-23
A86: 11 | B86: 2014-10-14 | D86: Ultratech Cem | E86: Buy | F86: 2481.90 | G86: - | H86: 2840 | I86: 2870.00 | J86: Profit of Rs.358.10/- | K86: 358.10 | L86: 14.43% | M86: Successful | N86: 2015-01-13
A87: 12 | B87: 2014-10-16 | D87: Sintex Inds | E87: Buy | F87: 84.50 | G87: - | H87: 93 | I87: 110.00 | J87: Profit of Rs.8.50/- | K87: 8.50 | L87: 10.06% | M87: Successful | N87: 2014-10-27
A88: 13 | B88: 2014-10-16 | D88: HSIL | E88: Buy | F88: 401.00 | G88: - | H88: 428 | I88: 450.00 | J88: Profit of Rs.27.00/- | K88: 27.00 | L88: 6.73% | M88: Successful | N88: 2015-01-16
A89: 14 | B89: 2014-10-16 | D89: Eveready Inds | E89: Buy | F89: 101.00 | G89: - | H89: 112 | I89: 120.00 | J89: Profit of Rs.11.00/- | K89: 11.00 | L89: 10.89% | M89: Successful | N89: 2014-10-27
A90: 15 | B90: 2014-11-11 | D90: Pennar Inds | E90: Buy | F90: 59.00 | G90: - | H90: 76 | I90: 76.00 | J90: Target Achieved | K90: 17.00 | L90: 28.81% | M90: Successful | N90: 2017-10-24
A91: 16 | B91: 2014-11-11 | D91: Snowman Logistics | E91: Buy | F91: 99.00 | G91: - | H91: 120 | I91: 120.00 | J91: Profit of Rs.21/- | K91: 21.00 | L91: 21.21% | M91: Successful | N91: 2014-11-17
A92: 17 | B92: 2014-11-13 | D92: Dharamsi Morarji Chem | E92: Buy | F92: 22.00 | G92: - | H92: 33.55 | I92: 32.00 | J92: Profit of Rs 11.55/- | K92: 11.55 | L92: 52.50% | M92: Successful | N92: 2015-07-03
A93: 18 | B93: 2014-12-03 | D93: Tatachem | E93: Buy | F93: 440.00 | G93: - | H93: 520 | I93: 520.00 | J93: Profit of Rs 80.00/- | K93: 80.00 | L93: 18.18% | M93: Successful | N93: 2015-07-23
A94: 19 | B94: 2014-12-03 | D94: Advanta | E94: Buy | F94: 360.00 | G94: - | H94: 427 | I94: 425.00 | J94: Profit of Rs.67.00/- | K94: 67.00 | L94: 18.61% | M94: Successful | N94: 2015-02-23
A95: 20 | B95: 2015-01-08 | D95: GDL | E95: Buy | F95: 360.00 | G95: - | H95: 455 | I95: 420.00 | J95: Profit of Rs.95.00/- | K95: 95.00 | L95: 26.39% | M95: Successful | N95: 2015-01-20
A96: 21 | B96: 2015-01-08 | D96: NRB Bearing | E96: Buy | F96: 130.00 | H96: 175.5 | I96: 165.00 | J96: Profit of Rs 45.50/- | K96: 45.50 | L96: 35.00% | M96: Successful | N96: 2017-12-19
A97: 22 | B97: 2015-02-05 | D97: GSFC | E97: Accu | F97: 98.00 | H97: 120 | I97: 120.00 | J97: Target Achieved | K97: 22.00 | L97: 22.45% | M97: Successful | N97: 2017-01-18
A98: 23 | B98: 2015-02-05 | D98: Sundrmfast | E98: Accu | F98: 196.00 | H98: 262 | I98: 255.00 | J98: Target Achieved | K98: 66.00 | L98: 33.67% | M98: Successful | N98: 2016-08-17
A99: 24 | B99: 2015-03-04 | D99: GPPL | E99: Accu | F99: 235 | H99: 77.00 | I99: 280-285 | J99: Loss of Rs.158/- | K99: -158.00 | L99: -67.23% | M99: Unsuccessful | N99: 2019-02-26
A100: 25 | B100: 2015-03-04 | D100: ORIENTCEM | E100: Accu | F100: 185.00 | H100: 224 | I100: 220-225 | J100: Target Achieved | K100: 39.00 | L100: 21.08% | M100: Successful | N100: 2016-10-04
A101: 26 | B101: 2015-03-27 | D101: PFS | E101: Accu | F101: 49.5 | H101: 15.85 | I101: 67.00 | J101: Loss of Rs.33.65/- | K101: -33.65 | L101: -68% | M101: Unsuccessful | N101: 2019-06-11
A102: 27 | B102: 2015-03-30 | D102: Walchandnagar Ind Ltd | E102: Accu | F102: 183.50 | H102: 219 | I102: 218.00 | J102: Profit of Rs.35.50/- | K102: 35.50 | L102: 19.35% | M102: Successful | N102: 2015-04-09
A103: 28 | B103: 2015-04-20 | D103: Kalpataru Power Transmission Ltd | E103: Accu | F103: =(227+237)/2 -> 232.00 | H103: 298 | I103: 298.00 | J103: Target Achieved | K103: 66.00 | L103: 28.45% | M103: Successful | N103: 2017-03-29
A104: 29 | B104: 2015-05-04 | D104: Mastek Ltd | E104: Buy | F104: 385.00 | H104: =212.5+331 -> 543.5 | I104: 510.00 | J104: Profit of Rs 158.50/- | K104: 158.50 | L104: 41.17% | M104: Successful | N104: 2015-08-19
A105: 30 | B105: 2015-05-04 | D105: Suprajit Eng | E105: Buy | F105: 115.50 | H105: 146 | I105: 142.00 | J105: Profit of Rs 30.50/- | K105: 30.50 | L105: 26.41% | M105: Successful | N105: 2015-07-17
A106: 31 | B106: 2015-05-27 | D106: TCI | E106: Buy | F106: 237.50 | H106: 279.5 | I106: 278.00 | J106: Target Achieved | K106: 42.00 | L106: 17.68% | M106: Successful | N106: 2015-08-06
A107: 32 | B107: 2015-06-19 | D107: HSIL | E107: Accu | F107: 340.00 | H107: 448 | I107: 448.00 | J107: Target Achieved | K107: 108.00 | L107: 31.76% | M107: Successful | N107: 2017-10-10
A108: 33 | B108: 2015-07-06 | D108: Capital First | E108: Accu | F108: 390.00 | H108: 460 | I108: 460.00 | J108: Target Achieved | K108: =H108-F108 -> 70.00 | L108: =K108/F108 -> 17.95% | M108: Successful | N108: 2016-04-18
A109: 34 | B109: 2015-07-10 | D109: Dolphin OffShore | E109: Accu | F109: 122.5 | H109: 61.00 | I109: 172.00 | J109: Loss of Rs.61.50/- | K109: -61.50 | L109: -50.20% | M109: Unsuccessful | N109: 2018-08-21
A110: 35 | B110: 2015-08-03 | D110: Allcargo logistics | E110: Accu | F110: 297.50 | H110: 350 | I110: 360.00 | J110: Profit of Rs 52.50/- | K110: 52.50 | L110: 17.65% | M110: Successful | N110: 2015-08-16
A111: 36 | B111: 2015-08-03 | D111: Camline Fine | E111: Accu | F111: 115.50 | H111: 149 | I111: 140.00 | J111: Profit of Rs 33.50/- | K111: 33.50 | L111: 29.00% | M111: Successful | N111: 2017-01-05
A112: 37 | B112: 2015-09-04 | D112: TCI | E112: Accu | F112: 226.00 | H112: 292 | I112: 292.00 | J112: Target Achieved | K112: 66.00 | L112: 29.20% | M112: Successful | N112: 2015-10-09
A113: 38 | B113: 2015-09-07 | D113: Kalpataru Power Transmission Ltd | E113: Accu | F113: 232.50 | H113: 312.5 | I113: 310.00 | J113: Target Achieved | K113: 80.00 | L113: 34.41% | M113: Successful | N113: 2017-03-29
A114: 39 | B114: 2015-09-21 | D114: LLOYD ELECTRIC & ENG LTD | E114: Accu | F114: 196.50 | H114: 238 | I114: 238.00 | J114: Target Achieved | K114: 41.50 | L114: 21.12% | M114: Successful | N114: 2015-10-14
A115: 40 | B115: 2015-09-24 | D115: L&T Finance Holding | E115: Accu | F115: 65.00 | H115: 82 | I115: 82.00 | J115: Target Achieved | K115: 17.00 | L115: 26.15% | M115: Successful | N115: 2016-07-27
A116: 41 | B116: 2015-10-14 | D116: KEC International ltd | E116: Accu | F116: 144.00 | H116: 182.5 | I116: 181.00 | J116: Target Achieved | K116: 38.50 | L116: 26.74% | M116: Successful | N116: 2017-03-23
A117: 42 | B117: 2015-10-14 | D117: Gruh Finance | E117: Accu | F117: 264.00 | H117: 311 | I117: 311.00 | J117: Target Achieved | K117: 47.00 | L117: 17.80% | M117: Successful | N117: 2016-08-22
A118: 43 | B118: 2015-11-10 | D118: Pidilitind | E118: Buy | F118: 549.50 | H118: 630 | I118: 630.00 | J118: Target Achieved | K118: 80.50 | L118: 14.65% | M118: Successful | N118: 2016-02-19
A119: 44 | B119: 2015-12-04 | D119: Zensar Technology | E119: Accu | F119: 1027.50 | H119: 1315 | I119: 1250.00 | J119: Target Achieved | K119: 287.50 | L119: 27.98% | M119: Successful | N119: 2018-05-24
A120: 45 | B120: 2015-12-29 | D120: Vinati Organics Ltd | E120: Accu | F120: 465.00 | H120: 540 | I120: 540.00 | J120: Target Achieved | K120: 75.00 | L120: 16.13% | M120: Successful | N120: 2016-06-09
A121: 46 | B121: 2016-01-11 | D121: GSFC | E121: Buy | F121: 81.00 | H121: 110 | I121: 110.00 | J121: Target Achieved | K121: 29.00 | L121: 35.80% | M121: Successful | N121: 2017-01-10
A122: 47 | B122: 2016-01-13 | D122: SSWL | E122: Buy | F122: 417.50 | H122: 547 | I122: 535.00 | J122: Target Achieved | K122: 129.50 | L122: 31.02% | M122: Successful | N122: 2016-07-27
A123: 48 | B123: 2016-02-08 | D123: Persistent System Ltd | E123: Accu | F123: 650.00 | H123: 800 | I123: 800.00 | J123: Target Achieved | K123: 150.00 | L123: 23.08% | M123: Successful | N123: 2018-02-23
A124: 49 | B124: 2016-03-04 | D124: UPL | E124: Accu | F124: 437.50 | H124: 504.5 | I124: 522.00 | J124: Profit of Rs.67/- | K124: 67.00 | L124: 15.31% | M124: Successful | N124: 2016-04-20
A125: 50 | B125: 2016-03-09 | D125: Ashoka Buildcon Ltd | E125: Accu | F125: 189.50 | H125: 218 | I125: 218.00 | J125: Target Achieved | K125: 28.50 | L125: 15.04% | M125: Successful | N125: 2017-10-26
A126: 51 | B126: 2016-04-11 | D126: PTC INDIA FIN SERV LTD | E126: Accu | F126: 36.5 | H126: 15.85 | I126: 60.00 | J126: Loss of Rs.20.65/- | K126: -20.65 | L126: -56.58% | M126: Unsuccessful | N126: 2019-06-11
A127: 52 | B127: 2016-04-12 | D127: CAMLINFINE $ | E127: Accu | F127: 93.00 | H127: 149 | I127: 140.00 | J127: Profit of Rs 56/- | K127: 56.00 | L127: 60.22% | M127: Successful | N127: 2017-01-05
A128: 53 | B128: 2016-04-12 | D128: Greaves Cotton Ltd. | E128: Accu | F128: 130.00 | H128: 150 | I128: 150-155 | J128: Target Achieved | K128: 20.00 | L128: 15.38% | M128: Successful | N128: 2016-07-13
A129: 54 | B129: 2016-04-13 | D129: DHFL | E129: Accu | F129: 196.00 | H129: 299 | I129: 299.00 | J129: Target Achieved | K129: 103.00 | L129: 52.55% | M129: Successful | N129: 2016-09-07
A130: 55 | B130: 2016-04-13 | D130: Magma | E130: Accu | F130: 88.00 | H130: 103 | I130: 103.00 | J130: Target Achieved | K130: 15.00 | L130: 17.05% | M130: Successful | N130: 2016-06-09
A131: 56 | B131: 2016-05-02 | D131: KEC International ltd $ | E131: Accu | F131: 127.50 | H131: 148 | I131: 148-150 | J131: Target Achieved | K131: =H131-F131 -> 20.50 | L131: =K131/F131 -> 16.08% | M131: Successful | N131: 2016-07-13
A132: 57 | B132: 2016-05-03 | D132: Mindtree | E132: Accu | F132: 675.00 | H132: 815 | I132: 790-800 | J132: Target Achieved | K132: =H132-F132 -> 140.00 | L132: =K132/F132 -> 20.74% | M132: Successful | N132: 2018-02-23
A133: 58 | B133: 2016-06-01 | D133: Atulauto | E133: Accu | F133: 500 | H133: 232.50 | I133: 565-570 | J133: Loss of Rs.267.50 /- | K133: =H133-F133 -> -267.50 | L133: =K133/F133 -> -53.50% | M133: Unsuccessful | N133: 2019-09-27
A134: 59 | B134: 2016-06-06 | D134: TRITURBINE | E134: Accu | F134: 110.00 | H134: 126.5 | I134: 125.00 | J134: Profit of Rs.16.50/- | K134: =H134-F134 -> 16.50 | L134: =K134/F134 -> 15.00% | M134: Successful | N134: 2016-07-01
A135: 60 | B135: 2016-06-17 | D135: Pennar Industries Ltd | E135: Accu | F135: 44.00 | H135: 69.5 | I135: 69.50 | J135: Profit of Rs.25.50/- | K135: =H135-F135 -> 25.50 | L135: =K135/F135 -> 57.95% | M135: Successful | N135: 2017-08-30
A136: 61 | B136: 2016-06-28 | D136: EVEREADY | E136: Accu | F136: 262.50 | H136: 340 | I136: 333.00 | J136: Profit of Rs.77.50/- | K136: 77.50 | L136: 29.52% | M136: Successful | N136: 2017-10-09
A137: 62 | B137: 2016-06-28 | D137: FIEMIND | E137: Accu | F137: 840.00 | H137: 1230 | I137: 1230.00 | J137: Target Achieved | K137: 390.00 | L137: 46.43% | M137: Successful | N137: 2016-10-06
A138: 63 | B138: 2016-07-05 | D138: Bajaj Corp Ltd | E138: Accu | F138: 395 | H138: =(468.5+342.5)/2 -> 405.50 | I138: 510.00 | J138: Profit of Rs.10.50/- | K138: =H138-F138 -> 10.50 | L138: =K138/F138 -> 3% | M138: Neutral | N138: 2019-05-21
A139: 64 | B139: 2016-08-02 | D139: GPPL $ | E139: Buy | F139: =169.5-12.8 -> 156.7 | H139: 77.00 | I139: 198-200 | J139: Loss of Rs.79.7/- | K139: -79.70 | L139: -50.86% | M139: Unsuccessful | N139: 2019-02-26
A140: 65 | B140: 2016-08-04 | D140: WONDERLA HOLIDAYS LTD | E140: Accu | F140: 400 | H140: 305.00 | I140: 475.00 | J140: Loss of Rs.95/- | K140: -95.00 | L140: -23.75% | M140: Unsuccessful | N140: 2019-05-21
A141: 66 | B141: 2016-08-11 | D141: CAMLINFINE | E141: Accu | F141: 86.50 | H141: 130 | I141: 130.00 | J141: Profit of Rs.43.50/- | K141: 43.50 | L141: 50.29% | M141: Successful | N141: 2017-12-22
A142: 67 | B142: 2016-08-18 | D142: GRANULES | E142: Accu | F142: 133.5 | H142: 126.50 | I142: 178.00 | J142: Exit | K142: -7.00 | L142: -5.24% | M142: Unsuccessful | N142: 2016-09-02
A143: 68 | B143: 2016-08-31 | D143: VA TECH WABAG | E143: Accu | F143: 560.00 | H143: 725 | I143: 725.00 | J143: Target Achieved | K143: 165.00 | L143: 29.46% | M143: Successful | N143: 2016-03-27
A144: 69 | B144: 2016-09-01 | D144: SKIPPER LIMITED | E144: Accu | F144: 160.50 | H144: 210 | I144: 210.00 | J144: Target Achieved | K144: 49.50 | L144: 30.84% | M144: Successful | N144: 2017-05-16
A145: 70 | B145: 2016-10-03 | D145: IFBIND | E145: Accu | F145: 430.00 | H145: 596 | I145: 575.00 | J145: Profit of Rs.166/- | K145: 166.00 | L145: 38.60% | M145: Successful | N145: 2017-02-03
A146: 71 | B146: 2016-10-14 | D146: ASIANTILES | E146: Accu | F146: 280.00 | H146: 345 | I146: 345.00 | J146: Target Achieved | K146: =H146-F146 -> 65.00 | L146: =K146/F146 -> 23.21% | M146: Successful | N146: 2017-03-20
A147: 72 | B147: 2016-10-14 | D147: DEEPIND | E147: Accu | F147: 245.00 | H147: 325.5 | I147: 330.00 | J147: Profit of Rs.80.5/- | K147: 80.50 | L147: =K147/F147 -> 32.86% | M147: Successful | N147: 2017-02-03
A148: 73 | B148: 2016-10-17 | D148: DCBBANK | E148: Accu | F148: 125.00 | H148: 160 | I148: 160.00 | J148: Target Achieved | K148: 35.00 | L148: 28.00% | M148: Successful | N148: 2017-03-09
A149: 74 | B149: 2016-10-17 | D149: ORIENTREF | E149: Accu | F149: 114.00 | H149: 145 | I149: 145.00 | J149: Target Achieved | K149: 31.00 | L149: =K149/F149 -> 27.19% | M149: Successful | N149: 2017-05-04
A150: 75 | B150: 2016-10-17 | D150: GANECOS | E150: Accu | F150: 212.00 | H150: 280 | I150: 276.00 | J150: Profit of Rs.68/- | K150: 68.00 | L150: =K150/F150 -> 32.08% | M150: Successful | N150: 2017-05-03
A151: 76 | B151: 2016-11-04 | D151: NBCC | E151: Accu | F151: 155.00 | H151: 210 | I151: 210.00 | J151: Profit of Rs.55/- | K151: 55.00 | L151: =K151/F151 -> 35.48% | M151: Successful | N151: 2017-07-28
A152: 77 | B152: 2016-12-06 | D152: PRECAM | E152: Accu | F152: 150.5 | H152: 72.50 | I152: 174.00 | J152: Loss of Rs.78/- | K152: -78.00 | L152: -51.83% | M152: Unsuccessful | N152: 2018-08-21
A153: 78 | B153: 2016-12-08 | D153: INFRATEL | E153: Accu | F153: 380.00 | H153: 478 | I153: 468.00 | J153: Target Achieved | K153: =H153-F153 -> 98.00 | L153: =K153/F153 -> 25.79% | M153: Successful | N153: 2017-10-17
A154: 79 | B154: 2016-12-30 | D154: GODREJPROP | E154: Accu | F154: 305.00 | H154: 375 | I154: 375.00 | J154: Target Achieved | K154: =H154-F154 -> 70.00 | L154: =K154/F154 -> 22.95% | M154: Successful | N154: 2017-02-02
A155: 80 | B155: 2017-01-04 | D155: DEEPAKNTR | E155: Accu | F155: 99.50 | H155: 158 | I155: 158.00 | J155: Target Achieved | K155: =H155-F155 -> 58.50 | L155: =K155/F155 -> 58.79% | M155: Successful | N155: 2017-06-12
A156: 81 | B156: 2017-01-04 | D156: DEEPAKNTR | E156: Accu | F156: 99.50 | H156: 158 | I156: 158.00 | J156: Target Achieved | K156: 58.50 | L156: 58.79% | M156: Successful | N156: 2017-06-12
A157: 82 | B157: 2017-02-20 | D157: RECLTD | E157: Accu | F157: 140.50 | H157: 220 | I157: 220.00 | J157: Target Achieved | K157: =H157-F157 -> 79.50 | L157: =K157/F157 -> 56.58% | M157: Successful | N157: 2017-05-09
A158: 83 | B158: 2017-02-20 | D158: SUBROS | E158: Accu | F158: 202.50 | H158: 234 | I158: 234.00 | J158: Target Achieved | K158: 31.50 | L158: 15.56% | M158: Successful | N158: 2017-04-11
A159: 84 | B159: 2017-03-24 | D159: VRLLOG | E159: Accu | F159: 300.50 | H159: 417.5 | I159: 420.00 | J159: Profit of Rs.117/- | K159: =H159-F159 -> 117.00 | L159: =K159/F159 -> 38.94% | M159: Successful | N159: 2017-12-01
A160: 85 | B160: 2017-03-24 | D160: FIEMIND | E160: Accu | F160: 850.00 | H160: 1042.5 | I160: 1023.00 | J160: Profit of Rs 192.50/- | K160: 192.50 | L160: 22.65% | M160: Successful | N160: 2017-04-05
A161: 86 | B161: 2017-04-05 | D161: RATNAMANI | E161: Accu | F161: 785.00 | H161: 930 | I161: 920.00 | J161: Profit of Rs.145/- | K161: =H161-F161 -> 145.00 | L161: =K161/F161 -> 18.47% | M161: Successful | N161: 2017-08-29
A162: 87 | B162: 2017-04-06 | D162: ZEEMEDIA | E162: Accu | F162: 40 | H162: 13.10 | I162: 60.00 | J162: Loss of Rs.26.9/- | K162: -26.90 | L162: -67.25% | M162: Unsuccessful | N162: 2018-02-07
A163: 88 | B163: 2017-04-12 | D163: DABUR | E163: Accu | F163: 289.50 | H163: 354 | I163: 360.00 | J163: Profit of Rs.64.5/- | K163: =H163-F163 -> 64.50 | L163: =K163/F163 -> 22.28% | M163: Successful | N163: 2017-11-01
A164: 89 | B164: 2017-04-20 | D164: KPRMILL | E164: Accu | F164: 700.00 | H164: 840 | I164: 840.00 | J164: Profit of Rs.140/- | K164: 140.00 | L164: 20.00% | M164: Successful | N164: 2017-06-07
A165: 90 | B165: 2017-06-01 | D165: ESSELPACK | E165: Accu | F165: 130.00 | H165: 144.25 | I165: 170.00 | J165: Profit of Rs.14.25/- | K165: 14.25 | L165: 10.96% | M165: Successful | N165: 2019-07-29
A166: 91 | B166: 2017-06-15 | D166: KEI | E166: Accu | F166: 214.50 | H166: 262 | I166: 262.00 | J166: Profit of Rs.47.5/- | K166: 47.50 | L166: 22.14% | M166: Successful | N166: 2017-08-30
A167: 92 | B167: 2017-07-17 | D167: MAYURUNIQ | E167: Accu | F167: 370.00 | H167: 447.5 | I167: 450.00 | J167: Target Achieved | K167: 77.50 | L167: 20.95% | M167: Successful | N167: 2017-10-27
A168: 93 | B168: 2017-07-27 | D168: RAMCOCEM | E168: Accu | F168: 657.50 | H168: 825 | I168: 820.00 | J168: Target Achieved | K168: 167.50 | L168: 25.48% | M168: Successful | N168: 2017-12-21
A169: 94 | B169: 2017-08-17 | D169: FINPIPE | E169: Accu | F169: 605.00 | H169: 750 | I169: 750.00 | J169: Profit of Rs.145/- | K169: 145.00 | L169: 23.97% | M169: Successful | N169: 2017-10-19
A170: 95 | B170: 2017-09-01 | D170: SHK | E170: Accu | F170: 255 | H170: 217.25 | I170: 320.00 | J170: Loss of Rs.37.75/- | K170: -37.75 | L170: -15% | M170: Unsuccessful | N170: 2019-07-15
A171: 96 | B171: 2017-09-19 | D171: SKIPPER | E171: Accu | F171: 215.00 | H171: 258 | I171: 258.00 | J171: Target Achieved | K171: 43.00 | L171: 20.00% | M171: Successful | N171: 2017-11-01
A172: 97 | B172: 2017-09-19 | D172: SKIPPER | E172: Accu | F172: 215.00 | H172: 258 | I172: 258.00 | J172: Target Achieved | K172: 43.00 | L172: 20.00% | M172: Successful | N172: 2017-11-01
A173: 98 | B173: 2017-09-20 | D173: CAMLINFINE$ | E173: Accu | F173: 75.00 | H173: 90 | I173: 90.00 | J173: Profit of Rs.15.00/- | K173: =H173-F173 -> 15.00 | L173: =K173/F173 -> 20.00% | M173: Successful | N173: 2017-10-11
A174: 99 | B174: 2017-10-03 | D174: GNA | E174: Accu | F174: 315.00 | H174: 392 | I174: 384.00 | J174: Profit of Rs.77/- | K174: 77.00 | L174: 24.44% | M174: Successful | N174: 2017-10-09
A175: 100 | B175: 2017-10-05 | D175: NOCIL | E175: Accu | F175: 145.00 | H175: 179 | I175: 180.00 | J175: Profit of Rs.34/- | K175: 34.00 | L175: 23.45% | M175: Successful | N175: 2017-10-17
A176: 101 | B176: 2017-10-06 | D176: CENTURYPLY | E176: Accu | F176: 256.00 | H176: 323 | I176: 320.00 | J176: Target Achieved | K176: 67.00 | L176: 26.17% | M176: Successful | N176: 2017-11-28
A177: 102 | B177: 2017-10-09 | D177: EIHOTEL | E177: Accu | F177: 137.50 | H177: 184 | I177: 183.00 | J177: Profit of Rs.46.5/- | K177: 46.50 | L177: 33.82% | M177: Successful | N177: 2018-01-08
A178: 103 | B178: 2017-10-10 | D178: NRBBEARING | E178: Accu | F178: 125.50 | H178: 158 | I178: 155.00 | J178: Profit of Rs.32.5/- | K178: 32.50 | L178: 25.90% | M178: Successful | N178: 2017-11-28
A179: 104 | B179: 2017-10-10 | D179: BOROSIL | E179: Accu | F179: 895.00 | H179: 1122.5 | I179: 1078.00 | J179: Profit of Rs.227.5/- | K179: 227.50 | L179: 25.42% | M179: Successful | N179: 2018-01-17
A180: 105 | B180: 2017-10-12 | D180: CYIENT | E180: Accu | F180: 525.00 | H180: 629 | I180: 629.00 | J180: Target Achieved | K180: 104.00 | L180: 19.81% | M180: Successful | N180: 2018-01-19
A181: 106 | B181: 2017-11-07 | D181: HATSUN | E181: Accu | F181: 740.00 | H181: 892.5 | I181: 900.00 | J181: Profit of Rs.152.5/- | K181: =H181-F181 -> 152.50 | L181: =K181/F181 -> 20.61% | M181: Successful | N181: 2017-11-13
A182: 107 | B182: 2017-12-04 | D182: SANGHIIND | E182: Accu | F182: 118.50 | H182: 143.5 | I182: 145.00 | J182: Profit of Rs.25/- | K182: =H182-F182 -> 25.00 | L182: =K182/F182 -> 21.10% | M182: Successful | N182: 2017-12-28
A183: 108 | B183: 2017-12-21 | D183: KAJARIACER | E183: Accu | F183: 715 | H183: 500.00 | I183: 872.00 | J183: Loss of Rs.215/- | K183: =H183-F183 -> -215.00 | L183: =K183/F183 -> -30.07% | M183: Unsuccessful | N183: 2019-07-24
A184: 109 | B184: 2017-12-29 | D184: GNA | E184: Accu | F184: 435.00 | H184: 542.5 | I184: 539.00 | J184: Target Achieved | K184: 107.50 | L184: 24.71% | M184: Successful | N184: 2018-04-16
A185: 110 | B185: 2017-12-29 | D185: ZENSARTECH | E185: Accu | F185: 885.00 | H185: 1090 | I185: 1084.00 | J185: Target Achieved | K185: 205.00 | L185: 23.16% | M185: Successful | N185: 2018-04-23
A186: 111 | B186: 2018-04-02 | D186: EVERESTIND | E186: Accu | F186: 478.50 | H186: 442 | I186: 613.00 | J186: Loss of Rs.36.50 /- | K186: =H186-F186 -> -36.50 | L186: =K186/F186 -> -7.63% | M186: Unsuccessful | N186: 2019-10-24
A187: 112 | B187: 2018-04-04 | D187: GPPL$ | E187: Accu | F187: =141.5-7.3 -> 134.2 | H187: 77.00 | I187: 180.00 | J187: Loss of Rs.57.2/- | K187: =H187-F187 -> -57.20 | L187: =K187/F187 -> -42.62% | M187: Unsuccessful | N187: 2019-02-26
A188: 113 | B188: 2018-04-19 | D188: MANPASAND | E188: Accu | F188: 430 | H188: 220.00 | I188: 537.00 | J188: Loss of Rs.210/- | K188: =H188-F188 -> -210.00 | L188: =K188/F188 -> -48.84% | M188: Unsuccessful | N188: 2018-06-01
A189: 114 | B189: 2018-04-30 | D189: HEIDELBERG | E189: Accu | F189: 153.5 | H189: 196 | I189: 196.00 | J189: Profit of Rs.42.50/- | K189: =H189-F189 -> 42.50 | L189: =K189/F189 -> 27.69% | M189: Successful | N189: 2019-05-20
A190: 115 | B190: 2018-07-25 | D190: ZEEMEDIA | E190: Accu | F190: 27.5 | H190: 13.10 | I190: 60.00 | J190: Loss of Rs.14.40/- | K190: -14.40 | L190: -52.36% | M190: Unsuccessful | N190: 2018-02-07
A191: 116 | B191: 2018-08-06 | D191: GABRIEL | E191: Accu | F191: 148.5 | H191: 102 | I191: 182.00 | J191: Loss of Rs.46.50/- | K191: =H191-F191 -> -46.50 | L191: =K191/F191 -> -31.31% | M191: Unsuccessful | N191: 2019-07-15
A192: 117 | B192: 2018-08-23 | D192: INDIANHUME | E192: Accu | F192: 285 | H192: 355 | I192: 364.00 | J192: Profit of Rs.70/- | K192: 70.00 | L192: 24.56% | M192: Successful | N192: 2018-12-21
A193: 118 | B193: 2018-08-29 | D193: GRINDWELL | E193: Accu | F193: 525 | H193: 585 | I193: 635.00 | J193: Profit of Rs.60- | K193: =H193-F193 -> 60.00 | L193: =K193/F193 -> 11.43% | M193: Successful | N193: 2019-07-16
A194: 119 | B194: 2018-10-22 | D194: FINPIPE | E194: Accu | F194: 475 | H194: 574 | I194: 570.00 | J194: Target Achieved | K194: 99.00 | L194: 20.84% | M194: Successful | N194: 2018-10-30
A195: 120 | B195: 2018-10-24 | D195: GULFOILLUB | E195: Accu | F195: 707.5 | H195: 872 | I195: 872.00 | J195: Target Achieved | K195: 164.50 | L195: 23.25% | M195: Successful | N195: 2019-01-17
A196: 121 | B196: 2018-10-25 | D196: DBCORP | E196: Accu | F196: 162 | H196: 204 | I196: 209.00 | J196: Profit of Rs.42/- | K196: 42.00 | L196: 25.93% | M196: Successful | N196: 2019-03-15
A197: 122 | B197: 2018-10-26 | D197: RITES | E197: Accu | F197: 240 | H197: 297 | I197: 297.00 | J197: Target Achieved | K197: 57.00 | L197: 23.75% | M197: Successful | N197: 2018-11-13
A198: 123 | B198: 2018-12-05 | D198: BRIGADE | E198: Accu | F198: 202.5 | H198: 255 | I198: 252.00 | J198: Target Achieved | K198: 52.50 | L198: 25.93% | M198: Successful | N198: 2019-03-18 | S198: V
A199: 124 | B199: 2018-12-31 | D199: JKCEMENT | E199: Accu | F199: 710 | H199: 866 | I199: 866.00 | J199: Target Achieved | K199: 156.00 | L199: 21.97% | M199: Successful | N199: 2019-03-29 | S199: V
A200: 125 | B200: 2019-02-26 | D200: MARICO | E200: Accu | F200: 337.25 | H200: 398.5 | I200: 411.00 | J200: Profit of Rs.61.25/- | K200: 61.25 | L200: 18.16% | M200: Successful | N200: 2019-10-22 | S200: V
A201: 126 | B201: 2019-04-04 | D201: ITDCEM | E201: Accu | F201: 130 | H201: 65 | I201: 158.00 | J201: Loss of Rs.65 /- | K201: -65.00 | L201: -50.00% | M201: Unsuccessful | N201: 2019-09-18 | S201: K
A202: 127 | B202: 2017-10-09 | D202: RECLTD | E202: Accu | F202: 141.5 | H202: 183.5 | I202: 210.00 | J202: Profit of Rs.42/- | K202: 42.00 | L202: 29.68% | M202: Successful | N202: 2017-11-03 | S202: K
A203: 128 | B203: 2017-12-05 | D203: ALLCARGO | E203: Accu | F203: 172.00 | H203: 155.25 | I203: 230.00 | J203: Loss of Rs.16.75/- | K203: -16.75 | L203: -9.74% | M203: Unsuccessful | N203: 2019-11-18 | S203: K
A204: 129 | B204: 2018-10-25 | D204: GODREJCP | E204: Accu | F204: 698.5 | H204: 890 | I204: 890.00 | J204: Profit of Rs.191.50/- | K204: 191.50 | L204: 27.42% | M204: Successful | N204: 2021-05-12 | S204: V
A205: 130 | B205: 2017-05-22 | D205: GREAVESCOT | E205: Accu | F205: 127.6 | H205: 138 | I205: 190.00 | J205: Profit of Rs.10.40 | K205: 10.40 | L205: 8.15% | M205: Successful | N205: 2019-11-05 | S205: K
A206: 131 | B206: 2018-02-27 | D206: MOLDTKPAC | E206: Accu | F206: 317 | H206: 382.5 | I206: 398.00 | J206: Profit of Rs.65.5 | K206: 65.50 | L206: 20.66% | M206: Successful | N206: 2021-02-11 | S206: K
A207: 132 | B207: 2018-03-05 | D207: LICHSGFIN | E207: Accu | F207: =510-14.4 -> 495.60 | H207: 350 | I207: 672.00 | J207: Loss of Rs.145.60/- | K207: -145.60 | L207: -29.38% | M207: Unsuccessful | N207: 2020-02-26 | S207: V
A208: 133 | B208: 2018-05-17 | D208: PHILIPCARB | E208: Accu | F208: 230.30 | H208: 102.5 | I208: 348.00 | J208: Loss of Rs.127.80/- | K208: -127.80 | L208: -55.49% | M208: Unsuccessful | N208: 2020-03-06 | S208: V
A209: 134 | B209: 2018-06-07 | D209: KEC | E209: Accu | F209: =342.5-5.1 -> 337.4 | H209: 412.5 | I209: 439.00 | J209: Profit of Rs.75.10 | K209: 75.10 | L209: 22.26% | M209: Successful | N209: 2021-02-03 | S209: K
A210: 135 | B210: 2018-07-04 | D210: ASHOKLEY | E210: Accu | F210: =127.5-5.53 -> 121.97 | H210: 122.50 | I210: 170.00 | J210: Profit of Rs.0.53/- | K210: 0.53 | L210: 0% | M210: Neutral | N210: 2021-08-23 | S210: V
A211: 136 | B211: 2018-07-13 | D211: FCONSUMER | E211: Accu | F211: 46.50 | H211: 17 | I211: 59.00 | J211: Loss of Rs.29.50/- | K211: -29.50 | L211: -63.44% | M211: Unsuccessful | N211: 2020-02-26 | S211: V
A212: 137 | B212: 2018-10-23 | D212: JKPAPER | E212: Accu | F212: 156.5 | H212: 207.5 | I212: 191.00 | J212: Target Achieved | K212: 51.00 | L212: 32.59% | M212: Successful | N212: 2021-06-22 | S212: V
A213: 138 | B213: 2018-12-05 | D213: CCL | E213: Accu | F213: 259.5 | H213: 320 | I213: 320.00 | J213: Target Achieved | K213: 60.50 | L213: 23.31% | M213: Successful | N213: 2021-05-07 | S213: V
A214: 139 | B214: 2018-12-05 | D214: VARROC | E214: Accu | F214: 715 | H214: 445 | I214: 840.00 | J214: Loss of Rs.270/- | K214: -270.00 | L214: -37.76% | M214: Unsuccessful | N214: 2019-12-01 | S214: V
A215: 140 | B215: 2019-01-04 | D215: MGL | E215: Accu | F215: 875 | H215: 1165 | I215: 1185.00 | J215: Profit of Rs.290/- | K215: 290.00 | L215: 33.14% | M215: Successful | N215: 2020-01-17 | S215: V
A216: 141 | B216: 2019-04-04 | D216: COCHINSHIP | E216: Accu | F216: =387-14.63 -> 372.37 | H216: 490 | I216: 490.00 | J216: Target Achieved | K216: 117.63 | L216: 31.59% | M216: Successful | N216: 2020-01-20 | S216: V
A217: 142 | B217: 2019-04-23 | D217: MAHINDCIE | E217: Buy | F217: 220 | H217: 127.5 | I217: 284.00 | J217: Loss of Rs.92.50/- | K217: -92.50 | L217: -42.05% | M217: Unsuccessful | N217: 2020-03-06 | S217: V
A218: 143 | B218: 2019-06-06 | D218: RADICO | E218: Buy | F218: 332.8 | H218: 405 | I218: 419.00 | J218: Profit of Rs.72.20/- | K218: 72.20 | L218: 21.69% | M218: Successful | N218: 2020-01-30 | S218: K
A219: 144 | B219: 2019-06-25 | D219: M&MFIN | E219: Accu | F219: 386 | H219: 395.00 | I219: 452.00 | J219: Profit of Rs.9/- | K219: 9.00 | L219: 2% | M219: Neutral | N219: 2020-02-07 | S219: K
A220: 145 | B220: 2019-08-30 | D220: INDHOTEL | E220: Accu | F220: 137.5 | H220: 138.50 | I220: 190.00 | J220: Profit of Rs.1/- | K220: 1.00 | L220: 1% | M220: Neutral | N220: 2021-08-24 | S220: V
A221: 146 | B221: 2019-09-23 | D221: KNRCON | E221: Accu | F221: 235 | H221: 295 | I221: 296.00 | J221: Profit of Rs.60/- | K221: 60.00 | L221: 25.53% | M221: Successful | N221: 2020-01-14 | S221: K
A222: 147 | B222: 2019-10-14 | D222: KEC$ | E222: Accu | F222: 277.5 | H222: 333 | I222: 333.00 | J222: Profit of Rs.55.50/- | K222: 55.50 | L222: 20.00% | M222: Successful | N222: 2020-01-16 | S222: V
A223: 148 | B223: 2019-10-14 | D223: MGL$ | E223: Accu | F223: 930 | H223: 1165 | I223: 1200.00 | J223: Profit of Rs.235/- | K223: 235.00 | L223: 25.27% | M223: Successful | N223: 2020-01-17 | S223: K
A224: 149 | B224: 2019-10-15 | D224: JKPAPER$ | E224: Accu | F224: 111.00 | H224: 141 | I224: 141.00 | J224: Profit of Rs.30/- | K224: 30.00 | L224: 27.03% | M224: Successful | N224: 2021-05-12 | S224: K
A225: 150 | B225: 2019-10-15 | D225: RADICO$ | E225: Accu | F225: 296.00 | H225: 370 | I225: 370.00 | J225: Target Achieved | K225: =H225-F225 -> 74.00 | L225: =K225/F225 -> 25.00% | M225: Successful | N225: 2020-01-23 | S225: K
A226: 151 | B226: 2019-10-16 | D226: MOLDTKPAC$ | E226: Accu | F226: 300.00 | H226: 382.5 | I226: 344.00 | J226: Profit of Rs.82.5/- | K226: 82.50 | L226: 27.50% | M226: Successful | N226: 2021-02-11 | S226: K
A227: 152 | B227: 2020-01-02 | D227: PSPPROJECT | E227: Accu | F227: 495.00 | H227: 595 | I227: 590.00 | J227: Profit of Rs.100/- | K227: 100.00 | L227: 20.20% | M227: Successful | N227: 2022-01-28 | S227: K
A228: 153 | B228: 2020-05-15 | D228: BEL | E228: Accu | F228: 67.50 | H228: 86 | I228: 86.00 | J228: Profit of Rs.18.50/- | K228: 18.50 | L228: 27.41% | M228: Successful | N228: 2020-06-26 | S228: K
... 60 more rows
